Workbook

Sheet User Input
D3: Residential Energy Cost & Emissions Calculator
E5: State/Province | F5: 1 | I5: Includes eGrid 2025 update (2023 data)
E7: City (for U.S. states) | F7: 1
E9: Central Station Emissions Profile | F9: 2 | I9: =IFERROR(_xlfn.IFS(AND(state<53,emisProfile=3),"Central Station Emissions Profile does not match.",AND(state>52,emisProfile<3),"Central Station Emissions Profile does not match."),"") -> 
E11: Fuel and Electric Prices | F11: 1 | I11: 1 | L11: 1 | N11: 1
F13: Natural Gas Price | I13: Electricity Price | L13: Oil Price | N13: Propane Price
E14: =IF(OR(NGrates=1,Erates=1,Orates=1,Prates=1),"Default Energy Rates","") -> Default Energy Rates | F14: =IF(NGrates=1,Calc!B117,"") -> 14.83 | G14: =IF(NGrates=1,"$/MMBtu","") -> $/MMBtu | I14: =IF(Erates=1,Calc!B116,"") -> 16 | J14: =IF(Erates=1,"cents/kWh","") -> cents/kWh | L14: =IF(Orates=1,Calc!B118,"") -> 4.28 | M14: =IF(Orates=1,"$/gal","") -> $/gal | N14: =IF(Prates=1,Calc!B119,"") -> 2.56 | O14: =IF(Prates=1,"$/gal","") -> $/gal
E15: =IF(OR(NGrates=2,Erates=2,Orates=2,Prates=2),"User Input Energy Rates","") ->  | F15: 14.1 | G15: =IF(NGrates=2,"$/MMBtu","") ->  | I15: 17 | J15: =IF(Erates=2,"cents/kWh","") ->  | L15: 4.1 | M15: =IF(Orates=2,"$/gal","") ->  | N15: 3 | O15: =IF(Prates=2,"$/gal","") -> 
D18: Space Heating System
E20: Square Footage of House (between 0 and 6,000 sqft) | F20: 2000 | G20: sqft
E22: Energy Source for Current Heating System | F22: 1
E23: =IFERROR(_xlfn.IFS(AND(heattype=1,$F$24>4),"Please select a heating system type.",AND(heattype=2,$F$24>5),"Please select a heating system type."),"") -> 
E24: ="Current " & _xlfn.XLOOKUP(F22,Lists!G4:G7,Lists!H4:H7)&" Heating System Type" -> Current Electric Heating System Type | F24: 2
E26: Annual Space Heating Requirements | F26: =TEXT(Calc!B9,"0.0")&" MMBtu/yr" -> 49.6 MMBtu/yr
E28: Type of Natural Gas Heating System To Compare | F28: 1
D31: Water Heating
E33: Family Size | F33: 3
E35: Type of Current Water Heating System | F35: 1
E36: =IFERROR(_xlfn.IFS(AND(wheattype=1,$F$37>4),"Please select a water heating system type.",AND(wheattype=2,$F$37>2),"Please select a water heating system type."),"") -> 
E37: ="Current " & _xlfn.XLOOKUP(F35,Lists!G4:G7,Lists!H4:H7)&" Water Heating System Type" -> Current Electric Water Heating System Type | F37: 1
E39: Annual Water Heating Requirements | F39: =Calc!B30 -> 13.99629 | G39: MMBtu/yr
E41: Type of Natural Gas Water Heating System To Compare | F41: 1
D43: Clothes Dryer
E45: Type of Current Dryer | F45: 1
E47: Loads per Week (national standard is 8 loads/week) | F47: 7
E49: Annual Dryer Heating Requriements | F49: =Calc!B48 -> 3.25609588 | G49: MMBtu/yr
E51: ="Standard Efficiency - "&_xlfn.XLOOKUP(F45,Lists!I4:I6,Lists!J4:J6) &" Dryer (7lb load)" -> Standard Efficiency - Electric Dryer (7lb load) | F51: =IF(dtype=1,3.73,3.3) -> 3.73 | G51: CEF
D54: Cooking
E56: Prepare meals on a range, cook top or oven | F56: Yes
E58: Type of Current System | F58: 1
E60: =IF(ctype=1,"Annual Cooking Electric Requirements","Annual Cooking Heating Requirements") -> Annual Cooking Electric Requirements | F60: =IF(ctype=1,261,1.5) -> 261 | G60: =IF(ctype=1,"kWh/yr","MMBtu/yr") -> kWh/yr
E62: ="Standard Efficiency "&_xlfn.XLOOKUP(F58,Lists!I4:I6,Lists!J4:J6)&" Range" -> Standard Efficiency Electric Range | F62: =IF(ctype=1,0.74,0.4) -> 0.74
D67: Results | F67: Current Home | I67: Proposed Gas Home | L67: Savings with Natural Gas
F68: $/Year | I68: $/Year | L68: $/Year | N68: Percentage
E69: Energy Spending | F69: Consumed at House | I69: Consumed at House | L69: Savings | N69: Of current spending
E70: Space Heating | F70: =Calc!G133 -> 1180.498625 | I70: =Calc!H133 -> 920.1760682 | L70: =F70-I70 -> 260.3225568 | N70: =IF(L70=0,0,L70/F70) -> 0.2205191529
E72: Water Heating | F72: =Calc!G134 -> 713.4048626 | I72: =Calc!H134 -> 357.8706564 | L72: =F72-I72 -> 355.5342063 | N72: =IF(L72=0,0,L72/F72) -> 0.4983624655
E74: Clothes Dryer | F74: =Calc!G135 -> 109.2975871 | I74: =Calc!H135 -> 48.2879019 | L74: =F74-I74 -> 61.00968523 | N74: =IF(L74=0,0,L74/F74) -> 0.5581979148
E76: Cooking | F76: =Calc!G136 -> 56.43243243 | I76: =Calc!H136 -> 22.245 | L76: =F76-I76 -> 34.18743243 | N76: =IF(L76=0,0,L76/F76) -> 0.6058117816
E79: Total House Appliances | F79: =Calc!G137 -> 2059.633507 | I79: =Calc!H137 -> 1348.579626 | L79: =F79-I79 -> 711.0538807 | N79: =IF(L79=0,0,L79/F79) -> 0.3452332069
E83: Emissions | F83: lbs/Year | I83: lbs/Year | L83: lbs/Year | N83: Percentage
F84: Emmited | I84: Emmited | L84: Savings | N84: Of current emissions
E85: NOx - lbs / Year | F85: ='Carbon Calculator'!E132 -> 9.651133778 | I85: ='Carbon Calculator'!I132 -> 11.22335427 | L85: =F85-I85 -> -1.572220495 | N85: =L85/F85 -> -0.1629052639
E87: SOx - lbs / Year | F87: ='Carbon Calculator'!E131 -> 7.707313876 | I87: ='Carbon Calculator'!I131 -> 0.05349171498 | L87: =F87-I87 -> 7.653822161 | N87: =L87/F87 -> 0.9930596164
E89: CO2 - lbs / Year | F89: ='Carbon Calculator'!E130 -> 17266.81626 | I89: ='Carbon Calculator'!I130 -> 10698.343 | L89: =F89-I89 -> 6568.473259 | N89: =L89/F89 -> 0.3804102136
E92: Yes
E93: No | G93: CO2 Reduction | H93: =IF(Calc!B104>0,Calc!B104,"n/a") -> 7448.599813 | I93: miles driven by a gasoline-powered passenger vehicle
G94: Equivalent to:
H95: =IF(Calc!B102>0,Calc!B102,"n/a") -> 2.979439925 | I95: Acres of forest removing CO2 from the Air

Sheet Lists
A1: Pick list lookups | H1: *lists below update based on fuel type
A3: A1 | B3: Furnace technology | H3: Type of Heating System to Compare | J3: Dryer/Cooking Types
A4: 1 | B4: Average Furnace (AFUE 80%) | C4: 0.8 | G4: 1 | H4: Electric | I4: 1 | J4: Electric
A5: 2 | B5: High Efficiency Furnace (AFUE 92%) | C5: 0.92 | G5: 2 | H5: Oil | I5: 2 | J5: Propane
A6: 3 | B6: Ultra High Effic. Furnace (AFUE 97%) | C6: 0.97 | G6: 3 | H6: Propane | I6: 3 | J6: Gas
A7: 4 | B7: Standard Boiler (AFUE 82%) | C7: 0.82 | G7: 4 | H7: Gas
A8: 5 | B8: Condensing Boiler (AFUE 92%) | C8: 0.92 | G8: Space | H8: =CHOOSE(heattype, "Electric", "Oil", "Propane", "Gas") -> Electric
A9: 6 | B9: Wall Hung Boiler (AFUE 96%) | C9: 0.96 | G9: Water | H9: =CHOOSE(wheattype, "Electric", "Oil", "Propane", "Gas") -> Electric
A10: 7 | B10: Gas Heat Pump (COP 1.4) | C10: 1.4
A11: B8 | B11: Egrid profile | G11: ="Space "&H8& " System" -> Space Electric System | H11: =IFERROR(INDEX(CHOOSE(heattype, $B$87:$B$90, $H$87:$H$91, $L$87:$L$93, $B$4:$B$10), ROW(1:1)), "") -> Electric Furnace/Strip Heat - 99% AFUE
A12: 1 | B12: eGRID Average All Sources 2010 | H12: =IFERROR(INDEX(CHOOSE(heattype, $B$87:$B$90, $H$87:$H$91, $L$87:$L$93, $B$4:$B$10), ROW(2:2)), "") -> Standard Effic. Heat Pump - 7.5 HSPF2
A13: 2 | B13: eGRID Average Fossil 2010 | H13: =IFERROR(INDEX(CHOOSE(heattype, $B$87:$B$90, $H$87:$H$91, $L$87:$L$93, $B$4:$B$10), ROW(3:3)), "") -> Energy Star Heat Pump - 7.8 HSPF2
A14: 3 | B14: Canadian Average All Sources 2011 | C14: *not used for calculations | H14: =IFERROR(INDEX(CHOOSE(heattype, $B$87:$B$90, $H$87:$H$91, $L$87:$L$93, $B$4:$B$10), ROW(4:4)), "") -> High Efficiency Heat Pump - 9 HSPF2
A15: 4 | H15: =IFERROR(INDEX(CHOOSE(heattype, $B$87:$B$89, $H$87:$H$91, $L$87:$L$93, $B$4:$B$10), ROW(5:5)), "") -> 
A16: 5 | H16: =IFERROR(INDEX(CHOOSE(heattype, $B$87:$B$89, $H$87:$H$91, $L$87:$L$93, $B$4:$B$10), ROW(6:6)), "") -> 
H17: =IFERROR(INDEX(CHOOSE(heattype, $B$87:$B$89, $H$87:$H$91, $L$87:$L$93, $B$4:$B$10), ROW(7:7)), "") -> 
G18: ="Water "&H9& " System" -> Water Electric System | H18: =IFERROR(INDEX(CHOOSE(wheattype,$B$104:$B$107,$H$96:$H$97,$L$96:$L$103, $B$94:$B$101), ROW(1:1)), "") -> Standard: UEF = 0.92
H19: =IFERROR(INDEX(CHOOSE(wheattype,$B$104:$B$107,$H$96:$H$97,$L$96:$L$103, $B$94:$B$101), ROW(2:2)), "") -> High-Performing: UEF = 0.93
A20: B6 | B20: State | D20: Census Region | E20: Regional Factor | H20: =IFERROR(INDEX(CHOOSE(wheattype,$B$104:$B$107,$H$96:$H$97,$L$96:$L$103, $B$94:$B$101), ROW(3:3)), "") -> Whole Home Electric Tankless:UE = .91
A21: 1 | B21: US Average | C21: US | D21: US | E21: 1 | F21: =A21 -> 1 | H21: =IFERROR(INDEX(CHOOSE(wheattype,$B$104:$B$107,$H$96:$H$97,$L$96:$L$103, $B$94:$B$101), ROW(4:4)), "") -> Elec. Heat Pump Water Heater:UEF=3.0
A22: 2 | B22: Alaska | C22: AK | D22: Pacific | E22: 1 | F22: =A22 -> 2 | H22: =IFERROR(INDEX(CHOOSE(wheattype,$B$104:$B$107,$H$96:$H$97,$L$96:$L$103, $B$94:$B$101), ROW(5:5)), "") -> 
A23: 3 | B23: Alabama | C23: AL | D23: East South Central | E23: 0.92 | F23: 3 | H23: =IFERROR(INDEX(CHOOSE(wheattype,$B$104:$B$107,$H$96:$H$97,$L$96:$L$103, $B$94:$B$101), ROW(6:6)), "") -> 
A24: 4 | B24: Arkansas | C24: AR | D24: West South Central | E24: 0.88 | F24: 4 | H24: =IFERROR(INDEX(CHOOSE(wheattype,$B$104:$B$107,$H$96:$H$97,$L$96:$L$103, $B$94:$B$101), ROW(7:7)), "") -> 
A25: 5 | B25: Arizona | C25: AZ | D25: Mountain | E25: 0.82 | F25: 5 | H25: =IFERROR(INDEX(CHOOSE(wheattype,$B$104:$B$107,$H$96:$H$97,$L$96:$L$103, $B$94:$B$101), ROW(8:8)), "") -> 
A26: 6 | B26: California | C26: CA | D26: Pacific | E26: 0.75 | F26: 6
A27: 7 | B27: Colorado | C27: CO | D27: Mountain | E27: 0.82 | F27: 7
A28: 8 | B28: Connecticut | C28: CT | D28: New England | E28: 1.1 | F28: 8
A29: 9 | B29: District of Columbia | C29: DC | D29: South Atlantic | E29: 0.75 | F29: 9
A30: 10 | B30: Delaware | C30: DE | D30: South Atlantic | E30: 0.75 | F30: 10
A31: 11 | B31: Florida | C31: FL | D31: South Atlantic | E31: 0.75 | F31: 11
A32: 12 | B32: Georgia | C32: GA | D32: South Atlantic | E32: 0.75 | F32: 12
A33: 13 | B33: Hawaii | C33: HI | D33: Pacific | E33: 0.75 | F33: 13
A34: 14 | B34: Iowa | C34: IA | D34: West North Central | E34: 1.06 | F34: 14
A35: 15 | B35: Idaho | C35: ID | D35: Mountain | E35: 0.82 | F35: 15
A36: 16 | B36: Illinois | C36: IL | D36: East North Central | E36: 1.03 | F36: 16
A37: 17 | B37: Indiana | C37: IN | D37: East North Central | E37: 1.03 | F37: 17
A38: 18 | B38: Kansas | C38: KS | D38: West North Central | E38: 1.06 | F38: 18
A39: 19 | B39: Kentucky | C39: KY | D39: East South Central | E39: 0.92 | F39: 19
A40: 20 | B40: Louisiana | C40: LA | D40: West South Central | E40: 0.88 | F40: 20
A41: 21 | B41: Massachusetts | C41: MA | D41: New England | E41: 1.1 | F41: 21
A42: 22 | B42: Maryland | C42: MD | D42: South Atlantic | E42: 0.75 | F42: 22
A43: 23 | B43: Maine | C43: ME | D43: New England | E43: 1.1 | F43: 23
A44: 24 | B44: Michigan | C44: MI | D44: East North Central | E44: 1.03 | F44: 24
A45: 25 | B45: Minnesota | C45: MN | D45: West North Central | E45: 1.06 | F45: 25
A46: 26 | B46: Missouri | C46: MO | D46: West North Central | E46: 1.06 | F46: 26
A47: 27 | B47: Mississippi | C47: MS | D47: East South Central | E47: 0.92 | F47: 27
A48: 28 | B48: Montana | C48: MT | D48: Mountain | E48: 0.82 | F48: 28
A49: 29 | B49: North Carolina | C49: NC | D49: South Atlantic | E49: 0.75 | F49: 29
A50: 30 | B50: North Dakota | C50: ND | D50: West North Central | E50: 1.06 | F50: 30
A51: 31 | B51: Nebraska | C51: NE | D51: West North Central | E51: 1.06 | F51: 31
A52: 32 | B52: New Hampshire | C52: NH | D52: New England | E52: 1.1 | F52: 32
A53: 33 | B53: New Jersey | C53: NJ | D53: Middle Atlantic | E53: 1.24 | F53: 33
A54: 34 | B54: New Mexico | C54: NM | D54: Mountain | E54: 0.82 | F54: 34
A55: 35 | B55: Nevada | C55: NV | D55: Mountain | E55: 0.82 | F55: 35
A56: 36 | B56: New York | C56: NY | D56: Middle Atlantic | E56: 1.24 | F56: 36
A57: 37 | B57: Ohio | C57: OH | D57: East North Central | E57: 1.03 | F57: 37
A58: 38 | B58: Oklahoma | C58: OK | D58: West South Central | E58: 0.88 | F58: 38
A59: 39 | B59: Oregon | C59: OR | D59: Pacific | E59: 0.75 | F59: 39
A60: 40 | B60: Pennsylvania | C60: PA | D60: Middle Atlantic | E60: 1.24 | F60: 40
A61: 41 | B61: Rhode Island | C61: RI | D61: New England | E61: 1.1 | F61: 41
A62: 42 | B62: South Carolina | C62: SC | D62: South Atlantic | E62: 0.75 | F62: 42
A63: 43 | B63: South Dakota | C63: SD | D63: West North Central | E63: 1.06 | F63: 43
A64: 44 | B64: Tennessee | C64: TN | D64: East South Central | E64: 0.92 | F64: 44
A65: 45 | B65: Texas | C65: TX | D65: West South Central | E65: 0.88 | F65: 45
A66: 46 | B66: Utah | C66: UT | D66: Mountain | E66: 0.82 | F66: 46
A67: 47 | B67: Virginia | C67: VA | D67: South Atlantic | E67: 0.75 | F67: 47
A68: 48 | B68: Vermont | C68: VT | D68: New England | E68: 1.1 | F68: 48
A69: 49 | B69: Washington | C69: WA | D69: Pacific | E69: 0.75 | F69: 49
A70: 50 | B70: Wisconsin | C70: WI | D70: East North Central | E70: 1.03 | F70: 50
A71: 51 | B71: West Virginia | C71: WV | D71: South Atlantic | E71: 0.75 | F71: 51
A72: 52 | B72: Wyoming | C72: WY | D72: Mountain | E72: 0.82 | F72: 52
A73: 53 | B73: Canadian Average | C73: Canada Avg. | D73: East North Central | E73: 1.03 | F73: 53
A74: 54 | B74: Alberta | C74: AB | D74: East North Central | E74: 1.03 | F74: 54
A75: 55 | B75: British Columbia | C75: BC | D75: East North Central | E75: 1.03 | F75: 55
A76: 56 | B76: Manitoba | C76: MB | D76: East North Central | E76: 1.03 | F76: 56
A77: 57 | B77: New Brunswick | C77: NB | D77: East North Central | E77: 1.03 | F77: 57
A78: 58 | B78: Newfoundland | C78: NF | D78: East North Central | E78: 1.03 | F78: 58
A79: 59 | B79: Nova Scotia | C79: NS | D79: East North Central | E79: 1.03 | F79: 59
A80: 60 | B80: Ontario | C80: ON | D80: East North Central | E80: 1.03 | F80: 60
A81: 61 | B81: Prince Edward Island | C81: PE | D81: East North Central | E81: 1.03 | F81: 61
A82: 62 | B82: Quebec | C82: QB | D82: East North Central | E82: 1.03 | F82: 62
A83: 63 | B83: Saskatchewan | C83: SK | D83: East North Central | E83: 1.03 | F83: 63
A86: H3 | B86: What is the Efficiency of the Electric Heating System that is Being Displaced? | H86: What is the Efficiency of the Oil Heating System that is Being Displaced? | L86: What is the Efficiency of the Propane Heating System that is Being Displaced?
A87: 1 | B87: Electric Furnace/Strip Heat - 99% AFUE | G87: 1 | H87: Furnace ,non-weatherized (78% AFUE) | I87: 0.78 | K87: 1 | L87: Average Furnace (AFUE 80%) | M87: 0.8
A88: 2 | B88: Standard Effic. Heat Pump - 7.5 HSPF2 | D88: http://www.rheem.com/products/heating_and_cooling/heat_pumps/ | G88: 2 | H88: Avg furnace, after 5/1/13 (83% AFUE) | I88: 0.83 | K88: 2 | L88: High Efficiency Furnace (AFUE 92%) | M88: 0.92
A89: 3 | B89: Energy Star Heat Pump - 7.8 HSPF2 | G89: 3 | H89: HE Furnace (85% AFUE) | I89: 0.85 | K89: 3 | L89: Ultra High Effic. Furnace (AFUE 97%) | M89: 0.97
A90: 4 | B90: High Efficiency Heat Pump - 9 HSPF2 | D90: http://www.horizonservicesinc.com/reference/tips-articles/ratings-explained | E90: http://www.lennox.com/products/heat-pumps/XP13/ | F90: http://www.lennox.com/products/heat-pumps/XP25/ | G90: 4 | H90: Standard boiler (84% AFUE) | I90: 0.84 | K90: 4 | L90: Standard Boiler (AFUE 82%) | M90: 0.82
G91: 5 | H91: Condensing boiler(92.8% AFUE) | I91: 0.928 | K91: 5 | L91: Condensing Boiler (AFUE 92%) | M91: 0.92
K92: 6 | L92: Wall Hung Boiler (AFUE 96%) | M92: 0.96
A93: C1 | B93: Natural Gas Water Heater Energy Factor | C93: UEF | K93: 7 | L93: Gas Heat Pump (COP 1.4) | M93: 1.4
A94: 1 | B94: Standard Tank: UEF = .58 | C94: 0.58
A95: 2 | B95: High Performing Tank: UEF = 0.68 | C95: 0.68 | E95: https://www.aosmithatlowes.com/products/water-heaters/gas-water-heaters/g12-cadt4040nv/ | H95: Oil Water Heater Energy Factor | I95: UEF | L95: Propane Water Heater Energy Factor | M95: UEF
A96: 3 | B96: Power Vent Tank: UEF = .70 | C96: 0.7 | E96: https://www.aosmithatlowes.com/products/water-heaters/gas-water-heaters/g6-pvt4050pv/ | G96: 1 | H96: Standard Tank: UEF = .54 | I96: 0.54 | K96: 1 | L96: Standard Tank: UEF = .58 | M96: 0.58
A97: 4 | B97: Direct Vent: UEF = 0.60 | C97: 0.6 | E97: https://www.aosmithatlowes.com/products/water-heaters/gas-water-heaters/g6-dvs4038nvl/ | G97: 2 | H97: High Efficiency Tank = .64 | I97: 0.64 | K97: 2 | L97: High Performing Tank: UEF = 0.68 | M97: 0.68
A98: 5 | B98: Condensing Tank: UEF = 0.9 | C98: 0.9 | E98: https://www.aosmithatlowes.com/products/water-heaters/gas-water-heaters/gc9-ps4050nv/ | K98: 3 | L98: Power Vent Tank: UEF = .70 | M98: 0.7
A99: 6 | B99: Tankless: UEF = 0.81 | C99: 0.81 | E99: https://www.aosmithatlowes.com/products/water-heaters/gas-tankless/gt15-510c-i/ | K99: 4 | L99: Direct Vent: UEF = 0.60 | M99: 0.6
A100: 7 | B100: Condensing Tankless: UEF = 0.95 | C100: 0.95 | E100: https://www.aosmithatlowes.com/products/water-heaters/gas-tankless/gt15thr-199x3/ | K100: 5 | L100: Condensing Tank: UEF = 0.9 | M100: 0.9
A101: 8 | B101: Gas Heat Pump: COP = 1.4 | C101: 1.4 | K101: 6 | L101: Tankless: UEF = 0.81 | M101: 0.81
K102: 7 | L102: Condensing Tankless: UEF = 0.95 | M102: 0.95
A103: C2 | B103: Electric Water Heater Enegy Factor | C103: UEF | K103: 8 | L103: Gas Heat Pump: COP = 1.4 | M103: 1.4
A104: 1 | B104: Standard: UEF = 0.92 | C104: 0.92 | E104: https://www.aosmithatlowes.com/products/water-heaters/electric-water-heaters/e6-40r38d-ttp/
A105: 2 | B105: High-Performing: UEF = 0.93 | C105: 0.93 | E105: https://www.aosmithatlowes.com/products/water-heaters/electric-water-heaters/eea12-40r55dvf/
A106: 3 | B106: Whole Home Electric Tankless:UE = .91 | C106: 0.91 | E106: https://www.aosmithatlowes.com/products/water-heaters/electric-tankless/r4mr-320e/
A107: 4 | B107: Elec. Heat Pump Water Heater:UEF=3.0 | C107: 3 | E107: https://www.aosmithatlowes.com/products/water-heaters/electric-water-heaters/hpv10-80h01dv/
A109: C3 | B109: Natural Gas Dryer Energy Factor
A110: 1 | B110: Standard Dryer (7lb load): CEF = 3.3
A112: C4 | B112: Electric Dryer Energy Factor
A113: 1 | B113: Standard Dryer (7lb load): CEF = 3.73
A115: 1 | B115: Use default NG rates | C115: 1 | D115: Use default electric rates | F115: 1 | G115: Use default oil rates | H115: 1 | I115: Use default propane rates
A116: 2 | B116: Enter my own NG rates | C116: 2 | D116: Enter my own electric rates | F116: 2 | G116: Enter my own oil rates | H116: 2 | I116: Enter my own propane rates
B118: State | D118: City | E118: Total Heating Load MMBtu | F118: ASHRAE Design Temp | I118: eGRID Subregion
A119: 1 | B119: AK | C119: =IF(B119=activestate,IF(B119=activestate,C118+1,1),0) -> 0 | D119: Anchorage | E119: 89.101272 | F119: -10 | G119: 1 | H119: =IF(ISERROR(VLOOKUP(1,$C119:$D$346,2,0)),"",VLOOKUP(1,$C119:$D$346,2,0)) ->  | I119: AKGD | J119: ASCC Alaska Grid
A120: 2 | B120: AK | C120: =IF(B120=activestate,IF(B120=activestate,C119+1,1),0) -> 0 | D120: Annette | E120: 52.489176 | F120: 17 | G120: 2 | H120: =IF(ISERROR(VLOOKUP(2,$C120:$D$346,2,0)),"",VLOOKUP(2,$C120:$D$346,2,0)) ->  | I120: AKMS | J120: ASCC Miscellaneous
A121: 3 | B121: AK | C121: 0 | D121: Bethel | E121: 130.026096 | F121: -24 | G121: 3 | H121: =IF(ISERROR(VLOOKUP(3,$C121:$D$346,2,0)),"",VLOOKUP(3,$C121:$D$346,2,0)) ->  | I121: AKMS | J121: ASCC Miscellaneous
A122: 4 | B122: AK | C122: 0 | D122: Big Delta | E122: 130.79268 | F122: -39 | G122: 4 | H122: =IF(ISERROR(VLOOKUP(4,$C122:$D$346,2,0)),"",VLOOKUP(4,$C122:$D$346,2,0)) ->  | I122: AKMS | J122: ASCC Miscellaneous
A123: 5 | B123: AK | C123: 0 | D123: Cold Bay | E123: 90.59724 | F123: 10 | G123: 5 | H123: =IF(ISERROR(VLOOKUP(5,$C123:$D$346,2,0)),"",VLOOKUP(5,$C123:$D$346,2,0)) ->  | I123: AKMS | J123: ASCC Miscellaneous
A124: 6 | B124: AK | C124: 0 | D124: Fairbanks | E124: 138.521424 | F124: -36 | G124: 6 | H124: =IF(ISERROR(VLOOKUP(6,$C124:$D$346,2,0)),"",VLOOKUP(6,$C124:$D$346,2,0)) ->  | I124: AKGD | J124: ASCC Alaska Grid
A125: 7 | B125: AK | C125: 0 | D125: Gulkana | E125: 125.008488 | F125: -39 | G125: 7 | H125: =IF(ISERROR(VLOOKUP(7,$C125:$D$346,2,0)),"",VLOOKUP(7,$C125:$D$346,2,0)) ->  | I125: AKGD | J125: ASCC Alaska Grid
A126: 8 | B126: AK | C126: 0 | D126: King Salmon | E126: 103.702728 | F126: -19 | G126: 8 | H126: =IF(ISERROR(VLOOKUP(8,$C126:$D$346,2,0)),"",VLOOKUP(8,$C126:$D$346,2,0)) ->  | I126: AKMS | J126: ASCC Miscellaneous
A127: 9 | B127: AK | C127: 0 | D127: Kodiak | E127: 71.07996 | F127: 12 | G127: 9 | H127: =IF(ISERROR(VLOOKUP(9,$C127:$D$346,2,0)),"",VLOOKUP(9,$C127:$D$346,2,0)) ->  | I127: AKMS | J127: ASCC Miscellaneous
A128: 10 | B128: AK | C128: 0 | D128: McGrath | E128: 135.155784 | F128: -42 | G128: 10 | H128: =IF(ISERROR(VLOOKUP(10,$C128:$D$346,2,0)),"",VLOOKUP(10,$C128:$D$346,2,0)) ->  | I128: AKMS | J128: ASCC Miscellaneous
A129: 11 | B129: AK | C129: 0 | D129: Nome | E129: 133.411728 | F129: -26 | G129: 11 | H129: =IF(ISERROR(VLOOKUP(11,$C129:$D$346,2,0)),"",VLOOKUP(11,$C129:$D$346,2,0)) ->  | I129: AKMS | J129: ASCC Miscellaneous
A130: 12 | B130: AK | C130: 0 | D130: St Paul Island | E130: 110.812152 | F130: 3 | G130: 12 | H130: =IF(ISERROR(VLOOKUP(12,$C130:$D$346,2,0)),"",VLOOKUP(12,$C130:$D$346,2,0)) ->  | I130: AKMS | J130: ASCC Miscellaneous
A131: 13 | B131: AK | C131: 0 | D131: Talkeetna | E131: 99.339048 | F131: -21 | G131: 13 | H131: =IF(ISERROR(VLOOKUP(13,$C131:$D$346,2,0)),"",VLOOKUP(13,$C131:$D$346,2,0)) ->  | I131: AKGD | J131: ASCC Alaska Grid
A132: 14 | B132: AK | C132: 0 | D132: Yakutat | E132: 76.19988 | F132: 2 | G132: 14 | H132: =IF(ISERROR(VLOOKUP(14,$C132:$D$346,2,0)),"",VLOOKUP(14,$C132:$D$346,2,0)) ->  | I132: AKMS | J132: ASCC Miscellaneous
A133: 15 | B133: AL | C133: 0 | D133: Birmingham | E133: 30.851112 | F133: 23 | G133: 15 | H133: =IF(ISERROR(VLOOKUP(15,$C133:$D$346,2,0)),"",VLOOKUP(15,$C133:$D$346,2,0)) ->  | I133: SRSO | J133: SERC South
A134: 16 | B134: AL | C134: 0 | D134: Huntsville | E134: 38.930304 | F134: 20 | I134: SRTV | J134: SERC Tennessee Valley
A135: 17 | B135: AL | C135: 0 | D135: Mobile | E135: 23.041128 | F135: 30 | I135: SRSO | J135: SERC South
A136: 18 | B136: AL | C136: 0 | D136: Montgomery | E136: 24.812712 | F136: 27 | I136: SRSO | J136: SERC South
A137: 19 | B137: AR | C137: 0 | D137: Fort Smith | E137: 35.974752 | F137: 19 | I137: SRMV | J137: SERC Mississippi Valley
A138: 20 | B138: AR | C138: 0 | D138: Little Rock | E138: 34.761552 | F138: 21 | I138: SRMV | J138: SERC Mississippi Valley
A139: 21 | B139: AZ | C139: 0 | D139: Flagstaff | E139: 45.181752 | F139: 8 | I139: AZNM | J139: WECC Southwest
A140: 22 | B140: AZ | C140: 0 | D140: Phoenix | E140: 16.992672 | F140: 37.5 | I140: AZNM | J140: WECC Southwest
A141: 23 | B141: AZ | C141: 0 | D141: Prescott | E141: 34.038288 | F141: 20 | I141: AZNM | J141: WECC Southwest
A142: 24 | B142: AZ | C142: 0 | D142: Tucson | E142: 19.630752 | F142: 34 | I142: AZNM | J142: WECC Southwest
A143: 25 | B143: CA | C143: 0 | D143: Arcata | E143: 23.696064 | F143: 32 | I143: CAMX | J143: WECC California
A144: 26 | B144: CA | C144: 0 | D144: Bakersfield | E144: 22.651848 | F144: 35 | I144: CAMX | J144: WECC California
A145: 27 | B145: CA | C145: 0 | D145: Daggett | E145: 20.38932 | F145: 32 | I145: CAMX | J145: WECC California
A146: 28 | B146: CA | C146: 0 | D146: Fresno | E146: 29.731992 | F146: 32 | I146: CAMX | J146: WECC California
A147: 29 | B147: CA | C147: 0 | D147: Long Beach | E147: 15.272472 | F147: 43 | I147: CAMX | J147: WECC California
A148: 30 | B148: CA | C148: 0 | D148: Los Angeles | E148: 13.93668 | F148: 45 | I148: CAMX | J148: WECC California
A149: 31 | B149: CA | C149: 0 | D149: Sacramento | E149: 31.808664 | F149: 33 | I149: CAMX | J149: WECC California
A150: 32 | B150: CA | C150: 0 | D150: San Diego | E150: 10.032456 | F150: 44 | I150: CAMX | J150: WECC California
A151: 33 | B151: CA | C151: 0 | D151: San Francisco | E151: 20.737296 | F151: 39 | I151: CAMX | J151: WECC California
A152: 34 | B152: CA | C152: 0 | D152: Santa Maria | E152: 20.624376 | F152: 35 | I152: CAMX | J152: WECC California
A153: 35 | B153: CO | C153: 0 | D153: Alamosa | E153: 57.752184 | F153: -11 | I153: RMPA | J153: WECC Rockies
A154: 36 | B154: CO | C154: 0 | D154: Co. Springs | E154: 46.8402 | F154: 4 | I154: RMPA | J154: WECC Rockies
A155: 37 | B155: CO | C155: 0 | D155: Eagle | E155: 60.644496 | F155: -7 | I155: RMPA | J155: WECC Rockies
A156: 38 | B156: CO | C156: 0 | D156: Pueblo | E156: 40.669824 | F156: 5 | I156: RMPA | J156: WECC Rockies
A157: 39 | B157: CT | C157: 0 | D157: Bridgeport | E157: 51.654816 | F157: 12 | I157: NEWE | J157: NPCC New England
A158: 40 | B158: CT | C158: 0 | D158: Hartford | E158: 53.078496 | F158: 6 | I158: NEWE | J158: NPCC New England
A159: 41 | B159: DC | C159: 0 | D159: Washington | E159: 45.549648 | F159: 20 | I159: RFCE | J159: RFC East
A160: 42 | B160: DE | C160: 0 | D160: Wilmington | E160: 49.679832 | F160: 14 | I160: RFCE | J160: RFC East
A161: 43 | B161: FL | C161: 0 | D161: Daytona Beach | E161: 13.380072 | F161: 37 | I161: FRCC | J161: FRCC All
A162: 44 | B162: FL | C162: 0 | D162: Jacksonville | E162: 17.972664 | F162: 35 | I162: FRCC | J162: FRCC All
A163: 45 | B163: FL | C163: 0 | D163: Key West | E163: 0.262632 | F163: 58 | I163: FRCC | J163: FRCC All
A164: 46 | B164: FL | C164: 0 | D164: Miami | E164: 0.937728 | F164: 49.5 | I164: FRCC | J164: FRCC All
A165: 47 | B165: FL | C165: 0 | D165: Tallahassee | E165: 21.52296 | F165: 28 | I165: FRCC | J165: FRCC All
A166: 48 | B166: FL | C166: 0 | D166: Tampa | E166: 11.346576 | F166: 40 | I166: FRCC | J166: FRCC All
A167: 49 | B167: FL | C167: 0 | D167: W. Palm Beach | E167: 1.188144 | F167: 47 | I167: FRCC | J167: FRCC All
A168: 50 | B168: GA | C168: 0 | D168: Athens | E168: 29.37432 | F168: 25 | I168: SRSO | J168: SERC South
A169: 51 | B169: GA | C169: 0 | D169: Atlanta | E169: 33.156744 | F169: 23 | I169: SRSO | J169: SERC South
A170: 52 | B170: GA | C170: 0 | D170: Augusta | E170: 30.426432 | F170: 25 | I170: SRSO | J170: SERC South
A171: 53 | B171: GA | C171: 0 | D171: Columbus | E171: 27.519264 | F171: 27 | I171: SRSO | J171: SERC South
A172: 54 | B172: GA | C172: 0 | D172: Macon | E172: 28.6422 | F172: 27 | I172: SRSO | J172: SERC South
A173: 55 | B173: GA | C173: 0 | D173: Savannah | E173: 24.5406 | F173: 29 | I173: SRSO | J173: SERC South
A174: 56 | B174: HI | C174: 0 | D174: Hilo | E174: 0.008232 | F174: 63 | I174: HIMS | J174: HICC Miscellaneous
A175: 57 | B175: HI | C175: 0 | D175: Honolulu | E175: 0.015072 | F175: 63 | I175: HIOA | J175: HICC Oahu
A176: 58 | B176: HI | C176: 0 | D176: Kahului | E176: 0.058512 | F176: 61 | I176: HIMS | J176: HICC Miscellaneous
A177: 59 | B177: HI | C177: 0 | D177: Lihue | E177: 0.0234 | F177: 62 | I177: HIMS | J177: HICC Miscellaneous
A178: 60 | B178: IA | C178: 0 | D178: Des Moines | E178: 59.738064 | F178: -4 | I178: MROW | J178: MRO West
A179: 61 | B179: IA | C179: 0 | D179: Mason City | E179: 77.02656 | F179: -10 | I179: MROW | J179: MRO West
A180: 62 | B180: IA | C180: 0 | D180: Sioux City | E180: 62.784408 | F180: -6 | I180: MROW | J180: MRO West
A181: 63 | B181: IA | C181: 0 | D181: Waterloo | E181: 66.531672 | F181: -9 | I181: MROW | J181: MRO West
A182: 64 | B182: ID | C182: 0 | D182: Boise | E182: 46.086192 | F182: 9 | I182: NWPP | J182: WECC Northwest
A183: 65 | B183: ID | C183: =IF(B183=activestate,IF(B183=activestate,C182+1,1),0) -> 0 | D183: Pocatello | E183: 57.145296 | F183: 0 | I183: NWPP | J183: WECC Northwest
A184: 66 | B184: IL | C184: 0 | D184: Chicago | E184: 59.997504 | F184: 1 | I184: RFCW | J184: RFC West
A185: 67 | B185: IL | C185: 0 | D185: Moline | E185: 58.896288 | F185: -3 | I185: MROW | J185: MRO West
A186: 68 | B186: IL | C186: 0 | D186: Peoria | E186: 57.96192 | F186: -1 | I186: SRMW | J186: SERC Midwest
A187: 69 | B187: IL | C187: 0 | D187: Rockford | E187: 62.672904 | F187: -4 | I187: RFCW | J187: RFC West
A188: 70 | B188: IL | C188: 0 | D188: Springfield | E188: 55.85424 | F188: 2 | I188: SRMW | J188: SERC Midwest
A189: 71 | B189: IN | C189: 0 | D189: Evansville | E189: 46.528464 | F189: 9 | I189: RFCW | J189: RFC West
A190: 72 | B190: IN | C190: 0 | D190: Fort Wayne | E190: 57.395928 | F190: 2 | I190: RFCW | J190: RFC West
A191: 73 | B191: IN | C191: 0 | D191: Indianapolis | E191: 50.910744 | F191: 3 | I191: RFCW | J191: RFC West
A192: 74 | B192: KS | C192: 0 | D192: Dodge City | E192: 50.542872 | F192: 6 | I192: SPNO | J192: SPP North
A193: 75 | B193: KS | C193: 0 | D193: Goodland | E193: 55.819536 | F193: 2 | I193: SPNO | J193: SPP North
A194: 76 | B194: KS | C194: 0 | D194: Topeka | E194: 52.701768 | F194: 4 | I194: SPNO | J194: SPP North
A195: 77 | B195: KS | C195: 0 | D195: Wichita | E195: 48.720312 | F195: 9 | I195: SPNO | J195: SPP North
A196: 78 | B196: KY | C196: 0 | D196: Covington | E196: 53.05164 | F196: 7 | I196: SRTV | J196: SERC Tennessee Valley
A197: 79 | B197: KY | C197: 0 | D197: Lexington | E197: 49.946568 | F197: 10 | I197: SRTV | J197: SERC Tennessee Valley
A198: 80 | B198: KY | C198: 0 | D198: Louisville | E198: 43.182936 | F198: 12 | I198: SRTV | J198: SERC Tennessee Valley
A199: 81 | B199: LA | C199: 0 | D199: Baton Rouge | E199: 20.404728 | F199: 30 | I199: SRMV | J199: SERC Mississippi Valley
A200: 82 | B200: LA | C200: 0 | D200: Lake Charles | E200: 22.615512 | F200: 32 | I200: SRMV | J200: SERC Mississippi Valley
A201: 83 | B201: LA | C201: 0 | D201: New Orleans | E201: 18.251856 | F201: 36.5 | I201: SRMV | J201: SERC Mississippi Valley
A202: 84 | B202: LA | C202: 0 | D202: Shreveport | E202: 26.41992 | F202: 26 | I202: SPSO | J202: SPP South
A203: 85 | B203: MA | C203: 0 | D203: Boston | E203: 52.874904 | F203: 12 | I203: NEWE | J203: NPCC New England
A204: 86 | B204: MA | C204: 0 | D204: Worcester | E204: 58.759152 | F204: 5 | I204: NEWE | J204: NPCC New England
A205: 87 | B205: MD | C205: 0 | D205: Baltimore | E205: 45.549648 | F205: 15 | I205: RFCE | J205: RFC East
A206: 88 | B206: ME | C206: 0 | D206: Caribou | E206: 82.709712 | F206: -10 | I206: NEWE | J206: NPCC New England
A207: 89 | B207: ME | C207: 0 | D207: Portland | E207: 61.914264 | F207: 2 | I207: NEWE | J207: NPCC New England
... 145 more rows

Sheet Heating Load
D1: Heat Load | E1: 2,000 sqft | F1: 3,000 sqft | G1: 4,000 sqft | H1: slope | I1: intercept | K1: Selected sqft
B2: =activestate -> US | C2: =LOOKUP(city,Lists!G119:G133,Lists!H119:H133) ->  | E2: =VLOOKUP(1,B4:E243,4,0) -> 49.46959526 | F2: =VLOOKUP(1,B4:F243,5,0) -> 65.263808 | G2: =VLOOKUP(1,B4:G243,6,0) -> 80.04382379 | H2: =SLOPE(E2:G2,homesize) -> 0.01528711426 | I2: =INTERCEPT(E2:G2,homesize) -> 19.06439956 | K2: =(sqft*H2)+I2 -> 49.63862809
B3: Active | C3: State | D3: City | E3: Total Heating Load MMBtu (2000 sqft) | F3: Total Heating Load MMBtu (3000 sqft) | G3: Total Heating Load MMBtu (4000 sqft)
A4: 1 | B4: =IF(C4=activestate,IF(D4=C$2,1,0),0) -> 0 | C4: AK | D4: Anchorage | E4: 89.101272 | F4: 117.440496 | G4: 144.550224
A5: 2 | B5: 0 | C5: AK | D5: Annette | E5: 52.489176 | F5: 68.8404 | G5: 84.332808
A6: 3 | B6: 0 | C6: AK | D6: Bethel | E6: 130.026096 | F6: 173.18316 | G6: 213.789072
A7: 4 | B7: 0 | C7: AK | D7: Big Delta | E7: 130.79268 | F7: 173.334624 | G7: 212.447664
A8: 5 | B8: 0 | C8: AK | D8: Cold Bay | E8: 90.59724 | F8: 119.390688 | G8: 145.48884
A9: 6 | B9: 0 | C9: AK | D9: Fairbanks | E9: 138.521424 | F9: 182.281032 | G9: 225.536592
A10: 7 | B10: 0 | C10: AK | D10: Gulkana | E10: 125.008488 | F10: 164.884896 | G10: 203.18772
A11: 8 | B11: 0 | C11: AK | D11: King Salmon | E11: 103.702728 | F11: 136.59804 | G11: 168.182472
A12: 9 | B12: 0 | C12: AK | D12: Kodiak | E12: 71.07996 | F12: 93.19812 | G12: 114.294336
A13: 10 | B13: 0 | C13: AK | D13: McGrath | E13: 135.155784 | F13: 177.431064 | G13: 219.128856
A14: 11 | B14: 0 | C14: AK | D14: Nome | E14: 133.411728 | F14: 176.02452 | G14: 214.98792
A15: 12 | B15: 0 | C15: AK | D15: St Paul Island | E15: 110.812152 | F15: 146.2098 | G15: 178.377672
A16: 13 | B16: 0 | C16: AK | D16: Talkeetna | E16: 99.339048 | F16: 130.988544 | G16: 159.904752
A17: 14 | B17: 0 | C17: AK | D17: Yakutat | E17: 76.19988 | F17: 99.960336 | G17: 121.440912
A18: 15 | B18: 0 | C18: AL | D18: Birmingham | E18: 30.851112 | F18: 41.528184 | G18: 51.583368
A19: 16 | B19: 0 | C19: AL | D19: Huntsville | E19: 38.930304 | F19: 52.201824 | G19: 64.708248
A20: 17 | B20: 0 | C20: AL | D20: Mobile | E20: 23.041128 | F20: 31.659312 | G20: 39.652392
A21: 18 | B21: 0 | C21: AL | D21: Montgomery | E21: 24.812712 | F21: 33.599904 | G21: 41.900832
A22: 19 | B22: 0 | C22: AR | D22: Fort Smith | E22: 35.974752 | F22: 48.692256 | G22: 60.457968
A23: 20 | B23: 0 | C23: AR | D23: Little Rock | E23: 34.761552 | F23: 47.041224 | G23: 58.397016
A24: 21 | B24: 0 | C24: AZ | D24: Flagstaff | E24: 45.181752 | F24: 58.582416 | G24: 71.048328
A25: 22 | B25: 0 | C25: AZ | D25: Phoenix | E25: 16.992672 | F25: 23.40288 | G25: 29.626272
A26: 23 | B26: 0 | C26: AZ | D26: Prescott | E26: 34.038288 | F26: 44.472576 | G26: 54.18348
A27: 24 | B27: 0 | C27: AZ | D27: Tucson | E27: 19.630752 | F27: 27.052224 | G27: 34.11636
A28: 25 | B28: 0 | C28: CA | D28: Arcata | E28: 23.696064 | F28: 30.755232 | G28: 37.187472
A29: 26 | B29: 0 | C29: CA | D29: Bakersfield | E29: 22.651848 | F29: 30.477024 | G29: 37.990704
A30: 27 | B30: 0 | C30: CA | D30: Daggett | E30: 20.38932 | F30: 27.812976 | G30: 35.17188
A31: 28 | B31: 0 | C31: CA | D31: Fresno | E31: 29.731992 | F31: 40.181976 | G31: 50.041176
A32: 29 | B32: 0 | C32: CA | D32: Long Beach | E32: 15.272472 | F32: 20.92428 | G32: 26.200944
A33: 30 | B33: 0 | C33: CA | D33: Los Angeles | E33: 13.93668 | F33: 19.008288 | G33: 23.703576
A34: 31 | B34: 0 | C34: CA | D34: Sacramento | E34: 31.808664 | F34: 43.276032 | G34: 53.853696
A35: 32 | B35: 0 | C35: CA | D35: San Diego | E35: 10.032456 | F35: 13.75152 | G35: 17.041464
A36: 33 | B36: 0 | C36: CA | D36: San Francisco | E36: 20.737296 | F36: 28.070304 | G36: 35.00904
A37: 34 | B37: 0 | C37: CA | D37: Santa Maria | E37: 20.624376 | F37: 28.069392 | G37: 35.035296
A38: 35 | B38: 0 | C38: CO | D38: Alamosa | E38: 57.752184 | F38: 75.125472 | G38: 90.952008
A39: 36 | B39: 0 | C39: CO | D39: Co. Springs | E39: 46.8402 | F39: 61.195848 | G39: 74.212704
A40: 37 | B40: 0 | C40: CO | D40: Eagle | E40: 60.644496 | F40: 78.518784 | G40: 95.173824
A41: 38 | B41: 0 | C41: CO | D41: Pueblo | E41: 40.669824 | F41: 53.5044 | G41: 65.200608
A42: 39 | B42: 0 | C42: CT | D42: Bridgeport | E42: 51.654816 | F42: 67.910928 | G42: 82.619352
A43: 40 | B43: 0 | C43: CT | D43: Hartford | E43: 53.078496 | F43: 69.798552 | G43: 84.937728
A44: 41 | B44: 0 | C44: DC | D44: Washington | E44: 45.549648 | F44: 59.9052 | G44: 72.905064
A45: 42 | B45: 0 | C45: DE | D45: Wilmington | E45: 49.679832 | F45: 65.261208 | G45: 79.368336
A46: 43 | B46: 0 | C46: FL | D46: Daytona Beach | E46: 13.380072 | F46: 18.462336 | G46: 23.266512
A47: 44 | B47: 0 | C47: FL | D47: Jacksonville | E47: 17.972664 | F47: 24.586296 | G47: 31.098984
A48: 45 | B48: 0 | C48: FL | D48: Key West | E48: 0.262632 | F48: 0.414456 | G48: 0.563448
A49: 46 | B49: 0 | C49: FL | D49: Miami | E49: 0.937728 | F49: 1.424424 | G49: 1.90248
A50: 47 | B50: 0 | C50: FL | D50: Tallahassee | E50: 21.52296 | F50: 29.286888 | G50: 36.802056
A51: 48 | B51: 0 | C51: FL | D51: Tampa | E51: 11.346576 | F51: 15.858096 | G51: 20.054712
A52: 49 | B52: 0 | C52: FL | D52: W. Palm Beach | E52: 1.188144 | F52: 1.724136 | G52: 2.242896
A53: 50 | B53: 0 | C53: GA | D53: Athens | E53: 29.37432 | F53: 39.4974 | G53: 49.029648
A54: 51 | B54: 0 | C54: GA | D54: Atlanta | E54: 33.156744 | F54: 44.839032 | G54: 55.615416
A55: 52 | B55: 0 | C55: GA | D55: Augusta | E55: 30.426432 | F55: 41.0286 | G55: 51.048264
A56: 53 | B56: 0 | C56: GA | D56: Columbus | E56: 27.519264 | F56: 37.378728 | G56: 46.49532
A57: 54 | B57: 0 | C57: GA | D57: Macon | E57: 28.6422 | F57: 38.698728 | G57: 48.193464
A58: 55 | B58: 0 | C58: GA | D58: Savannah | E58: 24.5406 | F58: 33.677928 | G58: 42.16296
A59: 56 | B59: 0 | C59: HI | D59: Hilo | E59: 0.008232 | F59: 0.022056 | G59: 0.03804
A60: 57 | B60: 0 | C60: HI | D60: Honolulu | E60: 0.015072 | F60: 0.026688 | G60: 0.039456
A61: 58 | B61: 0 | C61: HI | D61: Kahului | E61: 0.058512 | F61: 0.103104 | G61: 0.150696
A62: 59 | B62: 0 | C62: HI | D62: Lihue | E62: 0.0234 | F62: 0.048072 | G62: 0.075792
A63: 60 | B63: 0 | C63: IA | D63: Des Moines | E63: 59.738064 | F63: 78.667512 | G63: 96.881544
A64: 61 | B64: 0 | C64: IA | D64: Mason City | E64: 77.02656 | F64: 101.545992 | G64: 123.885336
A65: 62 | B65: 0 | C65: IA | D65: Sioux City | E65: 62.784408 | F65: 82.765704 | G65: 100.961208
A66: 63 | B66: 0 | C66: IA | D66: Waterloo | E66: 66.531672 | F66: 87.806184 | G66: 107.2032
A67: 64 | B67: 0 | C67: ID | D67: Boise | E67: 46.086192 | F67: 60.494712 | G67: 73.516632
A68: 65 | B68: =IF(C68=activestate,IF(D68=C$2,1,0),0) -> 0 | C68: ID | D68: Pocatello | E68: 57.145296 | F68: 74.902728 | G68: 91.854696
A69: 66 | B69: 0 | C69: IL | D69: Chicago | E69: 59.997504 | F69: 79.013616 | G69: 97.280688
A70: 67 | B70: 0 | C70: IL | D70: Moline | E70: 58.896288 | F70: 77.77728 | G70: 94.974192
A71: 68 | B71: 0 | C71: IL | D71: Peoria | E71: 57.96192 | F71: 76.44528 | G71: 93.27324
A72: 69 | B72: 0 | C72: IL | D72: Rockford | E72: 62.672904 | F72: 81.792264 | G72: 100.657272
A73: 70 | B73: 0 | C73: IL | D73: Springfield | E73: 55.85424 | F73: 73.70676 | G73: 90.908616
A74: 71 | B74: 0 | C74: IN | D74: Evansville | E74: 46.528464 | F74: 61.5078 | G74: 75.110472
A75: 72 | B75: 0 | C75: IN | D75: Fort Wayne | E75: 57.395928 | F75: 75.658224 | G75: 93.191232
A76: 73 | B76: 0 | C76: IN | D76: Indianapolis | E76: 50.910744 | F76: 67.16496 | G76: 81.916128
A77: 74 | B77: 0 | C77: KS | D77: Dodge City | E77: 50.542872 | F77: 66.469632 | G77: 81.782112
A78: 75 | B78: 0 | C78: KS | D78: Goodland | E78: 55.819536 | F78: 73.282104 | G78: 90.103464
A79: 76 | B79: 0 | C79: KS | D79: Topeka | E79: 52.701768 | F79: 69.551568 | G79: 84.901752
A80: 77 | B80: 0 | C80: KS | D80: Wichita | E80: 48.720312 | F80: 64.212168 | G80: 79.09596
A81: 78 | B81: 0 | C81: KY | D81: Covington | E81: 53.05164 | F81: 69.967608 | G81: 85.322448
A82: 79 | B82: 0 | C82: KY | D82: Lexington | E82: 49.946568 | F82: 65.290488 | G82: 79.544424
A83: 80 | B83: 0 | C83: KY | D83: Louisville | E83: 43.182936 | F83: 56.519064 | G83: 68.9232
A84: 81 | B84: 0 | C84: LA | D84: Baton Rouge | E84: 20.404728 | F84: 27.875736 | G84: 34.936968
A85: 82 | B85: 0 | C85: LA | D85: Lake Charles | E85: 22.615512 | F85: 30.8328 | G85: 38.60364
A86: 83 | B86: 0 | C86: LA | D86: New Orleans | E86: 18.251856 | F86: 24.923904 | G86: 31.21968
A87: 84 | B87: 0 | C87: LA | D87: Shreveport | E87: 26.41992 | F87: 35.666928 | G87: 44.773344
A88: 85 | B88: 0 | C88: MA | D88: Boston | E88: 52.874904 | F88: 69.311832 | G88: 85.090488
A89: 86 | B89: 0 | C89: MA | D89: Worcester | E89: 58.759152 | F89: 76.856904 | G89: 94.162296
A90: 87 | B90: 0 | C90: MD | D90: Baltimore | E90: 45.549648 | F90: 59.9052 | G90: 72.905064
A91: 88 | B91: 0 | C91: ME | D91: Caribou | E91: 82.709712 | F91: 108.770256 | G91: 132.43428
A92: 89 | B92: 0 | C92: ME | D92: Portland | E92: 61.914264 | F92: 81.157488 | G92: 98.565888
A93: 90 | B93: 0 | C93: MI | D93: Alpena | E93: 72.614976 | F93: 95.548008 | G93: 116.375952
A94: 91 | B94: 0 | C94: MI | D94: Detroit | E94: 59.892984 | F94: 78.903624 | G94: 97.12308
A95: 92 | B95: 0 | C95: MI | D95: Flint | E95: 63.521712 | F95: 83.056992 | G95: 102.29592
A96: 93 | B96: 0 | C96: MI | D96: Grand Rapids | E96: 64.766832 | F96: 84.672936 | G96: 104.272824
A97: 94 | B97: 0 | C97: MI | D97: Lansing | E97: 64.708632 | F97: 84.684768 | G97: 104.377224
A98: 95 | B98: 0 | C98: MI | D98: Muskegon | E98: 65.559288 | F98: 85.834512 | G98: 105.830112
A99: 96 | B99: 0 | C99: MI | D99: Sault St Marie | E99: 77.073288 | F99: 101.444184 | G99: 124.798656
A100: 97 | B100: 0 | C100: MI | D100: Traverse City | E100: 69.983136 | F100: 92.303832 | G100: 113.721408
A101: 98 | B101: 0 | C101: MN | D101: Duluth | E101: 89.604408 | F101: 117.895296 | G101: 143.625288
A102: 99 | B102: 0 | C102: MN | D102: Int. Falls | E102: 92.40708 | F102: 121.72908 | G102: 148.443432
A103: 100 | B103: 0 | C103: MN | D103: Minneapolis | E103: 72.71928 | F103: 95.778936 | G103: 116.760072
A104: 101 | B104: 0 | C104: MN | D104: Rochester | E104: 77.707344 | F104: 103.255608 | G104: 125.90976
A105: 102 | B105: 0 | C105: MN | D105: Saint Cloud | E105: 79.47876 | F105: 104.509536 | G105: 127.273152
A106: 103 | B106: 0 | C106: MO | D106: Columbia | E106: 52.221552 | F106: 68.251656 | G106: 84.018216
A107: 104 | B107: 0 | C107: MO | D107: Kansas City | E107: 51.011232 | F107: 67.174872 | G107: 81.854664
A108: 105 | B108: 0 | C108: MO | D108: Springfield | E108: 45.755136 | F108: 60.359712 | G108: 74.342016
A109: 106 | B109: 0 | C109: MO | D109: St. Louis | E109: 51.243288 | F109: 67.718688 | G109: 82.711008
A110: 107 | B110: 0 | C110: MS | D110: Jackson | E110: 28.009152 | F110: 37.544352 | G110: 46.740216
A111: 108 | B111: 0 | C111: MS | D111: Meridian | E111: 26.646048 | F111: 35.79924 | G111: 44.636568
A112: 109 | B112: 0 | C112: MT | D112: Billings | E112: 60.364008 | F112: 79.090272 | G112: 97.031616
A113: 110 | B113: 0 | C113: MT | D113: Cut Bank | E113: 68.61528 | F113: 90.506496 | G113: 109.828296
A114: 111 | B114: 0 | C114: MT | D114: Glasgow | E114: 82.57488 | F114: 109.559184 | G114: 133.530288
A115: 112 | B115: 0 | C115: MT | D115: Great Falls | E115: 67.40808 | F115: 88.372488 | G115: 108.46728
A116: 113 | B116: 0 | C116: MT | D116: Helena | E116: 62.569776 | F116: 81.30588 | G116: 99.628248
A117: 114 | B117: 0 | C117: MT | D117: Kalispell | E117: 65.484168 | F117: 85.294776 | G117: 104.614992
A118: 115 | B118: 0 | C118: MT | D118: Lewistown | E118: 68.752416 | F118: 89.297832 | G118: 109.434384
A119: 116 | B119: 0 | C119: MT | D119: Miles City | E119: 68.669544 | F119: 89.49228 | G119: 110.02128
A120: 117 | B120: 0 | C120: MT | D120: Missoula | E120: 65.729064 | F120: 85.729944 | G120: 104.278728
A121: 118 | B121: 0 | C121: NC | D121: Asheville | E121: 40.406664 | F121: 52.797528 | G121: 64.302624
A122: 119 | B122: 0 | C122: NC | D122: Cape Hatteras | E122: 29.096952 | F122: 39.274008 | G122: 49.04688
A123: 120 | B123: 0 | C123: NC | D123: Charlotte | E123: 34.469328 | F123: 46.203168 | G123: 57.254448
A124: 121 | B124: 0 | C124: NC | D124: Greensboro | E124: 36.449856 | F124: 47.642592 | G124: 58.04736
A125: 122 | B125: 0 | C125: NC | D125: Raleigh | E125: 31.301688 | F125: 41.06292 | G125: 50.147568
A126: 123 | B126: 0 | C126: NC | D126: Wilmington | E126: 29.195112 | F126: 39.530088 | G126: 49.068
A127: 124 | B127: 0 | C127: ND | D127: Bismarck | E127: 79.301928 | F127: 104.479992 | G127: 127.413312
A128: 125 | B128: 0 | C128: ND | D128: Fargo | E128: 86.61192 | F128: 114.305424 | G128: 141.061992
A129: 126 | B129: 0 | C129: ND | D129: Minot | E129: 87.0258 | F129: 114.840288 | G129: 140.234712
A130: 127 | B130: 0 | C130: NE | D130: Grand Island | E130: 56.035536 | F130: 73.7682 | G130: 90.877944
A131: 128 | B131: 0 | C131: NE | D131: Norfolk | E131: 65.198304 | F131: 86.054112 | G131: 105.087744
A132: 129 | B132: =IF(C132=activestate,IF(D132=C$2,1,0),0) -> 0 | C132: NE | D132: North Platte | E132: 56.944872 | F132: 74.916768 | G132: 92.222016
A133: 130 | B133: 0 | C133: NE | D133: Omaha | E133: 52.580976 | F133: 69.366624 | G133: 84.650376
A134: 131 | B134: 0 | C134: NE | D134: Scottsbluff | E134: 52.205976 | F134: 68.563704 | G134: 83.415072
A135: 132 | B135: 0 | C135: NH | D135: Concord | E135: 64.254648 | F135: 84.529176 | G135: 102.91884
A136: 133 | B136: 0 | C136: NJ | D136: Atlantic City | E136: 48.910776 | F136: 63.787776 | G136: 77.599752
A137: 134 | B137: 0 | C137: NJ | D137: Newark | E137: 50.784192 | F137: 66.273384 | G137: 80.64348
A138: 135 | B138: 0 | C138: NM | D138: Albuquerque | E138: 34.750392 | F138: 45.321936 | G138: 55.157592
A139: 136 | B139: 0 | C139: NM | D139: Tucumcari | E139: 33.27048 | F139: 43.535088 | G139: 53.1006
A140: 137 | B140: 0 | C140: NV | D140: Elko | E140: 51.826392 | F140: 67.353912 | G140: 82.573392
A141: 138 | B141: 0 | C141: NV | D141: Ely | E141: 57.210144 | F141: 74.616024 | G141: 90.395904
A142: 139 | B142: 0 | C142: NV | D142: Las Vegas | E142: 23.665008 | F142: 32.103168 | G142: 40.07724
A143: 140 | B143: 0 | C143: NV | D143: Reno | E143: 39.436776 | F143: 51.990504 | G143: 63.403152
A144: 141 | B144: 0 | C144: NV | D144: Tonopah | E144: 39.820272 | F144: 51.779568 | G144: 63.579216
A145: 142 | B145: 0 | C145: NV | D145: Winnemucca | E145: 46.267176 | F145: 60.77004 | G145: 73.943904
A146: 143 | B146: 0 | C146: NY | D146: Albany | E146: 62.246448 | F146: 81.171552 | G146: 99.798048
A147: 144 | B147: 0 | C147: NY | D147: Binghamton | E147: 64.550088 | F147: 84.055224 | G147: 103.197768
A148: 145 | B148: 0 | C148: NY | D148: Buffalo | E148: 62.513232 | F148: 82.4226 | G148: 100.490064
A149: 146 | B149: 0 | C149: NY | D149: Massena | E149: 76.433856 | F149: 99.817968 | G149: 122.881632
A150: 147 | B150: 0 | C150: NY | D150: New York City | E150: 50.005872 | F150: 65.646168 | G150: 79.77108
A151: 148 | B151: 0 | C151: NY | D151: Rochester | E151: 61.04748 | F151: 80.502288 | G151: 99.164496
A152: 149 | B152: 0 | C152: NY | D152: Syracuse | E152: 62.843136 | F152: 82.881096 | G152: 101.09016
A153: 150 | B153: 0 | C153: OH | D153: Akron | E153: 54.35544 | F153: 71.61084 | G153: 88.146384
A154: 151 | B154: 0 | C154: OH | D154: Cleveland | E154: 56.729904 | F154: 74.830992 | G154: 91.282776
A155: 152 | B155: 0 | C155: OH | D155: Columbus | E155: 51.573984 | F155: 68.097768 | G155: 83.11344
A156: 153 | B156: 0 | C156: OH | D156: Dayton | E156: 54.34524 | F156: 71.683104 | G156: 87.425904
A157: 154 | B157: 0 | C157: OH | D157: Mansfield | E157: 59.117112 | F157: 77.395944 | G157: 95.39352
A158: 155 | B158: 0 | C158: OH | D158: Toledo | E158: 60.366096 | F158: 78.909888 | G158: 97.18008
A159: 156 | B159: 0 | C159: OH | D159: Youngstown | E159: 61.321056 | F159: 80.93244 | G159: 99.731784
A160: 157 | B160: 0 | C160: OK | D160: Oklahoma City | E160: 42.896736 | F160: 57.74916 | G160: 72.07068
A161: 158 | B161: 0 | C161: OK | D161: Tulsa | E161: 42.857064 | F161: 57.778752 | G161: 72.157584
A162: 159 | B162: 0 | C162: OR | D162: Astoria | E162: 31.410264 | F162: 41.092896 | G162: 49.675584
A163: 160 | B163: 0 | C163: OR | D163: Eugene | E163: 34.74024 | F163: 45.394224 | G163: 55.205472
A164: 161 | B164: 0 | C164: OR | D164: Medford | E164: 39.751632 | F164: 52.113192 | G164: 62.982744
A165: 162 | B165: 0 | C165: OR | D165: North Bend | E165: 23.013168 | F165: 29.792592 | G165: 36.351384
A166: 163 | B166: 0 | C166: OR | D166: Pendleton | E166: 44.462688 | F166: 58.489128 | G166: 71.163408
A167: 164 | B167: 0 | C167: OR | D167: Portland | E167: 36.322704 | F167: 47.93436 | G167: 58.376304
A168: 165 | B168: 0 | C168: OR | D168: Redmond | E168: 48.436368 | F168: 63.033744 | G168: 76.588104
A169: 166 | B169: 0 | C169: OR | D169: Salem | E169: 36.586944 | F169: 47.818896 | G169: 58.197552
A170: 167 | B170: 0 | C170: PA | D170: Allentown | E170: 55.455456 | F170: 72.332928 | G170: 88.04208
A171: 168 | B171: 0 | C171: PA | D171: Bradford | E171: 69.942816 | F171: 91.289424 | G171: 111.153864
A172: 169 | B172: 0 | C172: PA | D172: Erie | E172: 65.967216 | F172: 87.129648 | G172: 106.388736
A173: 170 | B173: 0 | C173: PA | D173: Harrisburg | E173: 46.221384 | F173: 60.797568 | G173: 74.009544
A174: 171 | B174: 0 | C174: PA | D174: Philadelphia | E174: 49.990296 | F174: 65.709312 | G174: 79.937208
A175: 172 | B175: 0 | C175: PA | D175: Pittsburgh | E175: 53.840616 | F175: 71.028792 | G175: 86.639712
A176: 173 | B176: 0 | C176: PA | D176: Wilkes-Barre | E176: 57.530184 | F176: 75.66948 | G176: 92.096352
A177: 174 | B177: 0 | C177: PA | D177: Williamsport | E177: 52.247664 | F177: 68.80368 | G177: 83.805168
A178: 175 | B178: 0 | C178: RI | D178: Providence | E178: 52.454328 | F178: 68.788176 | G178: 84.457056
A179: 176 | B179: 0 | C179: SC | D179: Charleston | E179: 25.988616 | F179: 35.100816 | G179: 44.079168
A180: 177 | B180: 0 | C180: SC | D180: Columbia | E180: 28.496976 | F180: 38.48784 | G180: 47.531064
A181: 178 | B181: 0 | C181: SC | D181: Greenville | E181: 34.38528 | F181: 46.103568 | G181: 57.129264
A182: 179 | B182: 0 | C182: SD | D182: Huron | E182: 76.01976 | F182: 100.111368 | G182: 123.328488
A183: 180 | B183: 0 | C183: SD | D183: Pierre | E183: 65.18208 | F183: 85.813152 | G183: 104.579592
A184: 181 | B184: 0 | C184: SD | D184: Rapid City | E184: 60.722712 | F184: 79.839552 | G184: 97.21332
A185: 182 | B185: 0 | C185: SD | D185: Sioux Falls | E185: 71.137704 | F185: 93.619272 | G185: 115.24908
A186: 183 | B186: 0 | C186: TN | D186: Bristol | E186: 37.724736 | F186: 49.360752 | G186: 60.140952
A187: 184 | B187: 0 | C187: TN | D187: Chattanooga | E187: 31.879704 | F187: 41.85696 | G187: 51.126792
A188: 185 | B188: 0 | C188: TN | D188: Knoxville | E188: 33.765312 | F188: 43.902792 | G188: 53.554728
A189: 186 | B189: 0 | C189: TN | D189: Memphis | E189: 34.006944 | F189: 45.567312 | G189: 56.949024
A190: 187 | B190: 0 | C190: TN | D190: Nashville | E190: 37.762392 | F190: 49.559136 | G190: 60.57096
A191: 188 | B191: 0 | C191: TX | D191: Abilene | E191: 32.092656 | F191: 43.524048 | G191: 54.560544
A192: 189 | B192: 0 | C192: TX | D192: Amarillo | E192: 44.216856 | F192: 58.174152 | G192: 71.564136
A193: 190 | B193: 0 | C193: TX | D193: Austin | E193: 21.523728 | F193: 29.338368 | G193: 36.73152
A194: 191 | B194: 0 | C194: TX | D194: Brownsville | E194: 13.14408 | F194: 18.1194 | G194: 23.012904
A195: 192 | B195: 0 | C195: TX | D195: Corpus Christi | E195: 15.357168 | F195: 21.275064 | G195: 26.757072
A196: 193 | B196: =IF(C196=activestate,IF(D196=C$2,1,0),0) -> 0 | C196: TX | D196: El Paso | E196: 24.154536 | F196: 33.019056 | G196: 41.25336
A197: 194 | B197: 0 | C197: TX | D197: Fort Worth | E197: 27.312576 | F197: 36.776664 | G197: 46.092144
A198: 195 | B198: 0 | C198: TX | D198: Houston | E198: 19.807152 | F198: 27.063744 | G198: 33.936648
A199: 196 | B199: 0 | C199: TX | D199: Lubbock | E199: 37.668168 | F199: 50.846232 | G199: 63.038184
A200: 197 | B200: 0 | C200: TX | D200: Lufkin | E200: 24.164928 | F200: 33.010584 | G200: 41.393088
... 43 more rows

Sheet Adjusted HSPF
D1: HSPF | E1: 7.5 HSPF2 | F1: 7.8 HSPF2 | G1: 9 HSPF2
B2: =activestate -> US | C2: =LOOKUP(city,Lists!G119:G133,Lists!H119:H133) ->  | E2: =VLOOKUP(1,B7:E246,4,0) -> 6.727818505 | F2: =VLOOKUP(1,B7:F246,5,0) -> 6.894931954 | G2: =VLOOKUP(1,B7:G246,6,0) -> 7.668939199
J3: *values in row 6 are calculated HSPF based on HSPF2 values in row 1
E4: Adjusted HSPF when
E5: rated HSPF is:
C6: State | D6: City | E6: 8.8 | F6: 9.1 | G6: 10.6 | H6: ASHRAE Design Temp | K6: HSPF2 | L6: 7.5 | M6: 7.8 | N6: 9
A7: 1 | B7: =IF(C7=activestate,IF(D7='Heating Load'!C$2,1,0),0) -> 0 | C7: AK | D7: Anchorage | E7: =+E$6-(E$6*((0.1392+(-0.00846*$H7)+(-0.0001074*$H7^2)+(0.0228*E$6)))) -> 5.15944 | F7: =+F$6-(F$6*((0.1392+(-0.00846*$H7)+(-0.0001074*$H7^2)+(0.0228*F$6)))) -> 5.273086 | G7: 5.779756 | H7: -10 | K7: HSPF | L7: =L6/0.85 -> 8.823529412 | M7: =M6/0.85 -> 9.176470588 | N7: 10.58823529
A8: 2 | B8: =IF(C8=activestate,IF(D8='Heating Load'!C$2,1,0),0) -> 0 | C8: AK | D8: Annette | E8: 7.34816368 | F8: 7.53642526 | G8: 8.41617316 | H8: 17
A9: 3 | B9: =IF(C9=activestate,IF(D9='Heating Load'!C$2,1,0),0) -> 0 | C9: AK | D9: Bethel | E9: 4.56704512 | F9: 4.66049584 | G9: 5.06618944 | H9: -24
A10: 4 | B10: =IF(C10=activestate,IF(D10='Heating Load'!C$2,1,0),0) -> 0 | C10: AK | D10: Big Delta | E10: 4.34346352 | F10: 4.42929214 | G10: 4.79687524 | H10: -39
A11: 5 | B11: =IF(C11=activestate,IF(D11='Heating Load'!C$2,1,0),0) -> 0 | C11: AK | D11: Cold Bay | E11: 6.6484 | F11: 6.812806 | G11: 7.573276 | H11: 10
A12: 6 | B12: =IF(C12=activestate,IF(D12='Heating Load'!C$2,1,0),0) -> 0 | C12: AK | D12: Fairbanks | E12: 4.35415552 | F12: 4.44034864 | G12: 4.80975424 | H12: -36
A13: 7 | B13: =IF(C13=activestate,IF(D13='Heating Load'!C$2,1,0),0) -> 0 | C13: AK | D13: Gulkana | E13: 4.34346352 | F13: 4.42929214 | G13: 4.79687524 | H13: -39
A14: 8 | B14: =IF(C14=activestate,IF(D14='Heating Load'!C$2,1,0),0) -> 0 | C14: AK | D14: King Salmon | E14: 4.73608432 | F14: 4.83529774 | G14: 5.26980484 | H14: -19
A15: 9 | B15: =IF(C15=activestate,IF(D15='Heating Load'!C$2,1,0),0) -> 0 | C15: AK | D15: Kodiak | E15: 6.83888128 | F15: 7.00978096 | G15: 7.80271936 | H15: 12
A16: 10 | B16: =IF(C16=activestate,IF(D16='Heating Load'!C$2,1,0),0) -> 0 | C16: AK | D16: McGrath | E16: 4.34978368 | F16: 4.43582776 | G16: 4.80448816 | H16: -42
A17: 11 | B17: =IF(C17=activestate,IF(D17='Heating Load'!C$2,1,0),0) -> 0 | C17: AK | D17: Nome | E17: 4.51266112 | F17: 4.60425784 | G17: 5.00068144 | H17: -26
A18: 12 | B18: =IF(C18=activestate,IF(D18='Heating Load'!C$2,1,0),0) -> 0 | C18: AK | D18: St Paul Island | E18: 6.04125808 | F18: 6.18496606 | G18: 6.84194596 | H18: 3
A19: 13 | B19: =IF(C19=activestate,IF(D19='Heating Load'!C$2,1,0),0) -> 0 | C19: AK | D19: Talkeetna | E19: 4.66279792 | F19: 4.75951294 | G19: 5.18152804 | H19: -21
A20: 14 | B20: =IF(C20=activestate,IF(D20='Heating Load'!C$2,1,0),0) -> 0 | C20: AK | D20: Yakutat | E20: 5.96208448 | F20: 6.10309336 | G20: 6.74657776 | H20: 2
A21: 15 | B21: =IF(C21=activestate,IF(D21='Heating Load'!C$2,1,0),0) -> 0 | C21: AL | D21: Birmingham | E21: 8.02168048 | F21: 8.23290286 | G21: 9.22745476 | H21: 23
A22: 16 | B22: =IF(C22=activestate,IF(D22='Heating Load'!C$2,1,0),0) -> 0 | C22: AL | D22: Huntsville | E22: 7.676416 | F22: 7.875868 | G22: 8.811568 | H22: 20
A23: 17 | B23: =IF(C23=activestate,IF(D23='Heating Load'!C$2,1,0),0) -> 0 | C23: AL | D23: Mobile | E23: 8.893456 | F23: =+F$6-(F$6*((0.1392+(-0.00846*$H23)+(-0.0001074*$H23^2)+(0.0228*F$6)))) -> 9.134398 | G23: =+G$6-(G$6*((0.1392+(-0.00846*$H23)+(-0.0001074*$H23^2)+(0.0228*G$6)))) -> 10.277548 | H23: 30
A24: 18 | B24: =IF(C24=activestate,IF(D24='Heating Load'!C$2,1,0),0) -> 0 | C24: AL | D24: Montgomery | E24: =+E$6-(E$6*((0.1392+(-0.00846*$H24)+(-0.0001074*$H24^2)+(0.0228*E$6)))) -> 8.50849648 | F24: 8.73631486 | G24: 9.81384676 | H24: 27
A25: 19 | B25: =IF(C25=activestate,IF(D25='Heating Load'!C$2,1,0),0) -> 0 | C25: AR | D25: Fort Smith | E25: 7.56510832 | F25: 7.76076574 | G25: 8.67749284 | H25: 19
A26: 20 | B26: =IF(C26=activestate,IF(D26='Heating Load'!C$2,1,0),0) -> 0 | C26: AR | D26: Little Rock | E26: 7.78961392 | F26: 7.99292494 | G26: 8.94792004 | H26: 21
A27: 21 | B27: =IF(C27=activestate,IF(D27='Heating Load'!C$2,1,0),0) -> 0 | C27: AZ | D27: Flagstaff | E27: 6.46547968 | F27: 6.62364976 | G27: 7.35294016 | H27: 8
A28: 22 | B28: =IF(C28=activestate,IF(D28='Heating Load'!C$2,1,0),0) -> 0 | C28: AZ | D28: Phoenix | E28: 9.930283 | F28: 10.20657137 | G28: 11.52645325 | H28: 37.5
A29: 23 | B29: =IF(C29=activestate,IF(D29='Heating Load'!C$2,1,0),0) -> 0 | C29: AZ | D29: Prescott | E29: 7.676416 | F29: 7.875868 | G29: 8.811568 | H29: 20
A30: 24 | B30: =IF(C30=activestate,IF(D30='Heating Load'!C$2,1,0),0) -> 0 | C30: AZ | D30: Tucson | E30: 9.43319872 | F30: 9.69254104 | G30: 10.92769264 | H30: 34
A31: 25 | B31: =IF(C31=activestate,IF(D31='Heating Load'!C$2,1,0),0) -> 0 | C31: CA | D31: Arcata | E31: 9.15954688 | F31: 9.40956016 | G31: 10.59806656 | H31: 32
A32: 26 | B32: =IF(C32=activestate,IF(D32='Heating Load'!C$2,1,0),0) -> 0 | C32: CA | D32: Bakersfield | E32: 9.57286 | F32: 9.8369635 | G32: 11.095921 | H32: 35
A33: 27 | B33: =IF(C33=activestate,IF(D33='Heating Load'!C$2,1,0),0) -> 0 | C33: CA | D33: Daggett | E33: 9.15954688 | F33: 9.40956016 | G33: 10.59806656 | H33: 32
A34: 28 | B34: =IF(C34=activestate,IF(D34='Heating Load'!C$2,1,0),0) -> 0 | C34: CA | D34: Fresno | E34: 9.15954688 | F34: 9.40956016 | G34: 10.59806656 | H34: 32
A35: 29 | B35: =IF(C35=activestate,IF(D35='Heating Load'!C$2,1,0),0) -> 0 | C35: CA | D35: Long Beach | E35: 10.75819888 | F35: 11.06271166 | G35: 12.52371556 | H35: 43
A36: 30 | B36: =IF(C36=activestate,IF(D36='Heating Load'!C$2,1,0),0) -> 0 | C36: CA | D36: Los Angeles | E36: 11.073436 | F36: 11.3886955 | G36: 12.903433 | H36: 45
A37: 31 | B37: =IF(C37=activestate,IF(D37='Heating Load'!C$2,1,0),0) -> 0 | C37: CA | D37: Sacramento | E37: 9.29542768 | F37: 9.55007326 | G37: 10.76174116 | H37: 33
A38: 32 | B38: =IF(C38=activestate,IF(D38='Heating Load'!C$2,1,0),0) -> 0 | C38: CA | D38: San Diego | E38: 10.91487232 | F38: 11.22472624 | G38: 12.71243584 | H38: 44
A39: 33 | B39: =IF(C39=activestate,IF(D39='Heating Load'!C$2,1,0),0) -> 0 | C39: CA | D39: San Francisco | E39: 10.15040752 | F39: 10.43420014 | G39: 11.79160324 | H39: 39
A40: 34 | B40: =IF(C40=activestate,IF(D40='Heating Load'!C$2,1,0),0) -> 0 | C40: CA | D40: Santa Maria | E40: 9.57286 | F40: 9.8369635 | G40: 11.095921 | H40: 35
A41: 35 | B41: =IF(C41=activestate,IF(D41='Heating Load'!C$2,1,0),0) -> 0 | C41: CO | D41: Alamosa | E41: 5.10483952 | F41: 5.21662414 | G41: 5.71398724 | H41: -11
A42: 36 | B42: =IF(C42=activestate,IF(D42='Heating Load'!C$2,1,0),0) -> 0 | C42: CO | D42: Co. Springs | E42: 6.12232192 | F42: 6.26879344 | G42: 6.93959104 | H42: 4
A43: 37 | B43: =IF(C43=activestate,IF(D43='Heating Load'!C$2,1,0),0) -> 0 | C43: CO | D43: Eagle | E43: 5.33458288 | F43: 5.45419966 | G43: 5.99072356 | H43: -7
A44: 38 | B44: =IF(C44=activestate,IF(D44='Heating Load'!C$2,1,0),0) -> 0 | C44: CO | D44: Pueblo | E44: 6.205276 | F44: 6.3545755 | G44: 7.039513 | H44: 5
A45: 39 | B45: =IF(C45=activestate,IF(D45='Heating Load'!C$2,1,0),0) -> 0 | C45: CT | D45: Bridgeport | E45: 6.83888128 | F45: 7.00978096 | G45: 7.80271936 | H45: 12
A46: 40 | B46: =IF(C46=activestate,IF(D46='Heating Load'!C$2,1,0),0) -> 0 | C46: CT | D46: Hartford | E46: 6.29012032 | F46: 6.44231224 | G46: 7.14171184 | H46: 6
A47: 41 | B47: =IF(C47=activestate,IF(D47='Heating Load'!C$2,1,0),0) -> 0 | C47: DC | D47: Washington | E47: 7.676416 | F47: 7.875868 | G47: 8.811568 | H47: 20
A48: 42 | B48: =IF(C48=activestate,IF(D48='Heating Load'!C$2,1,0),0) -> 0 | C48: DE | D48: Wilmington | E48: 7.03692352 | F48: 7.21457464 | G48: 8.04127024 | H48: 14
A49: 43 | B49: =IF(C49=activestate,IF(D49='Heating Load'!C$2,1,0),0) -> 0 | C49: FL | D49: Daytona Beach | E49: 9.85785328 | F49: 10.13167246 | G49: 11.43920836 | H49: 37
A50: 44 | B50: =IF(C50=activestate,IF(D50='Heating Load'!C$2,1,0),0) -> 0 | C50: FL | D50: Jacksonville | E50: 9.57286 | F50: 9.8369635 | G50: 11.095921 | H50: 35
A51: 45 | B51: =IF(C51=activestate,IF(D51='Heating Load'!C$2,1,0),0) -> 0 | C51: FL | D51: Key West | E51: 13.30677568 | F51: 13.69817176 | G51: 15.59359216 | H51: 58
A52: 46 | B52: =IF(C52=activestate,IF(D52='Heating Load'!C$2,1,0),0) -> 0 | C52: FL | D52: Miami | E52: 11.81036428 | F52: 12.15074633 | G52: 13.79109661 | H52: 49.5
A53: 47 | B53: =IF(C53=activestate,IF(D53='Heating Load'!C$2,1,0),0) -> 0 | C53: FL | D53: Tallahassee | E53: 8.63492608 | F53: 8.86705456 | G53: 9.96613696 | H53: 28
A54: 48 | B54: =IF(C54=activestate,IF(D54='Heating Load'!C$2,1,0),0) -> 0 | C54: FL | D54: Tampa | E54: 10.29952 | F54: 10.588396 | G54: 11.971216 | H54: 40
A55: 49 | B55: =IF(C55=activestate,IF(D55='Heating Load'!C$2,1,0),0) -> 0 | C55: FL | D55: W. Palm Beach | E55: 11.39623408 | F55: 11.72249806 | G55: 13.29225796 | H55: 47
A56: 50 | B56: =IF(C56=activestate,IF(D56='Heating Load'!C$2,1,0),0) -> 0 | C56: GA | D56: Athens | E56: 8.261308 | F56: 8.4806995 | G56: 9.516097 | H56: 25
A57: 51 | B57: =IF(C57=activestate,IF(D57='Heating Load'!C$2,1,0),0) -> 0 | C57: GA | D57: Atlanta | E57: 8.02168048 | F57: 8.23290286 | G57: 9.22745476 | H57: 23
A58: 52 | B58: =IF(C58=activestate,IF(D58='Heating Load'!C$2,1,0),0) -> 0 | C58: GA | D58: Augusta | E58: 8.261308 | F58: 8.4806995 | G58: 9.516097 | H58: 25
A59: 53 | B59: =IF(C59=activestate,IF(D59='Heating Load'!C$2,1,0),0) -> 0 | C59: GA | D59: Columbus | E59: 8.50849648 | F59: 8.73631486 | G59: 9.81384676 | H59: 27
A60: 54 | B60: =IF(C60=activestate,IF(D60='Heating Load'!C$2,1,0),0) -> 0 | C60: GA | D60: Macon | E60: 8.50849648 | F60: 8.73631486 | G60: 9.81384676 | H60: 27
A61: 55 | B61: =IF(C61=activestate,IF(D61='Heating Load'!C$2,1,0),0) -> 0 | C61: GA | D61: Savannah | E61: 8.76324592 | F61: 8.99974894 | G61: 10.12070404 | H61: 29
A62: 56 | B62: =IF(C62=activestate,IF(D62='Heating Load'!C$2,1,0),0) -> 0 | C62: HI | D62: Hilo | E62: 14.25081328 | F62: 14.67439246 | G62: 16.73072836 | H62: 63
A63: 57 | B63: =IF(C63=activestate,IF(D63='Heating Load'!C$2,1,0),0) -> 0 | C63: HI | D63: Honolulu | E63: 14.25081328 | F63: 14.67439246 | G63: 16.73072836 | H63: 63
A64: 58 | B64: =IF(C64=activestate,IF(D64='Heating Load'!C$2,1,0),0) -> 0 | C64: HI | D64: Kahului | E64: 13.86752752 | F64: 14.27804014 | G64: 16.26904324 | H64: 61
A65: 59 | B65: =IF(C65=activestate,IF(D65='Heating Load'!C$2,1,0),0) -> 0 | C65: HI | D65: Lihue | E65: 14.05822528 | F65: 14.47523896 | G65: 16.49874736 | H65: 62
A66: 60 | B66: =IF(C66=activestate,IF(D66='Heating Load'!C$2,1,0),0) -> 0 | C66: IA | D66: Des Moines | E66: 5.52673792 | F66: 5.65290544 | G66: 6.22218304 | H66: -4
A67: 61 | B67: =IF(C67=activestate,IF(D67='Heating Load'!C$2,1,0),0) -> 0 | C67: IA | D67: Mason City | E67: 5.15944 | F67: 5.273086 | G67: 5.779756 | H67: -10
A68: 62 | B68: =IF(C68=activestate,IF(D68='Heating Load'!C$2,1,0),0) -> 0 | C68: IA | D68: Sioux City | E68: 5.39674432 | F68: 5.51848024 | G68: 6.06559984 | H68: -6
A69: 63 | B69: =IF(C69=activestate,IF(D69='Heating Load'!C$2,1,0),0) -> 0 | C69: IA | D69: Waterloo | E69: 5.21593072 | F69: 5.33150254 | G69: 5.84780164 | H69: -9
A70: 64 | B70: =IF(C70=activestate,IF(D70='Heating Load'!C$2,1,0),0) -> 0 | C70: ID | D70: Boise | E70: 6.55599472 | F70: 6.71725054 | G70: 7.46196964 | H70: 9
A71: 65 | B71: =IF(C71=activestate,IF(D71='Heating Load'!C$2,1,0),0) -> 0 | C71: ID | D71: Pocatello | E71: 5.809408 | F71: 5.945212 | G71: 6.562672 | H71: 0
A72: 66 | B72: =IF(C72=activestate,IF(D72='Heating Load'!C$2,1,0),0) -> 0 | C72: IL | D72: Chicago | E72: 5.88480112 | F72: 6.02317534 | G72: 6.65348644 | H72: 1
A73: 67 | B73: =IF(C73=activestate,IF(D73='Heating Load'!C$2,1,0),0) -> 0 | C73: IL | D73: Moline | E73: 5.59457008 | F73: 5.72305006 | G73: 6.30388996 | H73: -3
A74: 68 | B74: =IF(C74=activestate,IF(D74='Heating Load'!C$2,1,0),0) -> 0 | C74: IL | D74: Peoria | E74: 5.73590512 | F74: 5.86920334 | G74: 6.47413444 | H74: -1
A75: 69 | B75: =IF(C75=activestate,IF(D75='Heating Load'!C$2,1,0),0) -> 0 | C75: IL | D75: Rockford | E75: 5.52673792 | F75: 5.65290544 | G75: 6.22218304 | H75: -4
A76: 70 | B76: =IF(C76=activestate,IF(D76='Heating Load'!C$2,1,0),0) -> 0 | C76: IL | D76: Springfield | E76: 5.96208448 | F76: 6.10309336 | G76: 6.74657776 | H76: 2
A77: 71 | B77: =IF(C77=activestate,IF(D77='Heating Load'!C$2,1,0),0) -> 0 | C77: IN | D77: Evansville | E77: 6.55599472 | F77: 6.71725054 | G77: 7.46196964 | H77: 9
A78: 72 | B78: =IF(C78=activestate,IF(D78='Heating Load'!C$2,1,0),0) -> 0 | C78: IN | D78: Fort Wayne | E78: 5.96208448 | F78: 6.10309336 | G78: 6.74657776 | H78: 2
A79: 73 | B79: =IF(C79=activestate,IF(D79='Heating Load'!C$2,1,0),0) -> 0 | C79: IN | D79: Indianapolis | E79: 6.04125808 | F79: 6.18496606 | G79: 6.84194596 | H79: 3
A80: 74 | B80: =IF(C80=activestate,IF(D80='Heating Load'!C$2,1,0),0) -> 0 | C80: KS | D80: Dodge City | E80: 6.29012032 | F80: 6.44231224 | G80: 7.14171184 | H80: 6
A81: 75 | B81: =IF(C81=activestate,IF(D81='Heating Load'!C$2,1,0),0) -> 0 | C81: KS | D81: Goodland | E81: 5.96208448 | F81: 6.10309336 | G81: 6.74657776 | H81: 2
A82: 76 | B82: =IF(C82=activestate,IF(D82='Heating Load'!C$2,1,0),0) -> 0 | C82: KS | D82: Topeka | E82: 6.12232192 | F82: 6.26879344 | G82: 6.93959104 | H82: 4
A83: 77 | B83: =IF(C83=activestate,IF(D83='Heating Load'!C$2,1,0),0) -> 0 | C83: KS | D83: Wichita | E83: 6.55599472 | F83: 6.71725054 | G83: 7.46196964 | H83: 9
A84: 78 | B84: =IF(C84=activestate,IF(D84='Heating Load'!C$2,1,0),0) -> 0 | C84: KY | D84: Covington | E84: 6.37685488 | F84: 6.53200366 | G84: 7.24618756 | H84: 7
A85: 79 | B85: =IF(C85=activestate,IF(D85='Heating Load'!C$2,1,0),0) -> 0 | C85: KY | D85: Lexington | E85: 6.6484 | F85: 6.812806 | G85: 7.573276 | H85: 10
A86: 80 | B86: =IF(C86=activestate,IF(D86='Heating Load'!C$2,1,0),0) -> 0 | C86: KY | D86: Louisville | E86: 6.83888128 | F86: 7.00978096 | G86: 7.80271936 | H86: 12
A87: 81 | B87: =IF(C87=activestate,IF(D87='Heating Load'!C$2,1,0),0) -> 0 | C87: LA | D87: Baton Rouge | E87: 8.893456 | F87: 9.134398 | G87: 10.277548 | H87: 30
A88: 82 | B88: =IF(C88=activestate,IF(D88='Heating Load'!C$2,1,0),0) -> 0 | C88: LA | D88: Lake Charles | E88: =+E$6-(E$6*((0.1392+(-0.00846*$H88)+(-0.0001074*$H88^2)+(0.0228*E$6)))) -> 9.15954688 | F88: 9.40956016 | G88: 10.59806656 | H88: 32
A89: 83 | B89: =IF(C89=activestate,IF(D89='Heating Load'!C$2,1,0),0) -> 0 | C89: LA | D89: New Orleans | E89: 9.78589612 | F89: 10.05726221 | G89: 11.35253269 | H89: 36.5
A90: 84 | B90: =IF(C90=activestate,IF(D90='Heating Load'!C$2,1,0),0) -> 0 | C90: LA | D90: Shreveport | E90: 8.38395712 | F90: 8.60752984 | G90: 9.66383344 | H90: 26
A91: 85 | B91: =IF(C91=activestate,IF(D91='Heating Load'!C$2,1,0),0) -> 0 | C91: MA | D91: Boston | E91: 6.83888128 | F91: 7.00978096 | G91: 7.80271936 | H91: 12
A92: 86 | B92: =IF(C92=activestate,IF(D92='Heating Load'!C$2,1,0),0) -> 0 | C92: MA | D92: Worcester | E92: 6.205276 | F92: 6.3545755 | G92: 7.039513 | H92: 5
A93: 87 | B93: =IF(C93=activestate,IF(D93='Heating Load'!C$2,1,0),0) -> 0 | C93: MD | D93: Baltimore | E93: 7.13878 | F93: 7.3199035 | G93: 8.163961 | H93: 15
A94: 88 | B94: =IF(C94=activestate,IF(D94='Heating Load'!C$2,1,0),0) -> 0 | C94: ME | D94: Caribou | E94: 5.15944 | F94: 5.273086 | G94: 5.779756 | H94: -10
A95: 89 | B95: =IF(C95=activestate,IF(D95='Heating Load'!C$2,1,0),0) -> 0 | C95: ME | D95: Portland | E95: 5.96208448 | F95: 6.10309336 | G95: 6.74657776 | H95: 2
A96: 90 | B96: =IF(C96=activestate,IF(D96='Heating Load'!C$2,1,0),0) -> 0 | C96: MI | D96: Alpena | E96: 5.73590512 | F96: 5.86920334 | G96: 6.47413444 | H96: -1
A97: 91 | B97: =IF(C97=activestate,IF(D97='Heating Load'!C$2,1,0),0) -> 0 | C97: MI | D97: Detroit | E97: 6.205276 | F97: 6.3545755 | G97: 7.039513 | H97: 5
A98: 92 | B98: =IF(C98=activestate,IF(D98='Heating Load'!C$2,1,0),0) -> 0 | C98: MI | D98: Flint | E98: 6.04125808 | F98: 6.18496606 | G98: 6.84194596 | H98: 3
A99: 93 | B99: =IF(C99=activestate,IF(D99='Heating Load'!C$2,1,0),0) -> 0 | C99: MI | D99: Grand Rapids | E99: 6.205276 | F99: 6.3545755 | G99: 7.039513 | H99: 5
A100: 94 | B100: =IF(C100=activestate,IF(D100='Heating Load'!C$2,1,0),0) -> 0 | C100: MI | D100: Lansing | E100: 5.96208448 | F100: 6.10309336 | G100: 6.74657776 | H100: 2
A101: 95 | B101: =IF(C101=activestate,IF(D101='Heating Load'!C$2,1,0),0) -> 0 | C101: MI | D101: Muskegon | E101: 6.37685488 | F101: 6.53200366 | G101: 7.24618756 | H101: 7
A102: 96 | B102: =IF(C102=activestate,IF(D102='Heating Load'!C$2,1,0),0) -> 0 | C102: MI | D102: Sault St Marie | E102: 5.33458288 | F102: 5.45419966 | G102: 5.99072356 | H102: -7
A103: 97 | B103: =IF(C103=activestate,IF(D103='Heating Load'!C$2,1,0),0) -> 0 | C103: MI | D103: Traverse City | E103: 5.96208448 | F103: 6.10309336 | G103: 6.74657776 | H103: 2
A104: 98 | B104: =IF(C104=activestate,IF(D104='Heating Load'!C$2,1,0),0) -> 0 | C104: MN | D104: Duluth | E104: 4.86019072 | F104: 4.96363504 | G104: 5.41929664 | H104: -16
A105: 99 | B105: =IF(C105=activestate,IF(D105='Heating Load'!C$2,1,0),0) -> 0 | C105: MN | D105: Int. Falls | E105: 4.59707248 | F105: 4.69154686 | G105: 5.10235876 | H105: -23
A106: 100 | B106: =IF(C106=activestate,IF(D106='Heating Load'!C$2,1,0),0) -> 0 | C106: MN | D106: Minneapolis | E106: 5.10483952 | F106: 5.21662414 | G106: 5.71398724 | H106: -11
A107: 101 | B107: =IF(C107=activestate,IF(D107='Heating Load'!C$2,1,0),0) -> 0 | C107: MN | D107: Rochester | E107: 5.05212928 | F107: 5.16211696 | G107: 5.65049536 | H107: -12
A108: 102 | B108: =IF(C108=activestate,IF(D108='Heating Load'!C$2,1,0),0) -> 0 | C108: MN | D108: Saint Cloud | E108: 4.95237952 | F108: 5.05896664 | G108: 5.53034224 | H108: -14
A109: 103 | B109: =IF(C109=activestate,IF(D109='Heating Load'!C$2,1,0),0) -> 0 | C109: MO | D109: Columbia | E109: 6.205276 | F109: 6.3545755 | G109: 7.039513 | H109: 5
A110: 104 | B110: =IF(C110=activestate,IF(D110='Heating Load'!C$2,1,0),0) -> 0 | C110: MO | D110: Kansas City | E110: 6.12232192 | F110: 6.26879344 | G110: 6.93959104 | H110: 4
A111: 105 | B111: =IF(C111=activestate,IF(D111='Heating Load'!C$2,1,0),0) -> 0 | C111: MO | D111: Springfield | E111: 6.55599472 | F111: 6.71725054 | G111: 7.46196964 | H111: 9
A112: 106 | B112: =IF(C112=activestate,IF(D112='Heating Load'!C$2,1,0),0) -> 0 | C112: MO | D112: St. Louis | E112: 6.46547968 | F112: 6.62364976 | G112: 7.35294016 | H112: 8
A113: 107 | B113: =IF(C113=activestate,IF(D113='Heating Load'!C$2,1,0),0) -> 0 | C113: MS | D113: Jackson | E113: 8.261308 | F113: 8.4806995 | G113: 9.516097 | H113: 25
A114: 108 | B114: =IF(C114=activestate,IF(D114='Heating Load'!C$2,1,0),0) -> 0 | C114: MS | D114: Meridian | E114: 8.261308 | F114: 8.4806995 | G114: 9.516097 | H114: 25
A115: 109 | B115: =IF(C115=activestate,IF(D115='Heating Load'!C$2,1,0),0) -> 0 | C115: MT | D115: Billings | E115: 5.33458288 | F115: 5.45419966 | G115: 5.99072356 | H115: -7
A116: 110 | B116: =IF(C116=activestate,IF(D116='Heating Load'!C$2,1,0),0) -> 0 | C116: MT | D116: Cut Bank | E116: 4.86019072 | F116: 4.96363504 | G116: 5.41929664 | H116: -16
A117: 111 | B117: =IF(C117=activestate,IF(D117='Heating Load'!C$2,1,0),0) -> 0 | C117: MT | D117: Glasgow | E117: 4.81693168 | F117: 4.91890126 | G117: 5.36718916 | H117: -17
A118: 112 | B118: =IF(C118=activestate,IF(D118='Heating Load'!C$2,1,0),0) -> 0 | C118: MT | D118: Great Falls | E118: 5.05212928 | F118: 5.16211696 | G118: 5.65049536 | H118: -12
A119: 113 | B119: =IF(C119=activestate,IF(D119='Heating Load'!C$2,1,0),0) -> 0 | C119: MT | D119: Helena | E119: 5.15944 | F119: 5.273086 | G119: 5.779756 | H119: -10
A120: 114 | B120: =IF(C120=activestate,IF(D120='Heating Load'!C$2,1,0),0) -> 0 | C120: MT | D120: Kalispell | E120: 5.59457008 | F120: 5.72305006 | G120: 6.30388996 | H120: -3
A121: 115 | B121: =IF(C121=activestate,IF(D121='Heating Load'!C$2,1,0),0) -> 0 | C121: MT | D121: Lewistown | E121: 5.05212928 | F121: 5.16211696 | G121: 5.65049536 | H121: -12
A122: 116 | B122: =IF(C122=activestate,IF(D122='Heating Load'!C$2,1,0),0) -> 0 | C122: MT | D122: Miles City | E122: 5.00130928 | F122: 5.10956446 | G122: 5.58928036 | H122: -13
A123: 117 | B123: =IF(C123=activestate,IF(D123='Heating Load'!C$2,1,0),0) -> 0 | C123: MT | D123: Missoula | E123: 5.73590512 | F123: 5.86920334 | G123: 6.47413444 | H123: -1
A124: 118 | B124: =IF(C124=activestate,IF(D124='Heating Load'!C$2,1,0),0) -> 0 | C124: NC | D124: Asheville | E124: 7.24252672 | F124: 7.42718704 | G124: 8.28892864 | H124: 16
A125: 119 | B125: =IF(C125=activestate,IF(D125='Heating Load'!C$2,1,0),0) -> 0 | C125: NC | D125: Cape Hatteras | E125: 8.76324592 | F125: 8.99974894 | G125: 10.12070404 | H125: 29
A126: 120 | B126: =IF(C126=activestate,IF(D126='Heating Load'!C$2,1,0),0) -> 0 | C126: NC | D126: Charlotte | E126: 8.02168048 | F126: 8.23290286 | G126: 9.22745476 | H126: 23
A127: 121 | B127: =IF(C127=activestate,IF(D127='Heating Load'!C$2,1,0),0) -> 0 | C127: NC | D127: Greensboro | E127: 7.56510832 | F127: 7.76076574 | G127: 8.67749284 | H127: 19
A128: 122 | B128: =IF(C128=activestate,IF(D128='Heating Load'!C$2,1,0),0) -> 0 | C128: NC | D128: Raleigh | E128: 7.676416 | F128: 7.875868 | G128: 8.811568 | H128: 20
A129: 123 | B129: =IF(C129=activestate,IF(D129='Heating Load'!C$2,1,0),0) -> 0 | C129: NC | D129: Wilmington | E129: 8.50849648 | F129: 8.73631486 | G129: 9.81384676 | H129: 27
A130: 124 | B130: =IF(C130=activestate,IF(D130='Heating Load'!C$2,1,0),0) -> 0 | C130: ND | D130: Bismarck | E130: 4.86019072 | F130: 4.96363504 | G130: 5.41929664 | H130: -16
A131: 125 | B131: =IF(C131=activestate,IF(D131='Heating Load'!C$2,1,0),0) -> 0 | C131: ND | D131: Fargo | E131: 4.81693168 | F131: 4.91890126 | G131: 5.36718916 | H131: -17
A132: 126 | B132: =IF(C132=activestate,IF(D132='Heating Load'!C$2,1,0),0) -> 0 | C132: ND | D132: Minot | E132: 4.86019072 | F132: 4.96363504 | G132: 5.41929664 | H132: -16
A133: 127 | B133: =IF(C133=activestate,IF(D133='Heating Load'!C$2,1,0),0) -> 0 | C133: NE | D133: Grand Island | E133: 5.66429248 | F133: 5.79514936 | G133: 6.38787376 | H133: -2
A134: 128 | B134: =IF(C134=activestate,IF(D134='Heating Load'!C$2,1,0),0) -> 0 | C134: NE | D134: Norfolk | E134: 5.460796 | F134: 5.5847155 | G134: 6.142753 | H134: -5
A135: 129 | B135: =IF(C135=activestate,IF(D135='Heating Load'!C$2,1,0),0) -> 0 | C135: NE | D135: North Platte | E135: 5.52673792 | F135: 5.65290544 | G135: 6.22218304 | H135: -4
A136: 130 | B136: =IF(C136=activestate,IF(D136='Heating Load'!C$2,1,0),0) -> 0 | C136: NE | D136: Omaha | E136: 5.66429248 | F136: 5.79514936 | G136: 6.38787376 | H136: -2
A137: 131 | B137: =IF(C137=activestate,IF(D137='Heating Load'!C$2,1,0),0) -> 0 | C137: NE | D137: Scottsbluff | E137: 5.59457008 | F137: 5.72305006 | G137: 6.30388996 | H137: -3
A138: 132 | B138: =IF(C138=activestate,IF(D138='Heating Load'!C$2,1,0),0) -> 0 | C138: NH | D138: Concord | E138: 5.66429248 | F138: 5.79514936 | G138: 6.38787376 | H138: -2
A139: 133 | B139: =IF(C139=activestate,IF(D139='Heating Load'!C$2,1,0),0) -> 0 | C139: NJ | D139: Atlantic City | E139: 6.93695728 | F139: 7.11120046 | G139: 7.92085636 | H139: 13
A140: 134 | B140: =IF(C140=activestate,IF(D140='Heating Load'!C$2,1,0),0) -> 0 | C140: NJ | D140: Newark | E140: 7.03692352 | F140: 7.21457464 | G140: 8.04127024 | H140: 14
A141: 135 | B141: =IF(C141=activestate,IF(D141='Heating Load'!C$2,1,0),0) -> 0 | C141: NM | D141: Albuquerque | E141: 7.45569088 | F141: 7.64761816 | G141: 8.54569456 | H141: 18
A142: 136 | B142: =IF(C142=activestate,IF(D142='Heating Load'!C$2,1,0),0) -> 0 | C142: NM | D142: Tucumcari | E142: 7.13878 | F142: 7.3199035 | G142: 8.163961 | H142: 15
A143: 137 | B143: =IF(C143=activestate,IF(D143='Heating Load'!C$2,1,0),0) -> 0 | C143: NV | D143: Elko | E143: 5.88480112 | F143: 6.02317534 | G143: 6.65348644 | H143: 1
A144: 138 | B144: =IF(C144=activestate,IF(D144='Heating Load'!C$2,1,0),0) -> 0 | C144: NV | D144: Ely | E144: 5.809408 | F144: 5.945212 | G144: 6.562672 | H144: 0
A145: 139 | B145: =IF(C145=activestate,IF(D145='Heating Load'!C$2,1,0),0) -> 0 | C145: NV | D145: Las Vegas | E145: 8.893456 | F145: 9.134398 | G145: 10.277548 | H145: 30
A146: 140 | B146: =IF(C146=activestate,IF(D146='Heating Load'!C$2,1,0),0) -> 0 | C146: NV | D146: Reno | E146: 6.93695728 | F146: 7.11120046 | G146: 7.92085636 | H146: 13
A147: 141 | B147: =IF(C147=activestate,IF(D147='Heating Load'!C$2,1,0),0) -> 0 | C147: NV | D147: Tonopah | E147: 6.93695728 | F147: 7.11120046 | G147: 7.92085636 | H147: 13
A148: 142 | B148: =IF(C148=activestate,IF(D148='Heating Load'!C$2,1,0),0) -> 0 | C148: NV | D148: Winnemucca | E148: 6.37685488 | F148: 6.53200366 | G148: 7.24618756 | H148: 7
A149: 143 | B149: =IF(C149=activestate,IF(D149='Heating Load'!C$2,1,0),0) -> 0 | C149: NY | D149: Albany | E149: 5.66429248 | F149: 5.79514936 | G149: 6.38787376 | H149: -2
A150: 144 | B150: =IF(C150=activestate,IF(D150='Heating Load'!C$2,1,0),0) -> 0 | C150: NY | D150: Binghamton | E150: 5.96208448 | F150: 6.10309336 | G150: 6.74657776 | H150: 2
A151: 145 | B151: =IF(C151=activestate,IF(D151='Heating Load'!C$2,1,0),0) -> 0 | C151: NY | D151: Buffalo | E151: 6.205276 | F151: 6.3545755 | G151: 7.039513 | H151: 5
A152: 146 | B152: =IF(C152=activestate,IF(D152='Heating Load'!C$2,1,0),0) -> 0 | C152: NY | D152: Massena | E152: =+E$6-(E$6*((0.1392+(-0.00846*$H152)+(-0.0001074*$H152^2)+(0.0228*E$6)))) -> 5.15944 | F152: 5.273086 | G152: 5.779756 | H152: -10
A153: 147 | B153: =IF(C153=activestate,IF(D153='Heating Load'!C$2,1,0),0) -> 0 | C153: NY | D153: New York City | E153: 7.24252672 | F153: 7.42718704 | G153: 8.28892864 | H153: 16
A154: 148 | B154: =IF(C154=activestate,IF(D154='Heating Load'!C$2,1,0),0) -> 0 | C154: NY | D154: Rochester | E154: 6.205276 | F154: 6.3545755 | G154: 7.039513 | H154: 5
A155: 149 | B155: =IF(C155=activestate,IF(D155='Heating Load'!C$2,1,0),0) -> 0 | C155: NY | D155: Syracuse | E155: 5.96208448 | F155: 6.10309336 | G155: 6.74657776 | H155: 2
A156: 150 | B156: =IF(C156=activestate,IF(D156='Heating Load'!C$2,1,0),0) -> 0 | C156: OH | D156: Akron | E156: 6.205276 | F156: 6.3545755 | G156: 7.039513 | H156: 5
A157: 151 | B157: =IF(C157=activestate,IF(D157='Heating Load'!C$2,1,0),0) -> 0 | C157: OH | D157: Cleveland | E157: 6.29012032 | F157: 6.44231224 | G157: 7.14171184 | H157: 6
A158: 152 | B158: =IF(C158=activestate,IF(D158='Heating Load'!C$2,1,0),0) -> 0 | C158: OH | D158: Columbus | E158: 6.46547968 | F158: 6.62364976 | G158: 7.35294016 | H158: 8
A159: 153 | B159: =IF(C159=activestate,IF(D159='Heating Load'!C$2,1,0),0) -> 0 | C159: OH | D159: Dayton | E159: 6.33325132 | F159: 6.486913615 | G159: 7.19366509 | H159: 6.5
A160: 154 | B160: =IF(C160=activestate,IF(D160='Heating Load'!C$2,1,0),0) -> 0 | C160: OH | D160: Mansfield | E160: 6.12232192 | F160: 6.26879344 | G160: 6.93959104 | H160: 4
A161: 155 | B161: =IF(C161=activestate,IF(D161='Heating Load'!C$2,1,0),0) -> 0 | C161: OH | D161: Toledo | E161: 6.04125808 | F161: 6.18496606 | G161: 6.84194596 | H161: 3
A162: 156 | B162: =IF(C162=activestate,IF(D162='Heating Load'!C$2,1,0),0) -> 0 | C162: OH | D162: Youngstown | E162: 6.12232192 | F162: 6.26879344 | G162: 6.93959104 | H162: 4
A163: 157 | B163: =IF(C163=activestate,IF(D163='Heating Load'!C$2,1,0),0) -> 0 | C163: OK | D163: Oklahoma City | E163: 7.24252672 | F163: 7.42718704 | G163: 8.28892864 | H163: 16
A164: 158 | B164: =IF(C164=activestate,IF(D164='Heating Load'!C$2,1,0),0) -> 0 | C164: OK | D164: Tulsa | E164: 7.03692352 | F164: 7.21457464 | G164: 8.04127024 | H164: 14
A165: 159 | B165: =IF(C165=activestate,IF(D165='Heating Load'!C$2,1,0),0) -> 0 | C165: OR | D165: Astoria | E165: 8.76324592 | F165: 8.99974894 | G165: 10.12070404 | H165: 29
A166: 160 | B166: =IF(C166=activestate,IF(D166='Heating Load'!C$2,1,0),0) -> 0 | C166: OR | D166: Eugene | E166: 8.38395712 | F166: 8.60752984 | G166: 9.66383344 | H166: 26
A167: 161 | B167: =IF(C167=activestate,IF(D167='Heating Load'!C$2,1,0),0) -> 0 | C167: OR | D167: Medford | E167: 8.14054912 | F167: 8.35582384 | G167: 9.37063744 | H167: 24
A168: 162 | B168: =IF(C168=activestate,IF(D168='Heating Load'!C$2,1,0),0) -> 0 | C168: OR | D168: North Bend | E168: 9.15954688 | F168: 9.40956016 | G168: 10.59806656 | H168: 32
A169: 163 | B169: =IF(C169=activestate,IF(D169='Heating Load'!C$2,1,0),0) -> 0 | C169: OR | D169: Pendleton | E169: 6.74269552 | F169: 6.91031614 | G169: 7.68685924 | H169: 11
A170: 164 | B170: =IF(C170=activestate,IF(D170='Heating Load'!C$2,1,0),0) -> 0 | C170: OR | D170: Portland | E170: 8.50849648 | F170: 8.73631486 | G170: 9.81384676 | H170: 27
A171: 165 | B171: =IF(C171=activestate,IF(D171='Heating Load'!C$2,1,0),0) -> 0 | C171: OR | D171: Redmond | E171: 6.55599472 | F171: 6.71725054 | G171: 7.46196964 | H171: 9
A172: 166 | B172: =IF(C172=activestate,IF(D172='Heating Load'!C$2,1,0),0) -> 0 | C172: OR | D172: Salem | E172: 8.261308 | F172: 8.4806995 | G172: 9.516097 | H172: 25
A173: 167 | B173: =IF(C173=activestate,IF(D173='Heating Load'!C$2,1,0),0) -> 0 | C173: PA | D173: Allentown | E173: 6.6484 | F173: 6.812806 | G173: 7.573276 | H173: 10
A174: 168 | B174: =IF(C174=activestate,IF(D174='Heating Load'!C$2,1,0),0) -> 0 | C174: PA | D174: Bradford | E174: 5.73590512 | F174: 5.86920334 | G174: 6.47413444 | H174: -1
A175: 169 | B175: =IF(C175=activestate,IF(D175='Heating Load'!C$2,1,0),0) -> 0 | C175: PA | D175: Erie | E175: 6.37685488 | F175: 6.53200366 | G175: 7.24618756 | H175: 7
A176: 170 | B176: =IF(C176=activestate,IF(D176='Heating Load'!C$2,1,0),0) -> 0 | C176: PA | D176: Harrisburg | E176: 6.93695728 | F176: 7.11120046 | G176: 7.92085636 | H176: 13
A177: 171 | B177: =IF(C177=activestate,IF(D177='Heating Load'!C$2,1,0),0) -> 0 | C177: PA | D177: Philadelphia | E177: 7.070327192 | F177: 7.249117074 | G177: 8.081506482 | H177: 14.33
A178: 172 | B178: =IF(C178=activestate,IF(D178='Heating Load'!C$2,1,0),0) -> 0 | C178: PA | D178: Pittsburgh | E178: 6.55599472 | F178: 6.71725054 | G178: 7.46196964 | H178: 9
A179: 173 | B179: =IF(C179=activestate,IF(D179='Heating Load'!C$2,1,0),0) -> 0 | C179: PA | D179: Wilkes-Barre | E179: 6.37685488 | F179: 6.53200366 | G179: 7.24618756 | H179: 7
A180: 174 | B180: =IF(C180=activestate,IF(D180='Heating Load'!C$2,1,0),0) -> 0 | C180: PA | D180: Williamsport | E180: 6.37685488 | F180: 6.53200366 | G180: 7.24618756 | H180: 7
A181: 175 | B181: =IF(C181=activestate,IF(D181='Heating Load'!C$2,1,0),0) -> 0 | C181: RI | D181: Providence | E181: 6.6484 | F181: 6.812806 | G181: 7.573276 | H181: 10
A182: 176 | B182: =IF(C182=activestate,IF(D182='Heating Load'!C$2,1,0),0) -> 0 | C182: SC | D182: Charleston | E182: 8.63492608 | F182: 8.86705456 | G182: 9.96613696 | H182: 28
A183: 177 | B183: =IF(C183=activestate,IF(D183='Heating Load'!C$2,1,0),0) -> 0 | C183: SC | D183: Columbia | E183: 8.14054912 | F183: 8.35582384 | G183: 9.37063744 | H183: 24
A184: 178 | B184: =IF(C184=activestate,IF(D184='Heating Load'!C$2,1,0),0) -> 0 | C184: SC | D184: Greenville | E184: 8.02168048 | F184: 8.23290286 | G184: 9.22745476 | H184: 23
A185: 179 | B185: =IF(C185=activestate,IF(D185='Heating Load'!C$2,1,0),0) -> 0 | C185: SD | D185: Huron | E185: 5.05212928 | F185: 5.16211696 | G185: 5.65049536 | H185: -12
A186: 180 | B186: =IF(C186=activestate,IF(D186='Heating Load'!C$2,1,0),0) -> 0 | C186: SD | D186: Pierre | E186: 5.21593072 | F186: 5.33150254 | G186: 5.84780164 | H186: -9
A187: 181 | B187: =IF(C187=activestate,IF(D187='Heating Load'!C$2,1,0),0) -> 0 | C187: SD | D187: Rapid City | E187: 5.460796 | F187: 5.5847155 | G187: 6.142753 | H187: -5
A188: 182 | B188: =IF(C188=activestate,IF(D188='Heating Load'!C$2,1,0),0) -> 0 | C188: SD | D188: Sioux Falls | E188: 5.10483952 | F188: 5.21662414 | G188: 5.71398724 | H188: -11
A189: 183 | B189: =IF(C189=activestate,IF(D189='Heating Load'!C$2,1,0),0) -> 0 | C189: TN | D189: Bristol | E189: 7.03692352 | F189: 7.21457464 | G189: 8.04127024 | H189: 14
A190: 184 | B190: =IF(C190=activestate,IF(D190='Heating Load'!C$2,1,0),0) -> 0 | C190: TN | D190: Chattanooga | E190: 7.676416 | F190: 7.875868 | G190: 8.811568 | H190: 20
A191: 185 | B191: =IF(C191=activestate,IF(D191='Heating Load'!C$2,1,0),0) -> 0 | C191: TN | D191: Knoxville | E191: 7.56510832 | F191: 7.76076574 | G191: 8.67749284 | H191: 19
A192: 186 | B192: =IF(C192=activestate,IF(D192='Heating Load'!C$2,1,0),0) -> 0 | C192: TN | D192: Memphis | E192: 7.78961392 | F192: 7.99292494 | G192: 8.94792004 | H192: 21
A193: 187 | B193: =IF(C193=activestate,IF(D193='Heating Load'!C$2,1,0),0) -> 0 | C193: TN | D193: Nashville | E193: 7.24252672 | F193: 7.42718704 | G193: 8.28892864 | H193: 16
A194: 188 | B194: =IF(C194=activestate,IF(D194='Heating Load'!C$2,1,0),0) -> 0 | C194: TX | D194: Abilene | E194: 7.90470208 | F194: 8.11193656 | G194: 9.08654896 | H194: 22
A195: 189 | B195: =IF(C195=activestate,IF(D195='Heating Load'!C$2,1,0),0) -> 0 | C195: TX | D195: Amarillo | E195: 6.83888128 | F195: 7.00978096 | G195: 7.80271936 | H195: 12
A196: 190 | B196: =IF(C196=activestate,IF(D196='Heating Load'!C$2,1,0),0) -> 0 | C196: TX | D196: Austin | E196: 8.893456 | F196: 9.134398 | G196: 10.277548 | H196: 30
A197: 191 | B197: =IF(C197=activestate,IF(D197='Heating Load'!C$2,1,0),0) -> 0 | C197: TX | D197: Brownsville | E197: 10.29952 | F197: 10.588396 | G197: 11.971216 | H197: 40
A198: 192 | B198: =IF(C198=activestate,IF(D198='Heating Load'!C$2,1,0),0) -> 0 | C198: TX | D198: Corpus Christi | E198: 9.71441152 | F198: 9.98334064 | G198: 11.26642624 | H198: 36
A199: 193 | B199: =IF(C199=activestate,IF(D199='Heating Load'!C$2,1,0),0) -> 0 | C199: TX | D199: El Paso | E199: 8.261308 | F199: 8.4806995 | G199: 9.516097 | H199: 25
A200: 194 | B200: =IF(C200=activestate,IF(D200='Heating Load'!C$2,1,0),0) -> 0 | C200: TX | D200: Fort Worth | E200: 8.14054912 | F200: 8.35582384 | G200: 9.37063744 | H200: 24
... 46 more rows

Sheet AppTech
A1: Appliance Technologies
A3: Furnace | B3: Selected
B4: Technology
B5: =furntype -> 1 | C5: 1 | D5: 2 | E5: 3 | F5: 4 | G5: 5
B6: =LOOKUP(B$5,C$5:R$5,C6:R6) -> Average Furnace | C6: Average Furnace | D6: High Efficiency Furnace | E6: Condensing Furnace | F6: Standard Boiler | G6: Condensing Boiler
A7: Capacity (RT) | B7: =LOOKUP(B$5,C$5:R$5,C7:R7) -> 0
A8: CapLow (RT) | B8: =LOOKUP(B$5,C$5:R$5,C8:R8) -> 38000 | C8: 38000 | D8: 38000 | E8: 38000 | F8: 38000 | G8: 38000
A9: CapHigh (RT) | B9: =LOOKUP(B$5,C$5:R$5,C9:R9) -> 128000 | C9: 128000 | D9: 128000 | E9: 128000 | F9: 128000 | G9: 128000
A11: Fuel | B11: Natural Gas | C11: Natural Gas | D11: Natural Gas | E11: Natural Gas | F11: Natural Gas | G11: Natural Gas
A13: AFUE | B13: =LOOKUP(B$5,C$5:R$5,C13:R13) -> 0.8 | C13: 0.8 | D13: 0.92 | E13: 0.966 | F13: 0.85 | G13: 0.92
A14: NOx lb/MMBtu | B14: =LOOKUP(B$5,C$5:R$5,C14:R14) -> 0.092 | C14: 0.092 | D14: 0.092 | E14: 0.092 | F14: 0.092 | G14: 0.092
A15: SO2 lb/MMBtu | B15: =LOOKUP(B$5,C$5:R$5,C15:R15) -> 0.000584 | C15: 0.000584 | D15: 0.000584 | E15: 0.000584 | F15: 0.000584 | G15: 0.000584
A16: CO2 lb/MMBtu | B16: =LOOKUP(B$5,C$5:R$5,C16:R16) -> 117 | C16: 117 | D16: 117 | E16: 117 | F16: 117 | G16: 117
A20: Natural Gas Cooktop Range
A21: Efficiency | B21: 0.4
A24: Electric Cooktop Range | H24: *not being used
A25: Efficiency | B25: 0.74
A32: Number in Household | B32: Hot Water Demand - Gal/day | C32: Hot Water Demand - Btu/day | D32: Hot Water Demand - MMBtu/year
A33: 0 | B33: 0 | C33: 0 | D33: 0
A34: 1 | B34: 35 | C34: =B34*77*8.3 -> 22368.5 | D34: =C34*365/1000000 -> 8.1645025
A35: 2 | B35: 47.5 | C35: 30357.25 | D35: 11.08039625
A36: 3 | B36: 60 | C36: 38346 | D36: 13.99629
A37: 4 | B37: 70 | C37: 44737 | D37: 16.329005
A38: 5 | B38: 80 | C38: 51128 | D38: 18.66172
A39: 6 | B39: 90 | C39: 57519 | D39: 20.994435
A40: 7 | B40: 100 | C40: 63910 | D40: 23.32715
A41: 8 | B41: 110 | C41: 70301 | D41: 25.659865
A42: 9 | B42: 120 | C42: 76692 | D42: 27.99258
A43: 10 | B43: 130 | C43: 83083 | D43: 30.325295
A44: 11 | B44: 140 | C44: 89474 | D44: 32.65801
A45: 12 | B45: 150 | C45: 95865 | D45: 34.990725
A46: 13 | B46: 160 | C46: 102256 | D46: 37.32344
A47: 14 | B47: 170 | C47: 108647 | D47: 39.656155
A48: 15 | B48: 180 | C48: 115038 | D48: 41.98887
A49: 16 | B49: 190 | C49: 121429 | D49: 44.321585
A50: 17 | B50: 200 | C50: 127820 | D50: 46.6543
A51: 18 | B51: 210 | C51: 134211 | D51: 48.987015
A52: 19 | B52: 220 | C52: 140602 | D52: 51.31973
A53: 20 | B53: 230 | C53: 146993 | D53: 53.652445

Sheet Factors
A1: Factors
A3: General Emission Factors
A4: =12/44 -> 0.2727272727 | C4: ratio of carbon to CO2
A5: =2000/2206 -> 0.9066183137 | C5: ratio of tonnes to tons
A6: 4.6 | C6: metric tons of Carbon per car | G6: =A6/11500 -> 0.0004 | H6: metric tons CO2e/mile
A7: 1 | C7: metric tons of Carbon per acre of forest
A8: 2000 | C8: pounds per ton
A9: 0.0283 | C9: ratio of cubic feet to cubic meters
A11: Natural Gas
A12: 0.4238 | C12: lb/cf heat content of natural gas
A13: 1020 | C13: Btu/cf of natural gas
A14: 7.096743747e-07 | C14: sulfur content of natural gas
A15: 117 | C15: lb/MMBtu CO2 emission factor
A17: Oil
A23: Clothes Dryers
A24: 7 | C24: lbs per load | E24: (DOE test procedure)
A25: 416 | C25: loads per year | E25: (DOE test procedure)
A28: Electricity Generation
A29: 0.07 | C29: transmission losses

Sheet Residential Prices
B2: Residential Electricity, Gas, Oil, and Propane Prices
B4: Lookup | C4: State or Province | D4: Abbrev | E4: Residential Electricity Prices: Cents per Kilowatthour | F4: Residential Natural Gas Price ($/MMBtu) | G4: Oil $/gal | H4: Propane $/gal | J4: Source (US Data):
B5: =VLOOKUP(C5,Lists!$B$21:$F$83,5,0) -> 3 | C5: Alabama | D5: AL | E5: 14.63 | F5: 19.36 | G5: 4.28 | H5: 3.24 | J5: Average Retail Price of Electricity (2023 data)
B6: =VLOOKUP(C6,Lists!$B$21:$F$83,5,0) -> 2 | C6: Alaska | D6: AK | E6: 23.9 | F6: 10.97 | G6: 4.28 | H6: 2.56 | J6: Retail Sales of Electricity to Ultimate Customers: Annual Data by Sector, by State, by Provider
B7: =VLOOKUP(C7,Lists!$B$21:$F$83,5,0) -> 54 | C7: Alberta | D7: AB | E7: 19.092 | F7: 9.14 | G7: 4.16 | H7: 3.5 | J7: https://www.eia.gov/electricity/data.php
B8: =VLOOKUP(C8,Lists!$B$21:$F$83,5,0) -> 5 | C8: Arizona | D8: AZ | E8: 14.02 | F8: 18.73 | G8: 4.28 | H8: 2.56
B9: =VLOOKUP(C9,Lists!$B$21:$F$83,5,0) -> 4 | C9: Arkansas | D9: AR | E9: 12.25 | F9: 17.21 | G9: 4.28 | H9: 2.38 | J9: Residential Natural Gas Prices (2023 data)
B10: =VLOOKUP(C10,Lists!$B$21:$F$83,5,0) -> 55 | C10: British Columbia | D10: BC | E10: 8.436 | F10: 9.14 | G10: 4.16 | H10: 3.5 | J10: https://www.eia.gov/dnav/ng/ng_pri_sum_a_EPG0_PRS_DMcf_a.htm
B11: =VLOOKUP(C11,Lists!$B$21:$F$83,5,0) -> 6 | C11: California | D11: CF | E11: 29.51 | F11: 21.05 | G11: 4.28 | H11: 2.56
B12: =VLOOKUP(C12,Lists!$B$21:$F$83,5,0) -> 53 | C12: Canadian Average | D12: CA | E12: 11.47 | F12: 9.14 | G12: 4.16 | H12: 3.5 | J12: Residential Propane Prices (2023 data, applied US Average to states with no data)
B13: =VLOOKUP(C13,Lists!$B$21:$F$83,5,0) -> 7 | C13: Colorado | D13: CL | E13: 14.3 | F13: 11.45 | G13: 4.28 | H13: 2.34 | J13: https://www.eia.gov/dnav/pet/pet_pri_wfr_a_EPLLPA_PRS_dpgal_w.htm
B14: =VLOOKUP(C14,Lists!$B$21:$F$83,5,0) -> 8 | C14: Connecticut | D14: CT | E14: 29.88 | F14: 18.19 | G14: 4.16 | H14: 3.7
B15: =VLOOKUP(C15,Lists!$B$21:$F$83,5,0) -> 10 | C15: Delaware | D15: DL | E15: 15.73 | F15: 17.04 | G15: 4.67 | H15: 3.47 | J15: Residential Heating Oil Prices (2023 data, applied US Average to states with no data)
B16: =VLOOKUP(C16,Lists!$B$21:$F$83,5,0) -> 9 | C16: District of Columbia | D16: DC | E16: 16.45 | F16: 16.18 | G16: 4.28 | H16: 2.56 | J16: https://www.eia.gov/dnav/pet/pet_pri_wfr_a_EPD2F_prs_dpgal_w.htm
B17: =VLOOKUP(C17,Lists!$B$21:$F$83,5,0) -> 11 | C17: Florida | D17: FL | E17: 15.21 | F17: 24.25 | G17: 4.28 | H17: 4.72
B18: =VLOOKUP(C18,Lists!$B$21:$F$83,5,0) -> 12 | C18: Georgia | D18: GA | E18: 13.69 | F18: 18.33 | G18: 4.28 | H18: 2.98 | J18: Source (Canadian Data)
B19: =VLOOKUP(C19,Lists!$B$21:$F$83,5,0) -> 13 | C19: Hawaii | D19: HA | E19: 42.39 | F19: 51.16 | G19: 4.28 | H19: 2.56 | J19: Residential Electricity Price (2023)
B20: =VLOOKUP(C20,Lists!$B$21:$F$83,5,0) -> 15 | C20: Idaho | D20: ID | E20: 11.05 | F20: 9.39 | G20: 4.28 | H20: 2.54 | J20: Assumes 1000 kWh/yr consumption; 0.74:1 CAD/USD
B21: =VLOOKUP(C21,Lists!$B$21:$F$83,5,0) -> 16 | C21: Illinois | D21: IL | E21: 15.71 | F21: 11.15 | G21: 4.28 | H21: 1.96 | J21: https://www.energyhub.org/electricity-prices/
B22: =VLOOKUP(C22,Lists!$B$21:$F$83,5,0) -> 17 | C22: Indiana | D22: IN | E22: 14.94 | F22: 11.21 | G22: 3.9 | H22: 2.44
B23: =VLOOKUP(C23,Lists!$B$21:$F$83,5,0) -> 14 | C23: Iowa | D23: IA | E23: 13.31 | F23: 11.34 | G23: 3.56 | H23: 1.75 | J23: Natural Resources Canada
B24: =VLOOKUP(C24,Lists!$B$21:$F$83,5,0) -> 18 | C24: Kansas | D24: KA | E24: 13.38 | F24: 14.02 | G24: 4.28 | H24: 1.91 | J24: Energy Prices by Energy Source - Natural Gas (2022)
B25: =VLOOKUP(C25,Lists!$B$21:$F$83,5,0) -> 19 | C25: Kentucky | D25: KY | E25: 12.65 | F25: 14.93 | G25: 3.87 | H25: 2.53 | J25: Used 0.72 CAD/USD
B26: =VLOOKUP(C26,Lists!$B$21:$F$83,5,0) -> 20 | C26: Louisiana | D26: LA | E26: 11.55 | F26: 15.63 | G26: 4.28 | H26: 2.56 | J26: https://oee.nrcan.gc.ca/corporate/statistics/neud/dpa/showTable.cfm?type=HB&sector=res&juris=00&rn=18&page=0#sources
B27: =VLOOKUP(C27,Lists!$B$21:$F$83,5,0) -> 23 | C27: Maine | D27: ME | E27: 27.42 | F27: 18.4 | G27: 4.05 | H27: 3.16
B28: =VLOOKUP(C28,Lists!$B$21:$F$83,5,0) -> 56 | C28: Manitoba | D28: MB | E28: 7.548 | F28: 9.14 | G28: 4.16 | H28: 3.5
B29: =VLOOKUP(C29,Lists!$B$21:$F$83,5,0) -> 22 | C29: Maryland | D29: MD | E29: 16.6 | F29: 16.71 | G29: 4.46 | H29: 3.39 | J29: Weekly Average Retail Prices for Furnace Oil in 2024
B30: =VLOOKUP(C30,Lists!$B$21:$F$83,5,0) -> 21 | C30: Massachusetts | D30: MS | E30: 29.61 | F30: 20.66 | G30: 4.29 | H30: 3.47 | J30: https://www2.nrcan.gc.ca/eneene/sources/pripri/prices_bycity_e.cfm?productID=7&locationID=66&locationID=8&locationID=29&frequency=W&priceYear=2024&Redisplay=
B31: =VLOOKUP(C31,Lists!$B$21:$F$83,5,0) -> 24 | C31: Michigan | D31: MC | E31: 18.84 | F31: 11.06 | G31: 3.71 | H31: 2.3 | J31: Used 0.72 CAD/USD
B32: =VLOOKUP(C32,Lists!$B$21:$F$83,5,0) -> 25 | C32: Minnesota | D32: MN | E32: 14.73 | F32: 11.51 | G32: 4.09 | H32: 2
B33: =VLOOKUP(C33,Lists!$B$21:$F$83,5,0) -> 27 | C33: Mississippi | D33: MI | E33: 13.23 | F33: 15.07 | G33: 4.28 | H33: 2.94 | J33: Weekly Average Retail Prices for Auto Propane in 2024
B34: =VLOOKUP(C34,Lists!$B$21:$F$83,5,0) -> 26 | C34: Missouri | D34: MO | E34: 12.58 | F34: 16.54 | G34: 4.28 | H34: 2.14 | J34: https://www2.nrcan-rncan.gc.ca/eneene/sources/pripri/prices_bycity_e.cfm?productID=6&locationID=66&frequency=M&priceYear=2024&Redisplay=
B35: =VLOOKUP(C35,Lists!$B$21:$F$83,5,0) -> 28 | C35: Montana | D35: MT | E35: 12.54 | F35: 9.8 | G35: 4.28 | H35: 2.21 | J35: Used 0.72 CAD/USD
B36: =VLOOKUP(C36,Lists!$B$21:$F$83,5,0) -> 31 | C36: Nebraska | D36: NB | E36: 11.2 | F36: 12.62 | G36: 3.47 | H36: 1.72
B37: =VLOOKUP(C37,Lists!$B$21:$F$83,5,0) -> 35 | C37: Nevada | D37: NV | E37: 16.67 | F37: 16.35 | G37: 4.28 | H37: 2.56
B38: =VLOOKUP(C38,Lists!$B$21:$F$83,5,0) -> 57 | C38: New Brunswick | D38: NB | E38: 10.286 | F38: 9.14 | G38: 4.16 | H38: 3.5
B39: =VLOOKUP(C39,Lists!$B$21:$F$83,5,0) -> 32 | C39: New Hampshire | D39: NH | E39: 28.15 | F39: 20.25 | G39: 4.34 | H39: 3.54
B40: =VLOOKUP(C40,Lists!$B$21:$F$83,5,0) -> 33 | C40: New Jersey | D40: NJ | E40: 17.7 | F40: 12.73 | G40: 4.54 | H40: 3.26
B41: =VLOOKUP(C41,Lists!$B$21:$F$83,5,0) -> 34 | C41: New Mexico | D41: NM | E41: 13.85 | F41: 11.23 | G41: 4.28 | H41: 2.56
B42: =VLOOKUP(C42,Lists!$B$21:$F$83,5,0) -> 36 | C42: New York | D42: NY | E42: 22.25 | F42: 16.28 | G42: 4.53 | H42: 3.3
B43: =VLOOKUP(C43,Lists!$B$21:$F$83,5,0) -> 58 | C43: Newfoundland | D43: NL | E43: 10.952 | F43: 9.14 | G43: 4.16 | H43: 3.5
B44: =VLOOKUP(C44,Lists!$B$21:$F$83,5,0) -> 29 | C44: North Carolina | D44: NC | E44: 12.93 | F44: 16.7 | G44: 4.07 | H44: 3.27
B45: =VLOOKUP(C45,Lists!$B$21:$F$83,5,0) -> 30 | C45: North Dakota | D45: ND | E45: 11.01 | F45: 9.4 | G45: 4.28 | H45: 1.77
B46: =VLOOKUP(C46,Lists!$B$21:$F$83,5,0) -> 59 | C46: Nova Scotia | D46: NS | E46: 13.542 | F46: 9.14 | G46: 4.16 | H46: 3.5
B47: =VLOOKUP(C47,Lists!$B$21:$F$83,5,0) -> 37 | C47: Ohio | D47: OH | E47: 15.38 | F47: 13.17 | G47: 4.02 | H47: 2.58
B48: =VLOOKUP(C48,Lists!$B$21:$F$83,5,0) -> 38 | C48: Oklahoma | D48: OK | E48: 12.08 | F48: 14.47 | G48: 4.28 | H48: 2.38
B49: =VLOOKUP(C49,Lists!$B$21:$F$83,5,0) -> 60 | C49: Ontario | D49: ON | E49: 10.434 | F49: 9.14 | G49: 4.16 | H49: 3.5
B50: =VLOOKUP(C50,Lists!$B$21:$F$83,5,0) -> 39 | C50: Oregon | D50: OR | E50: 12.73 | F50: 15.19 | G50: 4.28 | H50: 2.56
B51: =VLOOKUP(C51,Lists!$B$21:$F$83,5,0) -> 40 | C51: Pennsylvania | D51: PA | E51: 18.1 | F51: 14.87 | G51: 4.07 | H51: 2.85
B52: =VLOOKUP(C52,Lists!$B$21:$F$83,5,0) -> 61 | C52: Prince Edward Island | D52: PEI | E52: 13.616 | F52: 9.14 | G52: 4.16 | H52: 3.5
B53: =VLOOKUP(C53,Lists!$B$21:$F$83,5,0) -> 62 | C53: Quebec | D53: QC | E53: 5.772 | F53: 9.14 | G53: 4.16 | H53: 3.5
B54: =VLOOKUP(C54,Lists!$B$21:$F$83,5,0) -> 41 | C54: Rhode Island | D54: RI | E54: 27.02 | F54: 19.77 | G54: 4.27 | H54: 3.53
B55: =VLOOKUP(C55,Lists!$B$21:$F$83,5,0) -> 63 | C55: Saskatchewan | D55: SK | E55: 14.726 | F55: 9.14 | G55: 4.16 | H55: 3.5
B56: =VLOOKUP(C56,Lists!$B$21:$F$83,5,0) -> 42 | C56: South Carolina | D56: SC | E56: 13.68 | F56: 16.82 | G56: 4.28 | H56: 2.56
B57: =VLOOKUP(C57,Lists!$B$21:$F$83,5,0) -> 43 | C57: South Dakota | D57: SD | E57: 12.32 | F57: 10.03 | G57: 4.28 | H57: 1.92
B58: =VLOOKUP(C58,Lists!$B$21:$F$83,5,0) -> 44 | C58: Tennessee | D58: TN | E58: 12.19 | F58: 11.25 | G58: 4.28 | H58: 3.16
B59: =VLOOKUP(C59,Lists!$B$21:$F$83,5,0) -> 45 | C59: Texas | D59: TX | E59: 14.46 | F59: 16.72 | G59: 4.28 | H59: 2.88
B60: =Lists!A21 -> 1 | C60: United States | D60: US | E60: 16 | F60: 14.83 | G60: 4.28 | H60: 2.56
B61: =VLOOKUP(C61,Lists!$B$21:$F$83,5,0) -> 46 | C61: Utah | D61: UT | E61: 11.2 | F61: 12.96 | G61: 4.28 | H61: 2.43
B62: =VLOOKUP(C62,Lists!$B$21:$F$83,5,0) -> 48 | C62: Vermont | D62: VT | E62: 20.82 | F62: 16.51 | G62: 4.25 | H62: 3.4
B63: =VLOOKUP(C63,Lists!$B$21:$F$83,5,0) -> 47 | C63: Virginia | D63: VA | E63: 14.26 | F63: 16.58 | G63: 4.27 | H63: 3.32
B64: =VLOOKUP(C64,Lists!$B$21:$F$83,5,0) -> 49 | C64: Washington | D64: WN | E64: 10.98 | F64: 14.98 | G64: 4.28 | H64: 2.56
B65: =VLOOKUP(C65,Lists!$B$21:$F$83,5,0) -> 51 | C65: West Virginia | D65: WV | E65: 14.05 | F65: 15.05 | G65: 4.28 | H65: 2.56
B66: =VLOOKUP(C66,Lists!$B$21:$F$83,5,0) -> 50 | C66: Wisconsin | D66: WS | E66: 16.88 | F66: 10.5 | G66: 3.6 | H66: 1.97
B67: =VLOOKUP(C67,Lists!$B$21:$F$83,5,0) -> 52 | C67: Wyoming | D67: WY | E67: 11.46 | F67: 13.22 | G67: 4.28 | H67: 2.56

Sheet Calc
D3: Heat Type | E3: =heattype -> 1
A4: Space Heating | D4: Water Heat Type | E4: =wheattype -> 1
A6: House Square Footage | B6: =sqft -> 2000
A7: NG Heating System Type | B7: =furntype -> 1 | C7: =LOOKUP(B7,Lists!A4:A10,Lists!B4:B10) -> Average Furnace (AFUE 80%) | F7: Current System
A8: NG Heating AFUE | B8: =_xlfn.XLOOKUP(furntype,Lists!A4:A10,Lists!C4:C10) -> 0.8 | F8: Oil Heating System Type | G8: =_xlfn.IFS(E3=2,'User Input'!F24,E3=1,"",E3=3,"",E3=4,"") ->  | H8: =IFERROR(_xlfn.XLOOKUP(G8,Lists!G87:G91,Oil),"") ->  | I8: Gas Heating System Type | J8: =_xlfn.IFS(E3=4,'User Input'!F24,E3=1,"",E3=2,"",E3=3,"") ->  | K8: =IFERROR(_xlfn.XLOOKUP(J8,Lists!A4:A10,Lists!B4:B10),"") -> 
A9: Heating Load (MMBtu) | B9: =IF(sqft=0,0,heatload) -> 49.63862809 | C9: MMBtu/yr | F9: AFUE | G9: =IFERROR(_xlfn.XLOOKUP(G8,Lists!G87:G91,Lists!I87:I91),"") ->  | I9: AFUE | J9: =IFERROR(_xlfn.XLOOKUP(J8,Lists!A4:A10,Lists!C4:C10),"") -> 
A10: NG Consumption (MMBtu) | B10: =B9/B8 -> 62.04828511 | C10: MMBtu/yr | F10: Oil Consumption (MMBtu) | G10: =IFERROR(B9/G9,"") ->  | H10: MMBtu/yr | I10: Gas Consumption | J10: =IFERROR(B9/J9,0) -> 0 | K10: MMBtu/yr
A11: CO2 Emissions | B11: =B10*'Carbon Calculator'!E105 -> 7299.798248 | C11: lbs/yr | F11: Oil Consumption (gal) | G11: =IFERROR(G10/0.137381,0) -> 0 | H11: gal/yr | I11: CO2 Emissions | J11: =J10*'Carbon Calculator'!E105 -> 0 | K11: lbs/yr
F12: CO2 Emissions | G12: =G11*'Carbon Calculator'!E111/1000 -> 0 | H12: lbs/yr
A13: Electric Heating System Type | B13: =_xlfn.IFS(E3=1,'User Input'!F24,E3=2,"",E3=3,"",E3=4,"") -> 2 | C13: =IFERROR(LOOKUP(B13,Lists!A87:A90,Lists!B87:B89),"") -> Standard Effic. Heat Pump - 7.5 HSPF2
A14: Adjusted HSPF | B14: =IF(B13=2,'Adjusted HSPF'!E2,IF(B13=3,'Adjusted HSPF'!F2,IF(B13=4,'Adjusted HSPF'!G2,0))) -> 6.727818505 | F14: Propane Heating System Type | G14: =_xlfn.IFS(E3=3,'User Input'!F24,E3=1,"",E3=2,"",E3=4,"") ->  | H14: =IF(E3=3,_xlfn.XLOOKUP(G14,Lists!K87:K93,Lists!L87:L93),"") -> 
A15: Electric Resistance AFUE | B15: =IF(B13=1,0.99,0) -> 0 | F15: AFUE | G15: =IF(E3=3,_xlfn.XLOOKUP(G14,Lists!K87:K93,Lists!M87:M93),"") -> 
F16: Propane Consumption (MMBtu) | G16: =IFERROR(B9/G15,"") ->  | H16: MMBtu/yr
A17: Displaced Electricity (house) | B17: =IFERROR(IF(B13=1,B9/3412*1000/B15,B9/B14),0) -> 7.378116406 | C17: MWh/yr | F17: Propane Consumption (gal) | G17: =IFERROR(G16/0.0916,0) -> 0 | H17: gal/yr
A18: Displaced Electric Generation | B18: =B17/(1-'Carbon Calculator'!E80) -> 7.791041611 | C18: MWh/yr | F18: CO2 Emissions | G18: =G17*'Carbon Calculator'!E108/1000 -> 0 | H18: lbs/yr
A19: Generation Fuel Consumption | B19: =B18*'Carbon Calculator'!E101/1000 -> 67.51316002 | C19: MMBtu/yr
A20: CO2 Emissions | B20: =B18*'Carbon Calculator'!E102 -> 9896.640726 | C20: lbs/yr
A23: Water Heating
A25: Family Size | B25: =famsize -> 3 | F25: Oil Water Heat Type | G25: =_xlfn.IFS(E4=2,'User Input'!F37,E4=1,"",E4=3,"",E4=4,"") ->  | H25: =IFERROR(_xlfn.XLOOKUP(G25,Lists!G96,Lists!H96),"") ->  | I25: Gas Water Heat Type | J25: =_xlfn.IFS(E4=4,'User Input'!F37,E4=1,"",E4=3,"",E4=2,"") ->  | K25: =IFERROR(_xlfn.XLOOKUP(J25,Lists!A94:A101,Lists!B94:B101),"") -> 
A26: NG Water Heat Type | B26: =gasWHtype -> 1 | C26: =LOOKUP(B26,Lists!A94:A101,Lists!B94:B101) -> Standard Tank: UEF = .58 | F26: Oil Energy Factor (UEF) | G26: =IFERROR(_xlfn.XLOOKUP(G25,Lists!G96:G97,Lists!I96:I97),"") ->  | I26: Gas Updated Energy Factor (UEF) | J26: =IFERROR(_xlfn.XLOOKUP(J25,Lists!A94:A101,Lists!C94:C101),"") -> 
A27: NG Updated Energy Factor (UEF) | B27: =LOOKUP(gasWHtype,Lists!A94:A101,Lists!C94:C101) -> 0.58
A28: Regional load factor | B28: =LOOKUP(state,Lists!A21:A83,Lists!E21:E83) -> 1 | F28: Oil Consumption (MMBtu) | G28: =IFERROR((B30/G26*B28),"") ->  | H28: MMBtu/yr | I28: NG Consumption (MMBtu) | J28: =IFERROR(IF(B25=0,0,IF(B27=0,0,(B30/J26*B28))),0) -> 0 | K28: MMBtu/yr
F29: Oil Consumption (gal) | G29: =IFERROR(G28/0.137381,0) -> 0 | H29: gal/yr | I29: CO2 Emissions | J29: =J28*'Carbon Calculator'!E105 -> 0 | K29: lbs/yr
A30: Water Heating Load (MMBtu) | B30: =LOOKUP(famsize,AppTech!A33:A53,AppTech!D33:D53) -> 13.99629 | C30: MMBtu/yr | F30: CO2 Emissions | G30: =G29*'Carbon Calculator'!E111/1000 -> 0 | H30: lbs/yr
A31: NG Consumption (MMBtu) | B31: =IF(B25=0,0,IF(B27=0,0,(B30/B27*B28))) -> 24.13153448 | C31: MMBtu/yr
A32: CO2 Emissions | B32: =B31*'Carbon Calculator'!E105 -> 2839.004057 | C32: lbs/yr
A34: Elec Water Heat Type | B34: =_xlfn.IFS(E4=1,'User Input'!F37,E4=2,"",E4=3,"",E4=4,"") -> 1 | C34: =IFERROR(LOOKUP(B34,Lists!A104:A107,Lists!B104:B107),"") -> Standard: UEF = 0.92 | F34: Propane Water Heat Type | G34: =_xlfn.IFS(E4=3,'User Input'!F37,E4=1,"",E4=2,"",E4=4,"") ->  | H34: =IFERROR(_xlfn.XLOOKUP(G34,Lists!K96:K103,Lists!L96:L103),"") -> 
A35: Updated Elec Energy Factor (UEF) | B35: =IFERROR(LOOKUP(B34,Lists!A104:A107,Lists!C104:C107),"") -> 0.92 | F35: Propane Updated Energy Factor (UEF) | G35: =IFERROR(_xlfn.XLOOKUP(G34,Lists!K96:K103,Lists!M96:M103),"") -> 
A36: Displaced Electricity (house) | B36: =IFERROR(B30*B28/B35/3412*1000,0) -> 4.458780391 | C36: MWh/yr
A37: Displaced Electric Generation | B37: =B36/(1-'Carbon Calculator'!E80) -> 4.708321427 | C37: MWh/yr | F37: Propane Consumption (MMBtu) | G37: =IFERROR(B30/G35*B28,"") ->  | H37: MMBtu/yr
A38: Generation Fuel Consumption | B38: =B37*'Carbon Calculator'!E101/1000 -> 40.79989221 | C38: MMBtu/yr | F38: Propane Consumption (gal) | G38: =IFERROR(G37/0.0916,0) -> 0 | H38: gal/yr
A39: CO2 Emissions | B39: =B37*'Carbon Calculator'!E102 -> 5980.787668 | C39: lbs/yr | F39: CO2 Emissions | G39: =G38*'Carbon Calculator'!E108/1000 -> 0 | H39: lbs/yr
A41: Clothes Drying
A43: Dryer Loads per week | B43: =dryerloads -> 7 | F43: Propane Consumption | G43: =IF(dtype=2,B48/0.0916,0) -> 0 | H43: gal/yr
A44: Dryer Loads per year | B44: =B43*52 -> 364 | F44: CO2 Emissions | G44: =G43*'Carbon Calculator'!E108/1000 -> 0 | H44: lbs/yr
A45: NG Standard Dryer (EF) | B45: 2.67
A46: Gas Consumed per unit (MMBtu/yr) Standard | B46: =(Factors!A24/Calc!B45*Factors!A25)*3412/1000000 -> 3.721252434 | C46: MMBtu/yr (based on 416 loads/year)
A47: Gas Consumed per load (MMBtu/yr) | B47: =B46/416 -> 0.008945318352 | F47: Current NG Consumption | G47: =IF(dtype=3,B48,0) -> 0 | H47: MMBTU/yr
A48: Total Gas Consumed per unit (MMBtu/yr) | B48: =B44*B47 -> 3.25609588
A49: CO2 Emissions | B49: =B48*'Carbon Calculator'!E105 -> 383.0701035 | C49: lbs/yr
A52: Elec Standard Dryer (EF) | B52: 3.73
A53: Displaced Electricity (house) | B53: =IF(dtype=1,Factors!A24/Calc!B52*B44/1000,0) -> 0.6831099196 | C53: MWh/yr
A54: Displaced Electric Generation | B54: =B53/(1-'Carbon Calculator'!E80) -> 0.7213409922 | C54: MWh/yr
A55: Generation Fuel Consumption | B55: =B54*'Carbon Calculator'!E101/1000 -> 6.250770085 | C55: MMBtu/yr
A56: CO2 Emissions | B56: =B54*'Carbon Calculator'!E102 -> 916.2898874 | C56: lbs/yr
A58: Cooking
A60: Gas Consumed (MMBtu/yr) | B60: 1.5 | C60: MMBtu/yr | F60: Propane Consumption | G60: =IF(ctype=2,B60/0.0916,0) -> 0 | H60: gal/yr
A61: NG Range Efficiency | B61: =cookeff -> 0.4 | F61: CO2 Emissions | G61: =G60*'Carbon Calculator'!E108/1000 -> 0 | H61: lbs/yr
A63: Cooking Energy | B63: 0.261 | C63: MWh/yr
A65: Electric efficiency | B65: =cookelecuse -> 0.74
A66: Elec cooking load (MMBtu/yr) | C66: MMBtu/yr | F66: Current Gas Consumption | G66: =IF(ctype=3,B60,0) -> 0 | H66: MMBtu/yr
A67: Displaced Electricity (house) | B67: =IF(ctype=1,B63/B65,0) -> 0.3527027027 | C67: MWh/yr | F67: NG CO2 Emissions | G67: =IF(ctype=3,B60*'Carbon Calculator'!E105,"") ->  | H67: lbs/yr
A68: Displaced Electric Generation | B68: =B67/(1-'Carbon Calculator'!E80) -> 0.3724421359 | C68: MWh/yr
A69: Generation Fuel Consumption | B69: =B68*'Carbon Calculator'!E101/1000 -> 3.22739202 | C69: MMBtu/yr
A70: CO2 Emissions | B70: =B68*'Carbon Calculator'!E102 -> 473.0979751 | C70: lbs/yr
A74: Total
A76: NG Alternative Consumption | B76: =B10+B31+B48+B60 -> 90.93591547 | C76: MMBtu/yr | D76: Oil Consumption | E76: =G11+G29 -> 0 | F76: (gal/yr) | H76: Propane Consumption | I76: =G17+G38+G43+G60 -> 0 | J76: (gal/yr)
A77: Total Displaced Electricity (at the house) | B77: =B17+B36+B53+B67 -> 12.87270942 | C77: MWh/yr
H79: Current Home Gas Consumption | I79: =J10+J28+G47+G66 -> 0 | J79: MMBtu/yr
A80: NG NOx input | C80: lb/MMBtu
A81: NG NOx | C81: lbs/year
A82: NG SO2 input | C82: lb/MMBtu
A83: NG SO2 | C83: lbs/year
A84: NG CO2 input | C84: lb/MMBtu
A85: NG CO2 | C85: lbs/year
A88: Elec NOx rate | C88: lb/MWh
A89: Elec SO2 rate | C89: lb/MWh
A90: Elec CO2 rate | C90: lb/MWh
A92: Total Displaced Generation | C92: MWh/yr
A93: Elec NOx | C93: lbs/yr
A94: Elec SO2 | C94: lbs/yr
A95: Elec CO2 | C95: lbs/yr
A98: CO2 Displaced | C98: tons/yr
A99: Carbon Displaced (metric tons) | C99: metric tons
A101: Cars taken off the road | B101: ='Carbon Calculator'!I137 -> 0.6477043316
A102: Acres of forest | B102: =((('User Input'!L89/2000/1.1023)/Factors!A7)) -> 2.979439925
A104: Miles driven per year | B104: =((('User Input'!L89/2000/1.1023)/Factors!G6)) -> 7448.599813
A108: Used for graphs on User Input page | B108: Natural Gas | C108: Electric
A109: NOx | B109: ='User Input'!F85 -> 9.651133778 | C109: ='User Input'!I85 -> 11.22335427
A110: SOx | B110: ='User Input'!F87 -> 7.707313876 | C110: ='User Input'!I87 -> 0.05349171498
B111: Natural Gas | C111: Electric
A112: CO2 | B112: ='User Input'!F89 -> 17266.81626 | C112: ='User Input'!I89 -> 10698.343
A115: Look up Residential Prices
A116: Electricity Price | B116: =VLOOKUP(state,'Residential Prices'!$B$5:$F$67,4,0) -> 16 | C116: cents/kWh
A117: Natural Gas Price | B117: =VLOOKUP(state,'Residential Prices'!$B$5:$F$67,5,0) -> 14.83 | C117: dollars/MMBtu
A118: Oil Price | B118: =_xlfn.XLOOKUP(state,'Residential Prices'!B5:B67,'Residential Prices'!G5:G67) -> 4.28 | C118: dollars/gal
A119: Propane Price | B119: =_xlfn.XLOOKUP(state,'Residential Prices'!B5:B67,'Residential Prices'!H5:H67) -> 2.56 | C119: dollars/gal
A120: User Input Elec price | B120: ='User Input'!I15 -> 17 | C120: cents/kWh
A121: User Input NG price | B121: ='User Input'!F15 -> 14.1 | C121: dollars/MMBtu
A122: User Input Oil price | B122: ='User Input'!L15 -> 4.1 | C122: dollars/gal
A123: User Input Propane price | B123: ='User Input'!N15 -> 3 | C123: dollars/gal
A125: Elec price for calc | B125: =IF(AND(Erates=2,B120>=0),B120,B116) -> 16 | C125: cents/kWh
A126: NG price for calc | B126: =IF(AND(NGrates=2,B121>=0),B121,B117) -> 14.83 | C126: dollars/MMBtu
A127: Oil Price for calc | B127: =IF(AND(Orates=2,B122>=0),B122,B118) -> 4.28 | C127: dollars/gal
A128: Propane Price for calc | B128: =IF(AND(Prates=2,B123>=0),B123,B119) -> 2.56 | C128: dollars/gal
A130: Energy Cost Calculations
A131: NG Alternative Calculation | B131: =B76*B126 -> 1348.579626 | C131: $ | G131: Cost
A132: Electricity Calculation | B132: =B77*B125*10 -> 2059.633507 | C132: $ | G132: Current Home | H132: Gas Home
A133: Oil Calculation | B133: =E76*B127 -> 0 | C133: $ | D133: Gas | E133: Electric | F133: Space Heating | G133: =_xlfn.IFS(heattype=1,B17*$B$125*10,heattype=2,G11*B127,heattype=3,G17*B128,heattype=4,J10*B126) -> 1180.498625 | H133: =B10*B126 -> 920.1760682
A134: Propane Calculation | B134: =I76*B128 -> 0 | C134: $ | D134: MMBTU/Yr | E134: KWH | F134: Water Heating | G134: =_xlfn.IFS(wheattype=1,B36*B125*10,wheattype=2,G29*B127,wheattype=3,G38*B128,wheattype=4,J28*B126) -> 713.4048626 | H134: =B31*B126 -> 357.8706564
A135: Current Gas Calculation | B135: =I79*B126 -> 0 | C135: $ | D135: =+B10 -> 62.04828511 | E135: =+B17*1000 -> 7378.116406 | F135: Clothes Drying | G135: =_xlfn.IFS(dtype=1,E137*$B$125/100,dtype=2,G43*B128,dtype=3,H135) -> 109.2975871 | H135: =+D137*$B$126 -> 48.2879019
D136: =+B31 -> 24.13153448 | E136: =+B36*1000 -> 4458.780391 | F136: Cooking | G136: =_xlfn.IFS(ctype=1,B67*B125*10,ctype=2,G60*B128,ctype=3,H136) -> 56.43243243 | H136: =+D138*$B$126 -> 22.245
D137: =+B48 -> 3.25609588 | E137: =+B53*1000 -> 683.1099196 | F137: Total | G137: =SUM(G133:G136) -> 2059.633507 | H137: =SUM(H133:H136) -> 1348.579626
D138: =+B60 -> 1.5 | E138: =+B67*1000 -> 352.7027027
G141: NOx/SOx
G142: Current Home | H142: Gas Home
F143: NOx | G143: ='Carbon Calculator'!E132 -> 9.651133778 | H143: ='Carbon Calculator'!I132 -> 11.22335427
F144: SOx | G144: ='Carbon Calculator'!E131 -> 7.707313876 | H144: ='Carbon Calculator'!I131 -> 0.05349171498
F145: Total | G145: =SUM(G143:G144) -> 17.35844765 | H145: =SUM(H143:H144) -> 11.27684599
G148: lbs/yr
G149: Current Home | H149: Gas Home
F150: Space Heating | G150: =_xlfn.IFS(heattype=1,B20,heattype=2,G12,heattype=3,G18,heattype=4,J11) -> 9896.640726 | H150: =B11 -> 7299.798248
F151: Water Heating | G151: =_xlfn.IFS(wheattype=1,B39,wheattype=2,G30,wheattype=3,G39,wheattype=4,J29) -> 5980.787668 | H151: =B32 -> 2839.004057
F152: Clothes Drying | G152: =_xlfn.IFS(dtype=1,B56,dtype=2,G44,dtype=3,B49) -> 916.2898874 | H152: =B49 -> 383.0701035
F153: Cooking | G153: =_xlfn.IFS(ctype=1,B70,ctype=2,G61,ctype=3,G67) -> 473.0979751 | H153: 176
F154: Total | G154: =SUM(G150:G153) -> 17266.81626 | H154: =SUM(H150:H153) -> 10697.87241

Sheet Carbon Calculator
C2: Commercial Carbon Calculator | V2: To update carbon calculator, ONLY update the table below and the table in columns BS:BW (Canada). Both are highlighted in blue
L3: Developed by:
V4: eGRID2023 (v2, 2025 Release), 2022 for Canada | BC4: Canada Data | BY4: Emissions Summary | CA4: *values in columns BZ-CC are the ones used in calculations, but they are pulled from table starting in AF | CF4: Other Data | CP4: Lists
CA5: *only blue highlighted values are used for calcilations
BC6: CO2 Emissions | BJ6: SOX and NOX Emissions | BS6: Canadian Average All Sources | BY6: eGRID2023 US, NIR (2022) and NPRI Canada (2011) | CF6: NOX Emission Factors, EPA AP-42 Section 1.4 Natural Gas Combustion, Table 3.4-1 | CL6: Unit Conversions | CP6: Consumption | CR6: Regions | CU6: Emissions Profile
V7: *update table below | BS7: *update table below
V8: eGRID2023 (2025 release) | W8: State abbreviation | X8: State nameplate capacity (MW) | Y8: State annual heat input (MMBtu) | Z8: State annual net generation (MWh) | AA8: State annual NOx emissions (tons) | AB8: State annual SO2 emissions (tons) | AC8: State annual CO2 emissions (tons) | AD8: State annual NOx total output emission rate (lb/MWh) | AE8: State annual SO2 total output emission rate (lb/MWh) | AF8: State annual CO2 total output emission rate (lb/MWh) | AG8: State annual NOx input emission rate (lb/MMBtu) | AH8: State ozone season NOx input emission rate (lb/MMBtu) | AI8: State annual SO2 input emission rate (lb/MMBtu) | AJ8: State annual CO2 input emission rate (lb/MMBtu) | AK8: State annual NOx fossil fuel output emission rate (lb/MWh) | AL8: State annual SO2 fossil fuel output emission rate (lb/MWh) | AM8: State annual CO2 fossil fuel output emission rate (lb/MWh) | AN8: State annual NOx fossil fuel input emission rate (lb/MMBtu) | AO8: State annual SO2 fossil fuel input emission rate (lb/MMBtu) | AP8: State annual CO2 fossil fuel input emission rate (lb/MMBtu) | AQ8: State annual coal net generation (MWh) | AR8: State annual oil net generation (MWh) | AS8: State annual gas net generation (MWh) | AT8: State annual other fossil net generation (MWh) | AU8: State coal generation percent (resource mix) | AV8: State oil generation percent (resource mix) | AW8: State gas generation percent (resource mix) | AX8: State other fossil generation percent (resource mix) | AY8: State total combustion generation percent (resource mix) | AZ8: Total Annual Heat Rate (Btu/kWh) | BA8: Fossil Annual Heat Rate (Btu/kWh) | BD8: CO2 - g CO2 eq/kWh | BF8: CO2 - lb CO2 eq/MWh | BK8: SOX (t)1 | BL8: NOX (t)1 | BM8: SOX (pounds) | BN8: NOX (pounds) | BO8: Generation (GWh)2 | BP8: SO2 output emission rate (lb/MWh) | BQ8: NOX output emission rate (lb/MWh) | BS8: Canada Province | BT8: 2022 CO2 Emission Rate (lb/MWh)1 | BU8: 2011 NOX Emission Rate (lb/MWh)2 | BV8: 2011 SO2 Emission Rate (lb/MWh)2,3 | BW8: Province Annual Heat Rate (Btu/kWh) | BY8: State | BZ8: CO2 Emission Rate (lb/MWh) | CA8: SO2 Emission Rate (lb/MWh) | CB8: NOX Emission Rate (lb/MWh) | CC8: Annual Heat Rate (Btu/kWh) | CF8: Pollutant | CG8: # of Tests | CH8: Emission Factor (lb/106 scf) | CI8: Relative St. Dev (%) | CL8: Value | CM8: Units | CP8: Monthly | CR8: US Average | CS8: =CR8 -> US Average | CT8: 1 | CU8: eGrid Subregions Ave All Sources | CW8: US_Average_All_Sources | CX8: US_Average_Fossil | CY8: eGrid_Subregions_Ave_All_Sources | CZ8: eGrid_Subregions_Average_Fossil | DA8: NERC_Average_All_Sources | DB8: NERC_Average_Fossil | DC8: Canadian_Average_All_Sources
C9: User Input | V9: N/A | W9: US Average | X9: 1303568.8 | Y9: 2.188948779e+10 | Z9: 4190970937 | AA9: 947487.398 | AB9: 752518.805 | AC9: 1607676336 | AD9: 0.452 | AE9: 0.359 | AF9: 767.209 | AG9: 0.087 | AH9: 0.082 | AI9: 0.069 | AJ9: 146.89 | AK9: 0.71 | AL9: 0.567 | AM9: 1270.259 | AN9: 0.084 | AO9: 0.067 | AP9: 149.906 | AQ9: 674702091.6 | AR9: 23005568.56 | AS9: 1809177399 | AT9: 19169271.32 | AU9: 0.161 | AV9: 0.005 | AW9: 0.432 | AX9: 0.005 | AY9: 0.614 | AZ9: =Y9/Z9*1000 -> 5223.011116 | BA9: =Y9/(SUM(AQ9:AT9))*1000 -> 8665.485746 | BD9: Generation Intensity | BE9: Consumption Intensity | BF9: Generation Intensity | BG9: Consumption Intensity | BH9: Losses1 | BJ9: Canada Average | BK9: 294098.9672 | BL9: 184706.7366 | BM9: 648376465.1 | BN9: 407208165.6 | BO9: 568000 | BP9: =BM9/$BO9/1000 -> 1.141507861 | BQ9: 0.7169157845 | BS9: Canada Average | BT9: 220.462442 | BU9: 0.7169157845 | BV9: 1.141507861 | BW9: 3634 | BY9: =W9 -> US Average | BZ9: =AF9 -> 767.209 | CA9: =AE9 -> 0.359 | CB9: =AD9 -> 0.452 | CC9: =AZ9 -> 5223.011116 | CF9: NOx (Small-Unc.) | CG9: 18 | CH9: 104 | CI9: 0.51 | CL9: 1.10231 | CM9: short ton/metric ton | CP9: Annual | CR9: Alaska | CS9: AK | CT9: 2 | CU9: eGrid Subregions Average Fossil | CW9: US Average | CX9: =CW9 -> US Average | CY9: ASCC Alaska Grid | CZ9: ASCC Alaska Grid | DA9: Alaska Systems Coordinating Council | DB9: Alaska Systems Coordinating Council | DC9: Canada Average
I10: Comparison Cases | V10: 1 | W10: AK | X10: 3095.5 | Y10: 39933923.74 | Z10: 6678905.161 | AA10: 20591.981 | AB10: 1349.979 | AC10: 2704368.987 | AD10: 6.166 | AE10: 0.404 | AF10: 809.824 | AG10: 1.031 | AH10: 1.107 | AI10: 0.068 | AJ10: 135.442 | AK10: 8.631 | AL10: 0.563 | AM10: 1134.697 | AN10: 1.041 | AO10: 0.068 | AP10: 136.805 | AQ10: 730681.46 | AR10: 848592.325 | AS10: 3182407.103 | AT10: 0 | AU10: 0.109 | AV10: 0.127 | AW10: 0.476 | AX10: 0 | AY10: 0.719 | AZ10: =Y10/Z10*1000 -> 5979.112262 | BA10: =Y10/(SUM(AQ10:AT10))*1000 -> 8386.518266 | BC10: Canada Average | BD10: 100 | BE10: 100 | BF10: 220.462442 | BG10: 220.462442 | BH10: =IF(BD10=0,0,BE10/BD10-1) -> 0 | BJ10: Alberta | BK10: 114491.811 | BL10: 84030.1175 | BM10: 252410936.3 | BN10: 185254477.6 | BO10: 64600 | BP10: 3.907290035 | BQ10: 2.867716372 | BS10: Alberta | BT10: 1036.173477 | BU10: 2.867716372 | BV10: 3.907290035 | BW10: 10177 | BY10: =W10 -> AK | BZ10: 809.824 | CA10: 0.404 | CB10: 6.166 | CC10: 5979.112262 | CF10: NOx (Small-Low NOx) | CG10: 5 | CH10: 50 | CI10: 0.54 | CL10: 0.099976 | CM10: mmbtu/therm | CR10: Alabama | CS10: AL | CT10: 3 | CU10: Canadian Average All Sources | CW10: Alaska | CX10: Alaska | CY10: ASCC Miscellaneous | CZ10: ASCC Miscellaneous | DA10: Hawaiian Islands Coordinating Council | DB10: Hawaiian Islands Coordinating Council | DC10: Alberta
C11: Description | E11: Current Home | I11: Gas Alternative | Q11: #5 | S11: #6 | V11: 2 | W11: AL | X11: 32924 | Y11: 685579328 | Z11: 138596256.5 | AA11: 14811.073 | AB11: 6423.285 | AC11: 49270107.59 | AD11: 0.214 | AE11: 0.093 | AF11: 710.988 | AG11: 0.043 | AH11: 0.046 | AI11: 0.019 | AJ11: 143.733 | AK11: 0.331 | AL11: 0.057 | AM11: 1232.689 | AN11: 0.04 | AO11: 0.007 | AP11: 147.885 | AQ11: 18975689.6 | AR11: 23792.08 | AS11: 61216629.17 | AT11: 31.529 | AU11: 0.137 | AV11: 0 | AW11: 0.442 | AX11: 0 | AY11: 0.602 | AZ11: 4946.593403 | BA11: 8546.650433 | BC11: Alberta | BD11: 470 | BE11: 490 | BF11: 1036.173477 | BG11: 1080.265966 | BH11: =IF(BD11=0,0,BE11/BD11-1) -> 0.04255319149 | BJ11: British Columbia | BK11: 138.704795 | BL11: 2088.857367 | BM11: 305791.3652 | BN11: 4605136.728 | BO11: 56300 | BP11: 0.005431462971 | BQ11: 0.08179638949 | BS11: British Columbia | BT11: 30.86474188 | BU11: 0.08179638949 | BV11: 0.005431462971 | BW11: 437 | BY11: AL | BZ11: 710.988 | CA11: 0.093 | CB11: 0.214 | CC11: 4946.593403 | CF11: NOx (Small-Low NOx/FGR) | CG11: 15 | CH11: 32 | CI11: 0.18 | CL11: 2000 | CM11: pounds/short ton | CR11: Arkansas | CS11: AR | CW11: Alabama | CX11: Alabama | CY11: ERCOT All | CZ11: ERCOT All | DA11: Midwest Reliability Organization | DB11: Midwest Reliability Organization | DC11: British Columbia
V12: 3 | W12: AR | X12: 17060.1 | Y12: 387817293.4 | Z12: 63195646.55 | AA12: 15231.232 | AB12: 27092.375 | AC12: 31389681.65 | AD12: 0.482 | AE12: 0.857 | AF12: 993.413 | AG12: 0.079 | AH12: 0.083 | AI12: 0.14 | AJ12: 161.879 | AK12: 0.685 | AL12: 1.201 | AM12: 1450.016 | AN12: 0.077 | AO12: 0.136 | AP12: 163.683 | AQ12: 16844436.44 | AR12: 44534.566 | AS12: 26487466.59 | AT12: 6914.374 | AU12: 0.267 | AV12: 0.001 | AW12: 0.419 | AX12: 0 | AY12: 0.698 | AZ12: 6136.772303 | BA12: 8939.311413 | BC12: British Columbia | BD12: 14 | BE12: 15 | BF12: 30.86474188 | BG12: 33.0693663 | BH12: 0.07142857143 | BJ12: Manitoba | BK12: 664.7415921 | BL12: 442.0756845 | BM12: 1465502.609 | BN12: 974608.8956 | BO12: 35100 | BP12: 0.04175221108 | BQ12: 0.0277666352 | BS12: Manitoba | BT12: 2.866011746 | BU12: 0.0277666352 | BV12: 0.04175221108 | BW12: 300 | BY12: AR | BZ12: 993.413 | CA12: 0.857 | CB12: 0.482 | CC12: 6136.772303 | CF12: NOx (Large Wall-Fired-Low NOx) | CG12: 5 | CH12: 136 | CI12: 0.37 | CL12: 453.592 | CM12: grams/pound | CR12: Arizona | CS12: AZ | CW12: Arkansas | CX12: Arkansas | CY12: FRCC All | CZ12: FRCC All | DA12: Northeast Power Coordinating Council | DB12: Northeast Power Coordinating Council | DC12: Manitoba
C13: Electricity Consumption (kWh/yr) | E13: =Calc!B77*1000 -> 12872.70942 | H13: % zero-carbon | V13: 4 | W13: AZ | X13: 33107.6 | Y13: 544411241.4 | Z13: 111820945.5 | AA13: 16561.587 | AB13: 7036.341 | AC13: 38393040.74 | AD13: 0.296 | AE13: 0.126 | AF13: 686.688 | AG13: 0.061 | AH13: 0.059 | AI13: 0.026 | AJ13: 141.044 | AK13: 0.503 | AL13: 0.215 | AM13: 1182.581 | AN13: 0.06 | AO13: 0.026 | AP13: 141.963 | AQ13: 12068553.37 | AR13: 31568.289 | AS13: 52817502.64 | AT13: 0 | AU13: 0.108 | AV13: 0 | AW13: 0.472 | AX13: 0 | AY13: 0.582 | AZ13: 4868.598087 | BA13: 8386.185528 | BC13: Manitoba | BD13: 1.3 | BE13: 1.4 | BF13: 2.866011746 | BG13: 3.086474188 | BH13: 0.07692307692 | BJ13: New Brunswick | BK13: 4865.954167 | BL13: 7004.945851 | BM13: 10727579.88 | BN13: 15443243.72 | BO13: 11200 | BP13: 0.9578196318 | BQ13: 1.378861047 | BS13: New Brunswick | BT13: 727.5260587 | BU13: 1.378861047 | BV13: 0.9578196318 | BW13: 2720 | BY13: AZ | BZ13: 686.688 | CA13: 0.126 | CB13: 0.296 | CC13: 4868.598087 | CF13: NOx (Large Wall-Fired-FGR) | CG13: 4 | CH13: 101 | CI13: 0.25 | CR13: California | CS13: CA | CW13: Arizona | CX13: Arizona | CY13: HICC Miscellaneous | CZ13: HICC Miscellaneous | DA13: Reliability First Corporation | DB13: Reliability First Corporation | DC13: New Brunswick
H14: (onsite PV) | V14: 5 | W14: CA | X14: 96731 | Y14: 772978112 | Z14: 216080235.8 | AA14: 31751.932 | AB14: 1366.199 | AC14: 42512302.21 | AD14: 0.294 | AE14: 0.013 | AF14: 393.486 | AG14: 0.082 | AH14: 0.084 | AI14: 0.004 | AJ14: 109.996 | AK14: 0.523 | AL14: 0.007 | AM14: 873.41 | AN14: 0.071 | AO14: 0.001 | AP14: 118.19 | AQ14: 208861.65 | AR14: 73419.431 | AS14: 94336387 | AT14: 1483673.174 | AU14: 0.001 | AV14: 0 | AW14: 0.437 | AX14: 0.007 | AY14: 0.468 | AZ14: 3577.273548 | BA14: 8043.280755 | BC14: New Brunswick | BD14: 330 | BE14: 350 | BF14: 727.5260587 | BG14: 771.6185471 | BH14: 0.06060606061 | BJ14: Newfoundland | BK14: 3063.064 | BL14: 3269.446255 | BM14: 6752892.156 | BN14: 7207886.603 | BO14: 41300 | BP14: 0.1635082846 | BQ14: 0.1745250993 | BS14: Newfoundland | BT14: 37.47861514 | BU14: 0.1745250993 | BV14: 0.1635082846 | BW14: 365 | BY14: CA | BZ14: 393.486 | CA14: 0.013 | CB14: 0.294 | CC14: 3577.273548 | CF14: NOx (Large Wall-Fired Unc. Pre-NSPS) | CG14: 108 | CH14: 275 | CI14: 0.93 | CR14: Colorado | CS14: CO | CW14: California | CX14: California | CY14: HICC Oahu | CZ14: HICC Oahu | DA14: SERC Reliability Corporation | DB14: SERC Reliability Corporation | DC14: Newfoundland
C15: Natural Gas Consumption (MMBtu/yr) | E15: =Calc!I79 -> 0 | H15: % zero-carbon | I15: =Calc!B76 -> 90.93591547 | V15: 6 | W15: CO | X15: 21370 | Y15: 363925196.5 | Z15: 57471488.48 | AA15: 15627.909 | AB15: 10073.944 | AC15: 31178885.5 | AD15: 0.544 | AE15: 0.351 | AF15: 1085.021 | AG15: 0.086 | AH15: 0.083 | AI15: 0.055 | AJ15: 171.348 | AK15: 0.86 | AL15: 0.559 | AM15: 1732.334 | AN15: 0.085 | AO15: 0.056 | AP15: 172.134 | AQ15: 18730017.17 | AR15: 47733.339 | AS15: 17218649.95 | AT15: 0 | AU15: 0.326 | AV15: 0.001 | AW15: 0.3 | AX15: 0 | AY15: 0.629 | AZ15: 6332.273726 | BA15: 10110.04411 | BC15: Newfoundland | BD15: 17 | BE15: 18 | BF15: 37.47861514 | BG15: 39.68323956 | BH15: 0.05882352941 | BJ15: Nova Scotia | BK15: 65035.81301 | BL15: 18433.87984 | BM15: 143379254.1 | BN15: 40639700.18 | BO15: 11400 | BP15: 12.57712755 | BQ15: 3.564885981 | BS15: Nova Scotia | BT15: 1455.052117 | BU15: 3.564885981 | BV15: 12.57712755 | BW15: 5979 | BY15: CO | BZ15: 1085.021 | CA15: 0.351 | CB15: 0.544 | CC15: 6332.273726 | CF15: NOx (Large Wall-Fired Unc. Post-NSPS) | CG15: 13 | CH15: 192 | CI15: 0.36 | CR15: Connecticut | CS15: CT | CW15: Colorado | CX15: Colorado | CY15: MRO East | CZ15: MRO East | DA15: Texas Regional Entity | DB15: Texas Regional Entity | DC15: Nova Scotia
H16: (RNG, Hydrogen) | V16: 7 | W16: CT | X16: 10965.2 | Y16: 189301265.2 | Z16: 40652074.99 | AA16: 3890.722 | AB16: 1459.145 | AC16: 10940807.51 | AD16: 0.191 | AE16: 0.072 | AF16: 538.266 | AG16: 0.041 | AH16: 0.039 | AI16: 0.015 | AJ16: 115.591 | AK16: 0.166 | AL16: 0.018 | AM16: 810.03 | AN16: 0.024 | AO16: 0.003 | AP16: 118.077 | AQ16: 0 | AR16: 124203.807 | AS16: 24943869.37 | AT16: 429483.835 | AU16: 0 | AV16: 0.003 | AW16: 0.614 | AX16: 0.011 | AY16: 0.642 | AZ16: 4656.619994 | BA16: 7424.290301 | BC16: Nova Scotia | BD16: 660 | BE16: 700 | BF16: 1455.052117 | BG16: 1543.237094 | BH16: 0.06060606061 | BJ16: Ontario | BK16: 11970.55778 | BL16: 18987.8767 | BM16: 26390531.09 | BN16: 41861052.72 | BO16: 151000 | BP16: 0.1747717291 | BQ16: 0.2772255147 | BS16: Ontario | BT16: 77.16185471 | BU16: 0.2772255147 | BV16: 0.1747717291 | BW16: 2686 | BY16: CT | BZ16: 538.266 | CA16: 0.072 | CB16: 0.191 | CC16: 4656.619994 | CF16: NOx (Tangential-Unc.) | CG16: 62 | CH16: 167 | CI16: 0.37 | CR16: District of Columbia | CS16: DC | CW16: Connecticut | CX16: Connecticut | CY16: MRO West | CZ16: MRO West | DA16: Western Electricity Coordinating Council | DB16: Western Electricity Coordinating Council | DC16: Ontario
C17: Propane Consumption (gal/yr) | E17: =Calc!I76 -> 0 | H17: % zero-carbon | V17: 8 | W17: DC | X17: 56.6 | Y17: 1490126.735 | Z17: 171869.499 | AA17: 243.652 | AB17: 2.357 | AC17: 33866.772 | AD17: 2.835 | AE17: 0.027 | AF17: 394.099 | AG17: 0.327 | AH17: 0.32 | AI17: 0.003 | AJ17: 45.455 | AK17: 2.658 | AL17: 0.021 | AM17: 758.145 | AN17: 0.226 | AO17: 0.002 | AP17: 64.362 | AQ17: 0 | AR17: 53.575 | AS17: 89209.785 | AT17: 0 | AU17: 0 | AV17: 0 | AW17: 0.519 | AX17: 0 | AY17: 0.857 | AZ17: 8670.10577 | BA17: 16693.59897 | BC17: Ontario | BD17: 35 | BE17: 38 | BF17: 77.16185471 | BG17: 83.77572797 | BH17: 0.08571428571 | BJ17: Prince Edward Island | BK17: 65.63 | BL17: 26.841 | BM17: 144689.2106 | BN17: 59174.20542 | BO17: 492 | BP17: 0.2940837614 | BQ17: 0.1202727752 | BS17: Prince Edward Island | BT17: 4.40924884 | BU17: 0.1202727752 | BV17: 0.2940837614 | BW17: 7864 | BY17: DC | BZ17: 394.099 | CA17: 0.027 | CB17: 2.835 | CC17: 8670.10577 | CF17: NOx (Tangential-FGR) | CG17: 8 | CH17: 76 | CI17: 0.64 | CR17: Delaware | CS17: DE | CW17: District of Columbia | CX17: District of Columbia | CY17: NPCC Long Island | CZ17: NPCC Long Island | DC17: Prince Edward Island
H18: (Renewable Propane) | V18: 9 | W18: DE | X18: 3441 | Y18: 28665227.75 | Z18: 4772059.259 | AA18: 540.406 | AB18: 175.387 | AC18: 1677842.733 | AD18: 0.226 | AE18: 0.074 | AF18: 703.194 | AG18: 0.038 | AH18: 0.04 | AI18: 0.012 | AJ18: 117.065 | AK18: 0.316 | AL18: 0.098 | AM18: 984.537 | AN18: 0.039 | AO18: 0.012 | AP18: 119.92 | AQ18: -6498.417 | AR18: -1890.86 | AS18: 4382640.032 | AT18: 172094.23 | AU18: 0 | AV18: 0 | AW18: 0.918 | AX18: 0.036 | AY18: 0.967 | AZ18: 6006.888471 | BA18: 6305.114953 | BC18: Prince Edward Island | BD18: 2 | BE18: 0 | BF18: 4.40924884 | BG18: 0 | BH18: -1 | BJ18: Quebec | BK18: 1622.94664 | BL18: 8275.007348 | BM18: 3577980.621 | BN18: 18243246.7 | BO18: 177000 | BP18: 0.02021457978 | BQ18: 0.1030691904 | BS18: Quebec | BT18: 2.645549304 | BU18: 0.1030691904 | BV18: 0.02021457978 | BW18: 101 | BY18: DE | BZ18: 703.194 | CA18: 0.074 | CB18: 0.226 | CC18: 6006.888471 | CR18: Florida | CS18: FL | CW18: Delaware | CX18: Delaware | CY18: NPCC New England | CZ18: NPCC New England | DC18: Quebec
C19: Heating Oil Consumption (gal/yr) | E19: =Calc!E76 -> 0 | H19: % zero-carbon | V19: 10 | W19: FL | X19: 76100.7 | Y19: 1625654877 | Z19: 258099011.9 | AA19: 32830.27 | AB19: 16292.59 | AC19: 101516103.8 | AD19: 0.254 | AE19: 0.126 | AF19: 786.645 | AG19: 0.04 | AH19: 0.04 | AI19: 0.02 | AJ19: 124.893 | AK19: 0.232 | AL19: 0.107 | AM19: 949.637 | AN19: 0.031 | AO19: 0.014 | AP19: 126.67 | AQ19: 11373250.6 | AR19: 1199820.914 | AS19: 195830251.9 | AT19: 1459664.668 | AU19: 0.044 | AV19: 0.005 | AW19: 0.759 | AX19: 0.006 | AY19: 0.825 | AZ19: 6298.570712 | BA19: 7746.26766 | BC19: Quebec | BD19: 1.2 | BE19: 1.7 | BF19: 2.645549304 | BG19: 3.747861514 | BH19: 0.4166666667 | BJ19: Saskatchewan | BK19: 91918.95661 | BL19: 36803.72993 | BM19: 202646370.1 | BN19: 81138239.07 | BO19: 20800 | BP19: 9.742613948 | BQ19: 3.900876878 | BS19: Saskatchewan | BT19: 1388.913385 | BU19: 3.900876878 | BV19: 9.742613948 | BW19: 5711 | BY19: FL | BZ19: 786.645 | CA19: 0.126 | CB19: 0.254 | CC19: 6298.570712 | CR19: Georgia | CS19: GA | CW19: Florida | CX19: Florida | CY19: NPCC NYC/Westchester | CZ19: NPCC NYC/Westchester | DC19: Saskatchewan
H20: (Biofuels) | V20: 11 | W20: GA | X20: 40609.5 | Y20: 676426975.3 | Z20: 129220273.3 | AA20: 18438.114 | AB20: 12892.404 | AC20: 46120743.1 | AD20: 0.285 | AE20: 0.2 | AF20: 713.831 | AG20: 0.055 | AH20: 0.039 | AI20: 0.038 | AJ20: 136.366 | AK20: 0.395 | AL20: 0.217 | AM20: 1194.446 | AN20: 0.048 | AO20: 0.026 | AP20: 145.172 | AQ20: 16769056.53 | AR20: 235786.7 | AS20: 60043962.58 | AT20: 90858.003 | AU20: 0.13 | AV20: 0.002 | AW20: 0.465 | AX20: 0.001 | AY20: 0.635 | AZ20: 5234.681511 | BA20: 8768.860815 | BC20: Saskatchewan | BD20: 630 | BE20: 670 | BF20: 1388.913385 | BG20: 1477.098362 | BH20: 0.06349206349 | BY20: GA | BZ20: 713.831 | CA20: 0.2 | CB20: 0.285 | CC20: 5234.681511 | CR20: Hawaii | CS20: HI | CW20: Georgia | CX20: Georgia | CY20: NPCC Upstate NY | CZ20: NPCC Upstate NY
V21: 12 | W21: HI | X21: 3451.2 | Y21: 81226059.82 | Z21: 9158617.733 | AA21: 22671.585 | AB21: 19871.902 | AC21: 6342943.221 | AD21: 4.951 | AE21: 4.339 | AF21: 1385.131 | AG21: 0.558 | AH21: 0.545 | AI21: 0.489 | AJ21: 156.18 | AK21: 6.014 | AL21: 5.35 | AM21: 1650.194 | AN21: 0.59 | AO21: 0.525 | AP21: 161.906 | AQ21: 0 | AR21: 7159456.429 | AS21: 0 | AT21: 177774.96 | AU21: 0 | AV21: 0.782 | AW21: 0 | AX21: 0.019 | AY21: 0.833 | AZ21: 8868.812106 | BA21: 11070.39638 | BJ21: 1 2011 metric tons, taken from National Pollutant Release Inventory (NPRI) Downloadable Datasets, 2011 Air Pollutant Emission Summaries and Trends. 2011 Emissions from Electric Power Generation (Utilities) | BS21: 1 2020 CO2 Emission Rate taken from Canada's Official Greenhouse Gas Inventory, https://data.ec.gc.ca/data/substances/monitor/canada-s-official-greenhouse-gas-inventory | BY21: HI | BZ21: 1385.131 | CA21: 4.339 | CB21: 4.951 | CC21: 8868.812106 | CR21: Iowa | CS21: IA | CW21: Hawaii | CX21: Hawaii | CY21: RFC East | CZ21: RFC East
C22: Emissions Profile | E22: =LOOKUP(emisProfile,CT8:CT10,CU8:CU10) -> eGrid Subregions Average Fossil | V22: 13 | W22: IA | X22: 24260.7 | Y22: 246426779.2 | Z22: 69819809.05 | AA22: 13468.464 | AB22: 18148.432 | AC22: 21999770.95 | AD22: 0.386 | AE22: 0.52 | AF22: 630.187 | AG22: 0.109 | AH22: 0.114 | AI22: 0.147 | AJ22: 178.55 | AK22: 1 | AL22: 1.352 | AM22: 1641.065 | AN22: 0.109 | AO22: 0.148 | AP22: 179.423 | AQ22: 16409804.42 | AR22: 63157.552 | AS22: 10235259.62 | AT22: 0 | AU22: 0.235 | AV22: 0.001 | AW22: 0.147 | AX22: 0 | AY22: 0.386 | AZ22: 3529.467963 | BA22: 9226.626282 | BC22: 1 Losses include transmission line losses, metering differences, and other losses | BJ22: http://www.ec.gc.ca/inrp-npri/default.asp?lang=en&n=0EC58C98-#Emission_Summaries | BS22: 2 NOX and SOX Emissions taken from National Pollutant Release Inventory (NPRI) Downloadable Datasets, 2011 Air Pollutant Emission Summaries and Trends. 2011 Emissions from Electric Power Generation (Utilities) | BY22: IA | BZ22: 630.187 | CA22: 0.52 | CB22: 0.386 | CC22: 3529.467963 | CR22: Idaho | CS22: ID | CW22: Iowa | CX22: Iowa | CY22: RFC Michigan | CZ22: RFC Michigan
V23: 14 | W23: ID | X23: 5509 | Y23: 49765574.12 | Z23: 17842445.94 | AA23: 1179.333 | AB23: 436.466 | AC23: 2794952.09 | AD23: 0.132 | AE23: 0.049 | AF23: 313.292 | AG23: 0.047 | AH23: 0.046 | AI23: 0.018 | AJ23: 112.325 | AK23: 0.226 | AL23: 0.005 | AM23: 981.775 | AN23: 0.027 | AO23: 0.001 | AP23: 118.829 | AQ23: 0 | AR23: 123.385 | AS23: 5686224.429 | AT23: 0 | AU23: 0 | AV23: 0 | AW23: 0.319 | AX23: 0 | AY23: 0.344 | AZ23: 2789.167713 | BA23: 8751.764006 | BC23: Source: Canada's Official Greenhouse Gas Inventory, 2022 data, | BJ23: 2 2011 Generation, taken from National Inventory Report, Greenhouse Gas Sources and Sinks in Canada 1990-2011, Environment Canada, Part 3 | BS23: http://www.ec.gc.ca/inrp-npri/default.asp?lang=en&n=0EC58C98-#Emission_Summaries | BY23: ID | BZ23: 313.292 | CA23: 0.049 | CB23: 0.132 | CC23: 2789.167713 | CR23: Illinois | CS23: IL | CW23: Idaho | CX23: Idaho | CY23: RFC West | CZ23: RFC West
C24: Region | E24: =_xlfn.IFS(state=1,"US Average",state<53,_xlfn.XLOOKUP('Heating Load'!C2,Lists!D119:D346,Lists!J119:J346),state=53,"Canada Average",state>53,_xlfn.XLOOKUP(state,Lists!A74:A83,Lists!B74:B83)) -> US Average | V24: 15 | W24: IL | X24: 51850.5 | Y24: 505773729.7 | Z24: 177690286.6 | AA24: 14983.831 | AB24: 23974.718 | AC24: 41908695.06 | AD24: 0.169 | AE24: 0.27 | AF24: 471.705 | AG24: 0.059 | AH24: 0.054 | AI24: 0.095 | AJ24: 165.721 | AK24: 0.532 | AL24: 0.855 | AM24: 1498.718 | AN24: 0.059 | AO24: 0.095 | AP24: 167.003 | AQ24: 27149579.04 | AR24: 26287.541 | AS24: 28416900.38 | AT24: 248087.876 | AU24: 0.153 | AV24: 0 | AW24: 0.16 | AX24: 0.001 | AY24: 0.316 | AZ24: 2846.378041 | BA24: 9057.413809 | BC24: https://data.ec.gc.ca/data/substances/monitor/canada-s-official-greenhouse-gas-inventory/C-Tables-Electricity-Canada-Provinces-Territories/?lang=en | BS24: 3 SOX emissions used to estimate SO2 emissions | BY24: IL | BZ24: 471.705 | CA24: 0.27 | CB24: 0.169 | CC24: 2846.378041 | CR24: Indiana | CS24: IN | CW24: Illinois | CX24: Illinois | CY24: SERC Midwest | CZ24: SERC Midwest
F25: =IF(#REF!="Ontario","Y",IF(#REF!="Alberta","Y",IF(#REF!="New Brunswick","Y",IF(#REF!="Nova Scotia","Y","N")))) ->  | V25: 16 | W25: IN | X25: 30220.7 | Y25: 718341510.5 | Z25: 90031870.7 | AA25: 37124.164 | AB25: 24608.621 | AC25: 65596778.47 | AD25: 0.825 | AE25: 0.547 | AF25: 1457.19 | AG25: 0.103 | AH25: 0.074 | AI25: 0.069 | AJ25: 182.634 | AK25: 0.95 | AL25: 0.655 | AM25: 1682.347 | AN25: 0.102 | AO25: 0.07 | AP25: 180.985 | AQ25: 40931630.14 | AR25: 96718.152 | AS25: 34849282.18 | AT25: 2271502.2 | AU25: 0.455 | AV25: 0.001 | AW25: 0.387 | AX25: 0.025 | AY25: 0.871 | AZ25: 7978.746914 | BA25: 9191.931963 | BY25: IN | BZ25: 1457.19 | CA25: 0.547 | CB25: 0.825 | CC25: 7978.746914 | CR25: Kansas | CS25: KS | CW25: Indiana | CX25: Indiana | CY25: SERC Mississippi Valley | CZ25: SERC Mississippi Valley
E26: =IF(F25="Y","Note that Ontario, NewBrunswick, Nova Scotia and Alberta use calculated marginal mix emissions for CO2."," ") ->  | V26: 17 | W26: KS | X26: 20569.6 | Y26: 224582486.6 | Z26: 58456598.04 | AA26: 14484.647 | AB26: 3295.734 | AC26: 21282869.07 | AD26: 0.496 | AE26: 0.113 | AF26: 728.16 | AG26: 0.129 | AH26: 0.128 | AI26: 0.029 | AJ26: 189.533 | AK26: 1.398 | AL26: 0.317 | AM26: 2054.463 | AN26: 0.129 | AO26: 0.029 | AP26: 190.177 | AQ26: 16290683.67 | AR26: 59081.285 | AS26: 4368902.124 | AT26: 0 | AU26: 0.279 | AV26: 0.001 | AW26: 0.075 | AX26: 0 | AY26: 0.356 | AZ26: 3841.867199 | BA26: 10839.62041 | BY26: KS | BZ26: 728.16 | CA26: 0.113 | CB26: 0.496 | CC26: 3841.867199 | CR26: Kentucky | CS26: KY | CW26: Kansas | CX26: Kansas | CY26: SERC South | CZ26: SERC South
C27: Annual Results | G27: Current | I27: =I10 -> Comparison Cases | V27: 18 | W27: KY | X27: 21645.3 | Y27: 577480223.3 | Z27: 62417958.51 | AA27: 29920.167 | AB27: 34820.715 | AC27: 54147851.83 | AD27: 0.959 | AE27: 1.116 | AF27: 1735.009 | AG27: 0.104 | AH27: 0.09 | AI27: 0.121 | AJ27: 187.531 | AK27: 1.028 | AL27: 1.189 | AM27: 1870.359 | AN27: 0.104 | AO27: 0.12 | AP27: 188.518 | AQ27: 42805601.33 | AR27: 61135.461 | AS27: 14932901.16 | AT27: 91123.23 | AU27: 0.686 | AV27: 0.001 | AW27: 0.239 | AX27: 0.001 | AY27: 0.934 | AZ27: 9251.828113 | BA27: 9975.343414 | BY27: KY | BZ27: 1735.009 | CA27: 1.116 | CB27: 0.959 | CC27: 9251.828113 | CR27: Louisiana | CS27: LA | CW27: Kentucky | CX27: Kentucky | CY27: SERC Tennessee Valley | CZ27: SERC Tennessee Valley
E28: Units | G28: Home | I28: =I11 -> Gas Alternative | K28: =K11 -> 0 | M28: =M11 -> 0 | O28: =O11 -> 0 | Q28: =Q11 -> #5 | S28: =S11 -> #6 | V28: 19 | W28: LA | X28: 28657.7 | Y28: 602670647.2 | Z28: 97434806.41 | AA28: 32219.461 | AB28: 9345.947 | AC28: 37093620.72 | AD28: 0.661 | AE28: 0.192 | AF28: 761.404 | AG28: 0.107 | AH28: 0.106 | AI28: 0.031 | AJ28: 123.097 | AK28: 0.785 | AL28: 0.19 | AM28: 916.522 | AN28: 0.107 | AO28: 0.026 | AP28: 125.377 | AQ28: 4833626.99 | AR28: 1032442.537 | AS28: 74064692.79 | AT28: 1822326.763 | AU28: 0.05 | AV28: 0.011 | AW28: 0.76 | AX28: 0.019 | AY28: 0.859 | AZ28: 6185.373271 | BA28: 7371.83945 | BY28: LA | BZ28: 761.404 | CA28: 0.192 | CB28: 0.661 | CC28: 6185.373271 | CR28: Massachusetts | CS28: MA | CW28: Louisiana | CX28: Louisiana | CY28: SERC Virginia/Carolina | CZ28: SERC Virginia/Carolina
C29: Energy Consumption | V29: 20 | W29: MA | X29: 14490 | Y29: 139819930.6 | Z29: 19663313.08 | AA29: 5834.687 | AB29: 2736.281 | AC29: 8085460.855 | AD29: 0.593 | AE29: 0.278 | AF29: 822.39 | AG29: 0.083 | AH29: 0.079 | AI29: 0.039 | AJ29: 115.655 | AK29: 0.226 | AL29: 0.016 | AM29: 861.477 | AN29: 0.031 | AO29: 0.002 | AP29: 119.15 | AQ29: 0 | AR29: 97476.179 | AS29: 14774025.57 | AT29: 934699.58 | AU29: 0 | AV29: 0.005 | AW29: 0.751 | AX29: 0.048 | AY29: 0.85 | AZ29: 7110.700524 | BA29: 8845.890781 | BY29: MA | BZ29: 822.39 | CA29: 0.278 | CB29: 0.593 | CC29: 7110.700524 | CR29: Maryland | CS29: MD | CW29: Massachusetts | CX29: Massachusetts | CY29: SPP North | CZ29: SPP North
C30: Electricity (generated at central power plant) | G30: =E114 -> 117.7912143 | I30: =I114 -> 0 | K30: =K114 -> 0 | M30: =M114 -> 0 | O30: =O114 -> 0 | Q30: =Q114 -> 0 | S30: =S114 -> 0 | V30: 21 | W30: MD | X30: 13152.7 | Y30: 146699411.2 | Z30: 35987133.3 | AA30: 3131.686 | AB30: 2081.576 | AC30: 9357054.491 | AD30: 0.174 | AE30: 0.116 | AF30: 520.022 | AG30: 0.043 | AH30: 0.05 | AI30: 0.028 | AJ30: 127.568 | AK30: 0.284 | AL30: 0.172 | AM30: 1045.885 | AN30: 0.035 | AO30: 0.021 | AP30: 129.169 | AQ30: 1708970.438 | AR30: 64235.739 | AS30: 15329718.07 | AT30: 312893.72 | AU30: 0.047 | AV30: 0.002 | AW30: 0.426 | AX30: 0.009 | AY30: 0.493 | AZ30: 4076.4406 | BA30: 8423.343165 | BY30: MD | BZ30: 520.022 | CA30: 0.116 | CB30: 0.174 | CC30: 4076.4406 | CR30: Maine | CS30: ME | CW30: Maryland | CX30: Maryland | CY30: SPP South | CZ30: SPP South
C31: Natural Gas | G31: =E93 -> 0 | I31: =I93 -> 90.93591547 | K31: =K93 -> 0 | M31: =M93 -> 0 | O31: =O93 -> 0 | Q31: =Q93 -> 0 | S31: =S93 -> 0 | V31: 22 | W31: ME | X31: 5569 | Y31: 44334746.26 | Z31: 12512180.99 | AA31: 1957.95 | AB31: 1178.609 | AC31: 1950796.127 | AD31: 0.313 | AE31: 0.188 | AF31: 311.824 | AG31: 0.088 | AH31: 0.073 | AI31: 0.053 | AJ31: 88.003 | AK31: 0.146 | AL31: 0.077 | AM31: 847.144 | AN31: 0.021 | AO31: 0.011 | AP31: 119.874 | AQ31: 43205.056 | AR31: 67115.763 | AS31: 3975075.417 | AT31: 179005.538 | AU31: 0.003 | AV31: 0.005 | AW31: 0.318 | AX31: 0.014 | AY31: 0.457 | AZ31: 3543.326802 | BA31: 10396.47496 | BY31: ME | BZ31: 311.824 | CA31: 0.188 | CB31: 0.313 | CC31: 3543.326802 | CR31: Michigan | CS31: MI | CW31: Maine | CX31: Maine | CY31: WECC California | CZ31: WECC California
C32: Propane | E32: MMBtu/yr | G32: =E122 -> 0 | I32: =I122 -> 0 | K32: =K122 -> 0 | M32: =M122 -> 0 | O32: =O122 -> 0 | Q32: =Q122 -> 0 | S32: =S122 -> 0 | V32: 23 | W32: MI | X32: 33247.1 | Y32: 692305003.5 | Z32: 120648501.2 | AA32: 34100.196 | AB32: 26504.644 | AC32: 47847447.15 | AD32: 0.565 | AE32: 0.439 | AF32: 793.171 | AG32: 0.099 | AH32: 0.093 | AI32: 0.077 | AJ32: 138.226 | AK32: 0.8 | AL32: 0.636 | AM32: 1181.814 | AN32: 0.097 | AO32: 0.077 | AP32: 142.903 | AQ32: 23554514.6 | AR32: 1350492.007 | AS32: 54068082.07 | AT32: 1515185.71 | AU32: 0.195 | AV32: 0.011 | AW32: 0.448 | AX32: 0.013 | AY32: 0.684 | AZ32: 5738.198126 | BA32: 8601.315021 | BY32: MI | BZ32: 793.171 | CA32: 0.439 | CB32: 0.565 | CC32: 5738.198126 | CR32: Minnesota | CS32: MN | CW32: Michigan | CX32: Michigan | CY32: WECC Northwest | CZ32: WECC Northwest
C33: Heating Oil | G33: =E126 -> 0 | I33: =I126 -> 0 | K33: =K126 -> 0 | M33: =M126 -> 0 | O33: =O126 -> 0 | Q33: =Q126 -> 0 | S33: =S126 -> 0 | V33: 24 | W33: MN | X33: 20346.1 | Y33: 262470921.3 | Z33: 57260118.98 | AA33: 14205.842 | AB33: 5342.329 | AC33: 21402253.18 | AD33: 0.496 | AE33: 0.187 | AF33: 747.545 | AG33: 0.108 | AH33: 0.106 | AI33: 0.041 | AJ33: 163.083 | AK33: 0.881 | AL33: 0.282 | AM33: 1570.972 | AN33: 0.094 | AO33: 0.03 | AP33: 168.424 | AQ33: 12793785.49 | AR33: 54263.7 | AS33: 13823605.91 | AT33: 254926.78 | AU33: 0.223 | AV33: 0.001 | AW33: 0.241 | AX33: 0.004 | AY33: 0.49 | AZ33: 4583.834718 | BA33: 9747.650947 | BY33: MN | BZ33: 747.545 | CA33: 0.187 | CB33: 0.496 | CC33: 4583.834718 | CR33: Missouri | CS33: MO | CW33: Minnesota | CX33: Minnesota | CY33: WECC Rockies | CZ33: WECC Rockies
C34: Total Energy Consumption | G34: =SUM(G30:G33) -> 117.7912143 | I34: =SUM(I30:I33) -> 90.93591547 | K34: =SUM(K30:K33) -> 0 | M34: =SUM(M30:M33) -> 0 | O34: =SUM(O30:O33) -> 0 | Q34: =SUM(Q30:Q33) -> 0 | S34: =SUM(S30:S33) -> 0 | V34: 25 | W34: MO | X34: 23133.9 | Y34: 497548141 | Z34: 66705178.96 | AA34: 35312.682 | AB34: 72692.689 | AC34: 48165698.61 | AD34: 1.059 | AE34: 2.18 | AF34: 1444.137 | AG34: 0.142 | AH34: 0.092 | AI34: 0.292 | AJ34: 193.612 | AK34: 1.418 | AL34: 2.919 | AM34: 1934.34 | AN34: 0.142 | AO34: 0.292 | AP34: 193.818 | AQ34: 40348167.98 | AR34: 131722.498 | AS34: 9260975.351 | AT34: 0 | AU34: 0.605 | AV34: 0.002 | AW34: 0.139 | AX34: 0 | AY34: 0.747 | AZ34: 7458.913218 | BA34: 10002.80419 | BY34: MO | BZ34: 1444.137 | CA34: 2.18 | CB34: 1.059 | CC34: 7458.913218 | CR34: Mississippi | CS34: MS | CW34: Missouri | CX34: Missouri | CY34: WECC Southwest | CZ34: WECC Southwest
C35: CO2 Emissions | E35: lb/year | V35: 26 | W35: MS | X35: 17031.6 | Y35: 474122406.2 | Z35: 72933440.2 | AA35: 13338.087 | AB35: 4498.003 | AC35: 30133709.32 | AD35: 0.366 | AE35: 0.123 | AF35: 826.335 | AG35: 0.056 | AH35: 0.061 | AI35: 0.019 | AJ35: 127.114 | AK35: 0.431 | AL35: 0.095 | AM35: 1020.055 | AN35: 0.055 | AO35: 0.012 | AP35: 129.171 | AQ35: 4036974.42 | AR35: 7060.381 | AS35: 55167572.32 | AT35: 0 | AU35: 0.055 | AV35: 0 | AW35: 0.756 | AX35: 0 | AY35: 0.83 | AZ35: 6500.754728 | BA35: 8007.254477 | BY35: =W36 -> MT | BZ35: =AF36 -> 1056.167 | CA35: =AE36 -> 0.809 | CB35: =AD36 -> 0.873 | CC35: =AZ36 -> 5192.389454 | CR35: Montana | CS35: MT | CW35: Mississippi | CX35: Mississippi
C36: Electricity | G36: =E115 -> 17266.81626 | I36: =I115 -> 0 | K36: =K115 -> 0 | M36: =M115 -> 0 | O36: =O115 -> 0 | Q36: =Q115 -> 0 | S36: =S115 -> 0 | V36: 27 | W36: MT | X36: 6890.3 | Y36: 139653250.3 | Z36: 26895758.01 | AA36: 11734.543 | AB36: 10875.186 | AC36: 14203204.3 | AD36: 0.873 | AE36: 0.809 | AF36: 1056.167 | AG36: 0.168 | AH36: 0.161 | AI36: 0.156 | AJ36: 203.407 | AK36: 1.795 | AL36: 1.666 | AM36: 2175.868 | AN36: 0.168 | AO36: 0.156 | AP36: 203.721 | AQ36: 11553038.6 | AR36: 490846.626 | AS36: 1001699.915 | AT36: 9622.534 | AU36: 0.43 | AV36: 0.018 | AW36: 0.037 | AX36: 0 | AY36: 0.486 | AZ36: 5192.389454 | BA36: 10697.12974 | BY36: NC | BZ36: 623.958 | CA36: 0.166 | CB36: 0.386 | CC36: 4530.123656 | CR36: North Carolina | CS36: NC | CW36: Montana | CX36: Montana
C37: Natural Gas | G37: =E119 -> 0 | I37: =I119 -> 10698.343 | K37: =K119 -> 0 | M37: =M119 -> 0 | O37: =O119 -> 0 | Q37: =Q119 -> 0 | S37: =S119 -> 0 | V37: 28 | W37: NC | X37: 39154.9 | Y37: 573109024.6 | Z37: 126510680.1 | AA37: 24398.718 | AB37: 10478.67 | AC37: 39468698.06 | AD37: 0.386 | AE37: 0.166 | AF37: 623.958 | AG37: 0.085 | AH37: 0.089 | AI37: 0.037 | AJ37: 137.735 | AK37: 0.713 | AL37: 0.267 | AM37: 1194.496 | AN37: 0.084 | AO37: 0.032 | AP37: 141.303 | AQ37: 14204598.86 | AR37: 84102.298 | AS37: 51784571.58 | AT37: 0 | AU37: 0.112 | AV37: 0.001 | AW37: 0.409 | AX37: 0 | AY37: 0.536 | AZ37: 4530.123656 | BA37: 8673.840433 | BY37: ND | BZ37: 1288.364 | CA37: 1.603 | CB37: 1.326 | CC37: 6105.249141 | CR37: North Dakota | CS37: ND | CW37: North Carolina | CX37: North Carolina
C38: Propane | G38: =E123 -> 0 | I38: =I123 -> 0 | K38: =K123 -> 0 | M38: =M123 -> 0 | O38: =O123 -> 0 | Q38: =Q123 -> 0 | S38: =S123 -> 0 | V38: 29 | W38: ND | X38: 9875.2 | Y38: 256840548.6 | Z38: 42068807.12 | AA38: 27883.391 | AB38: 33709.341 | AC38: 27099969.92 | AD38: 1.326 | AE38: 1.603 | AF38: 1288.364 | AG38: 0.217 | AH38: 0.216 | AI38: 0.262 | AJ38: 211.026 | AK38: 2.194 | AL38: 2.654 | AM38: 2132.674 | AN38: 0.217 | AO38: 0.263 | AP38: 211.093 | AQ38: 22525075.52 | AR38: 53110.228 | AS38: 2833420.614 | AT38: 23420.764 | AU38: 0.535 | AV38: 0.001 | AW38: 0.067 | AX38: 0.001 | AY38: 0.605 | AZ38: 6105.249141 | BA38: 10097.9074 | BY38: NE | BZ38: 1018.154 | CA38: 2.119 | CB38: 0.955 | CC38: 5065.098425 | CR38: Nebraska | CS38: NE | CW38: North Dakota | CX38: North Dakota
C39: Heating Oil | G39: =E127 -> 0 | I39: =I127 -> 0 | K39: =K127 -> 0 | M39: =M127 -> 0 | O39: =O127 -> 0 | Q39: =Q127 -> 0 | S39: =S127 -> 0 | V39: 30 | W39: NE | X39: 11356.2 | Y39: 199797644.6 | Z39: 39445955.01 | AA39: 18829.621 | AB39: 41789.504 | AC39: 20081034.17 | AD39: 0.955 | AE39: 2.119 | AF39: 1018.154 | AG39: 0.188 | AH39: 0.192 | AI39: 0.418 | AJ39: 201.014 | AK39: 1.906 | AL39: 4.31 | AM39: 2071.345 | AN39: 0.186 | AO39: 0.42 | AP39: 201.778 | AQ39: 17916482 | AR39: 35117.441 | AS39: 1410845.68 | AT39: 0 | AU39: 0.454 | AV39: 0.001 | AW39: 0.036 | AX39: 0 | AY39: 0.493 | AZ39: 5065.098425 | BA39: 10318.82303 | BY39: NH | BZ39: 272.854 | CA39: 0.053 | CB39: 0.134 | CC39: 2777.68279 | CR39: New Hampshire | CS39: NH | CW39: Nebraska | CX39: Nebraska
C40: Total CO2 Emissions | G40: =E130 -> 17266.81626 | I40: =I130 -> 10698.343 | K40: =K130 -> 0 | M40: =M130 -> 0 | O40: =O130 -> 0 | Q40: =Q130 -> 0 | S40: =S130 -> 0 | V40: 31 | W40: NH | X40: 4732.4 | Y40: 46734509.86 | Z40: 16824998.89 | AA40: 1127.468 | AB40: 449.094 | AC40: 2295383.716 | AD40: 0.134 | AE40: 0.053 | AF40: 272.854 | AG40: 0.048 | AH40: 0.035 | AI40: 0.019 | AJ40: 98.231 | AK40: 0.253 | AL40: 0.103 | AM40: 929.248 | AN40: 0.034 | AO40: 0.014 | AP40: 124.005 | AQ40: 160140.27 | AR40: 67959.205 | AS40: 4225547.919 | AT40: 51090.385 | AU40: 0.01 | AV40: 0.004 | AW40: 0.251 | AX40: 0.003 | AY40: 0.314 | AZ40: 2777.68279 | BA40: 10374.52392 | BY40: NJ | BZ40: 468.31 | CA40: 0.059 | CB40: 0.163 | CC40: 4020.131789 | CR40: New Jersey | CS40: NJ | CW40: New Hampshire | CX40: New Hampshire
C41: SO2 Emissions | E41: lb/year | V41: 32 | W41: NJ | X41: 18289.3 | Y41: 258072545.3 | Z41: 64195046.03 | AA41: 5217.202 | AB41: 1890.376 | AC41: 15031580.67 | AD41: 0.163 | AE41: 0.059 | AF41: 468.31 | AG41: 0.04 | AH41: 0.038 | AI41: 0.015 | AJ41: 116.491 | AK41: 0.194 | AL41: 0.006 | AM41: 837.909 | AN41: 0.027 | AO41: 0.001 | AP41: 117.965 | AQ41: 0 | AR41: 42265.62 | AS41: 33045872.29 | AT41: 705532.535 | AU41: 0 | AV41: 0.001 | AW41: 0.515 | AX41: 0.011 | AY41: 0.537 | AZ41: 4020.131789 | BA41: 7636.712492 | BY41: NM | BZ41: 770.214 | CA41: 0.105 | CB41: 0.394 | CC41: 5059.940666 | CR41: New Mexico | CS41: NM | CW41: New Jersey | CX41: New Jersey
C42: Electricity | G42: =E116 -> 7.707313876 | I42: =I116 -> 0 | K42: =K116 -> 0 | M42: =M116 -> 0 | O42: =O116 -> 0 | Q42: =Q116 -> 0 | S42: =S116 -> 0 | V42: 33 | W42: NM | X42: 11346 | Y42: 198647495.9 | Z42: 39258858.76 | AA42: 7727.373 | AB42: 2068.81 | AC42: 15118858.61 | AD42: 0.394 | AE42: 0.105 | AF42: 770.214 | AG42: 0.078 | AH42: 0.075 | AI42: 0.021 | AJ42: 152.218 | AK42: 0.675 | AL42: 0.192 | AM42: 1399.692 | AN42: 0.073 | AO42: 0.021 | AP42: 152.339 | AQ42: 7371813.3 | AR42: 1411.085 | AS42: 14230764.76 | AT42: 0 | AU42: 0.188 | AV42: 0 | AW42: 0.362 | AX42: 0 | AY42: 0.551 | AZ42: 5059.940666 | BA42: 9194.945186 | BY42: NV | BZ42: 642.37 | CA42: 0.137 | CB42: 0.479 | CC42: 4975.586846 | CR42: Nevada | CS42: NV | CW42: New Mexico | CX42: New Mexico
C43: Natural Gas | G43: =E120 -> 0 | I43: =I120 -> 0.05349171498 | K43: =K120 -> 0 | M43: =M120 -> 0 | O43: =O120 -> 0 | Q43: =Q120 -> 0 | S43: =S120 -> 0 | V43: 34 | W43: NV | X43: 16023.5 | Y43: 209782461.3 | Z43: 42162355.47 | AA43: 10091.103 | AB43: 2890.027 | AC43: 13541908.81 | AD43: 0.479 | AE43: 0.137 | AF43: 642.37 | AG43: 0.096 | AH43: 0.11 | AI43: 0.028 | AJ43: 129.104 | AK43: 0.754 | AL43: 0.215 | AM43: 1009.955 | AN43: 0.097 | AO43: 0.028 | AP43: 129.279 | AQ43: 2059635.61 | AR43: 7892.432 | AS43: 24599326.48 | AT43: 0 | AU43: 0.049 | AV43: 0 | AW43: 0.583 | AX43: 0 | AY43: 0.634 | AZ43: 4975.586846 | BA43: 7866.786882 | BY43: NY | BZ43: 465.136 | CA43: 0.051 | CB43: 0.183 | CC43: 4042.249561 | CR43: New York | CS43: NY | CW43: Nevada | CX43: Nevada
C44: Propane | G44: =E124 -> 0 | I44: =I124 -> 0 | K44: =K124 -> 0 | M44: =M124 -> 0 | O44: =O124 -> 0 | Q44: =Q124 -> 0 | S44: =S124 -> 0 | V44: 35 | W44: NY | X44: 43557.9 | Y44: 499111591.1 | Z44: 123473720.2 | AA44: 11326.044 | AB44: 3166.167 | AC44: 28716017.31 | AD44: 0.183 | AE44: 0.051 | AF44: 465.136 | AG44: 0.045 | AH44: 0.044 | AI44: 0.013 | AJ44: 115.069 | AK44: 0.272 | AL44: 0.026 | AM44: 933.792 | AN44: 0.034 | AO44: 0.003 | AP44: 117.777 | AQ44: 0 | AR44: 412022.015 | AS44: 57947314.94 | AT44: 963374.621 | AU44: 0 | AV44: 0.003 | AW44: 0.469 | AX44: 0.008 | AY44: 0.494 | AZ44: 4042.249561 | BA44: 8413.49928 | BY44: OH | BZ44: 1063.843 | CA44: 0.61 | CB44: 0.344 | CC44: 7054.536836 | CR44: Ohio | CS44: OH | CW44: New York | CX44: New York
C45: Heating Oil | G45: =E128 -> 0 | I45: =I128 -> 0 | K45: =K128 -> 0 | M45: =M128 -> 0 | O45: =O128 -> 0 | Q45: =Q128 -> 0 | S45: =S128 -> 0 | V45: 36 | W45: OH | X45: 33503.5 | Y45: 939107638.8 | Z45: 133121090.8 | AA45: 22890.447 | AB45: 40604.292 | AC45: 70809976.73 | AD45: 0.344 | AE45: 0.61 | AF45: 1063.843 | AG45: 0.049 | AH45: 0.036 | AI45: 0.086 | AJ45: 150.803 | AK45: 0.403 | AL45: 0.725 | AM45: 1261.228 | AN45: 0.048 | AO45: 0.087 | AP45: 150.741 | AQ45: 31363276.29 | AR45: 1049331.57 | AS45: 78692836.79 | AT45: 795657.932 | AU45: 0.236 | AV45: 0.008 | AW45: 0.591 | AX45: 0.006 | AY45: 0.843 | AZ45: 7054.536836 | BA45: 8392.300139 | BY45: OK | BZ45: 647.207 | CA45: 0.221 | CB45: 0.469 | CC45: 5014.771278 | CR45: Oklahoma | CS45: OK | CW45: Ohio | CX45: Ohio
C46: Total SO2 Emissions | G46: =E131 -> 7.707313876 | I46: =I131 -> 0.05349171498 | K46: =K131 -> 0 | M46: =M131 -> 0 | O46: =O131 -> 0 | Q46: =Q131 -> 0 | S46: =S131 -> 0 | V46: 37 | W46: OK | X46: 33980.4 | Y46: 445703422.7 | Z46: 88878115.88 | AA46: 20863.357 | AB46: 9813.302 | AC46: 28761252.73 | AD46: 0.469 | AE46: 0.221 | AF46: 647.207 | AG46: 0.094 | AH46: 0.102 | AI46: 0.044 | AJ46: 129.06 | AK46: 0.829 | AL46: 0.378 | AM46: 1150.225 | AN46: 0.093 | AO46: 0.043 | AP46: 129.673 | AQ46: 5061859.073 | AR46: 19727.441 | AS46: 44991794.85 | AT46: 18472.084 | AU46: 0.057 | AV46: 0 | AW46: 0.506 | AX46: 0 | AY46: 0.567 | AZ46: 5014.771278 | BA46: 8897.722724 | BY46: OR | BZ46: 364.162 | CA46: 0.02 | CB46: 0.639 | CC46: 3221.868385 | CR46: Oregon | CS46: OR | CW46: Oklahoma | CX46: Oklahoma
C47: NOX Emissions | E47: lb/year | V47: 38 | W47: OR | X47: 18220.9 | Y47: 198735474.2 | Z47: 61683300.01 | AA47: 19715.185 | AB47: 622.799 | AC47: 11231359.31 | AD47: 0.639 | AE47: 0.02 | AF47: 364.162 | AG47: 0.198 | AH47: 0.198 | AI47: 0.006 | AJ47: 113.028 | AK47: 1.594 | AL47: 0.006 | AM47: 956.364 | AN47: 0.197 | AO47: 0.001 | AP47: 118.405 | AQ47: 0 | AR47: 195.02 | AS47: 23384819.66 | AT47: 26841.729 | AU47: 0 | AV47: 0 | AW47: 0.379 | AX47: 0 | AY47: 0.395 | AZ47: 3221.868385 | BA47: 8488.66791 | BY47: PA | BZ47: 645.773 | CA47: 0.229 | CB47: 0.205 | CC47: 5078.873299 | CR47: Pennsylvania | CS47: PA | CW47: Oregon | CX47: Oregon
C48: Electricity | G48: =E117 -> 9.651133778 | I48: =I117 -> 0 | K48: =K117 -> 0 | M48: =M117 -> 0 | O48: =O117 -> 0 | Q48: =Q117 -> 0 | S48: =S117 -> 0 | V48: 39 | W48: PA | X48: 53762 | Y48: 1198169953 | Z48: 235912550.5 | AA48: 24158.066 | AB48: 26965.077 | AC48: 76172924.03 | AD48: 0.205 | AE48: 0.229 | AF48: 645.773 | AG48: 0.04 | AH48: 0.038 | AI48: 0.045 | AJ48: 127.149 | AK48: 0.271 | AL48: 0.315 | AM48: 979.626 | AN48: 0.036 | AO48: 0.041 | AP48: 128.725 | AQ48: 12834827.96 | AR48: 48121.495 | AS48: 139252157.2 | AT48: 1472335.62 | AU48: 0.054 | AV48: 0 | AW48: 0.59 | AX48: 0.006 | AY48: 0.658 | AZ48: 5078.873299 | BA48: 7800.207697 | BY48: RI | BZ48: 839.136 | CA48: 0.013 | CB48: 0.372 | CC48: 7285.89746 | CR48: Rhode Island | CS48: RI | CW48: Pennsylvania | CX48: Pennsylvania
C49: Natural Gas | G49: =E121 -> 0 | I49: =I121 -> 11.22335427 | K49: =K121 -> 0 | M49: =M121 -> 0 | O49: =O121 -> 0 | Q49: =Q121 -> 0 | S49: =S121 -> 0 | V49: 40 | W49: RI | X49: 2472.6 | Y49: 75893937.39 | Z49: 10416553.05 | AA49: 1939.322 | AB49: 65.276 | AC49: 4370451.442 | AD49: 0.372 | AE49: 0.013 | AF49: 839.136 | AG49: 0.051 | AH49: 0.052 | AI49: 0.002 | AJ49: 115.173 | AK49: 0.405 | AL49: 0.005 | AM49: 912.802 | AN49: 0.053 | AO49: 0.001 | AP49: 118.916 | AQ49: 0 | AR49: 30248.519 | AS49: 9545650.725 | AT49: 0 | AU49: 0 | AV49: 0.003 | AW49: 0.916 | AX49: 0 | AY49: 0.942 | AZ49: 7285.89746 | BA49: 7925.515449 | BY49: SC | BZ49: 557.173 | CA49: 0.171 | CB49: 0.238 | CC49: 3647.437648 | CR49: South Carolina | CS49: SC | CW49: Rhode Island | CX49: Rhode Island
C50: Propane | G50: =E125 -> 0 | I50: =I125 -> 0 | K50: =K125 -> 0 | M50: =M125 -> 0 | O50: =O125 -> 0 | Q50: =Q125 -> 0 | S50: =S125 -> 0 | V50: 41 | W50: SC | X50: 26563.6 | Y50: 367856442.1 | Z50: 100853387.4 | AA50: 12004.016 | AB50: 8624.608 | AC50: 28096403.54 | AD50: 0.238 | AE50: 0.171 | AF50: 557.173 | AG50: 0.065 | AH50: 0.067 | AI50: 0.047 | AJ50: 152.757 | AK50: 0.563 | AL50: 0.384 | AM50: 1444.126 | AN50: 0.062 | AO50: 0.042 | AP50: 158.667 | AQ50: 15150420.79 | AR50: 96064.084 | AS50: 23691443.87 | AT50: 44685.38 | AU50: 0.15 | AV50: 0.001 | AW50: 0.235 | AX50: 0 | AY50: 0.404 | AZ50: 3647.437648 | BA50: 9436.423144 | BY50: SD | BZ50: 334.032 | CA50: 0.076 | CB50: 0.25 | CC50: 2086.643684 | CR50: South Dakota | CS50: SD | CW50: South Carolina | CX50: South Carolina
C51: Heating Oil | G51: =E129 -> 0 | I51: =I129 -> 0 | K51: =K129 -> 0 | M51: =M129 -> 0 | O51: =O129 -> 0 | Q51: =Q129 -> 0 | S51: =S129 -> 0 | V51: 42 | W51: SD | X51: 7235.5 | Y51: 36320110.62 | Z51: 17405995.53 | AA51: 2173.568 | AB51: 660.095 | AC51: 2907080.468 | AD51: 0.25 | AE51: 0.076 | AF51: 334.032 | AG51: 0.12 | AH51: 0.119 | AI51: 0.036 | AJ51: 160.081 | AK51: 1.169 | AL51: 0.355 | AM51: 1563.701 | AN51: 0.12 | AO51: 0.036 | AP51: 160.081 | AQ51: 1562742.1 | AR51: 23041.409 | AS51: 2115780.251 | AT51: 0 | AU51: 0.09 | AV51: 0.001 | AW51: 0.122 | AX51: 0 | AY51: 0.214 | AZ51: 2086.643684 | BA51: 9812.099149 | BY51: TN | BZ51: 657.267 | CA51: 0.213 | CB51: 0.237 | CC51: 3902.302409 | CR51: Tennessee | CS51: TN | CW51: South Dakota | CX51: South Dakota
C52: Total NOX Emissions | G52: =E132 -> 9.651133778 | I52: =I132 -> 11.22335427 | K52: =K132 -> 0 | M52: =M132 -> 0 | O52: =O132 -> 0 | Q52: =Q132 -> 0 | S52: =S132 -> 0 | V52: 43 | W52: TN | X52: 24375.1 | Y52: 303419648.1 | Z52: 77754006.81 | AA52: 9225.548 | AB52: 8285.442 | AC52: 25552566.61 | AD52: 0.237 | AE52: 0.213 | AF52: 657.267 | AG52: 0.061 | AH52: 0.058 | AI52: 0.055 | AJ52: 168.431 | AK52: 0.555 | AL52: 0.524 | AM52: 1704.73 | AN52: 0.056 | AO52: 0.053 | AP52: 172.935 | AQ52: 15792908.67 | AR52: 101670.945 | AS52: 14993149.64 | AT52: 10846.629 | AU52: 0.203 | AV52: 0.001 | AW52: 0.193 | AX52: 0 | AY52: 0.403 | AZ52: 3902.302409 | BA52: 9819.858664 | BY52: TX | BZ52: 768.317 | CA52: 0.389 | CB52: 0.476 | CC52: 5376.173658 | CR52: Texas | CS52: TX | CW52: Tennessee | CX52: Tennessee
C53: Emissions Savings (relative to Reference Case) | V53: 44 | W53: TX | X53: 166741.2 | Y53: 2924846243 | Z53: 544038647 | AA53: 129439.519 | AB53: 105797.409 | AC53: 208997061.4 | AD53: 0.476 | AE53: 0.389 | AF53: 768.317 | AG53: 0.089 | AH53: 0.088 | AI53: 0.072 | AJ53: 142.911 | AK53: 0.73 | AL53: 0.599 | AM53: 1186.826 | AN53: 0.088 | AO53: 0.073 | AP53: 143.634 | AQ53: 70692781.82 | AR53: 232193.339 | AS53: 281027743 | AT53: 2329379.151 | AU53: 0.13 | AV53: 0 | AW53: 0.517 | AX53: 0.004 | AY53: 0.654 | AZ53: 5376.173658 | BA53: 8255.698681 | BY53: UT | BZ53: 1413.019 | CA53: 0.275 | CB53: 1.282 | CC53: 8106.142393 | CR53: Utah | CS53: UT | CW53: Texas | CX53: Texas
C54: CO2 | E54: lb/year | G54: N/A | I54: =I133 -> 6568.473259 | K54: =K133 -> 0 | M54: =M133 -> 0 | O54: =O133 -> 0 | Q54: =Q133 -> 0 | S54: =S133 -> 0 | V54: 45 | W54: UT | X54: 10132.4 | Y54: 265795869.9 | Z54: 32789440.04 | AA54: 21019.628 | AB54: 4515.844 | AC54: 23166056.11 | AD54: 1.282 | AE54: 0.275 | AF54: 1413.019 | AG54: 0.158 | AH54: 0.149 | AI54: 0.034 | AJ54: 174.315 | AK54: 1.57 | AL54: 0.336 | AM54: 1730.799 | AN54: 0.159 | AO54: 0.034 | AP54: 175.023 | AQ54: 14894151.65 | AR54: 28250.181 | AS54: 11834246.62 | AT54: 2746.502 | AU54: 0.454 | AV54: 0.001 | AW54: 0.361 | AX54: 0 | AY54: 0.819 | AZ54: 8106.142393 | BA54: 9932.805671 | BY54: VA | BZ54: 536.851 | CA54: 0.071 | CB54: 0.175 | CC54: 4795.848286 | CR54: Virginia | CS54: VA | CW54: Utah | CX54: Utah
I55: =I54/$G40 -> 0.3804102136 | K55: =K54/$G40 -> 0 | M55: =M54/$G40 -> 0 | O55: =O54/$G40 -> 0 | Q55: =Q54/$G40 -> 0 | S55: =S54/$G40 -> 0 | V55: 46 | W55: VA | X55: 31740.2 | Y55: 436537790.5 | Z55: 91024103.44 | AA55: 7981.91 | AB55: 3211.614 | AC55: 24433203.53 | AD55: 0.175 | AE55: 0.071 | AF55: 536.851 | AG55: 0.037 | AH55: 0.039 | AI55: 0.015 | AJ55: 111.941 | AK55: 0.214 | AL55: 0.044 | AM55: 897.954 | AN55: 0.029 | AO55: 0.006 | AP55: 120.294 | AQ55: 1415026.912 | AR55: 134545.48 | AS55: 50604693.84 | AT55: 478300.499 | AU55: 0.016 | AV55: 0.001 | AW55: 0.556 | AX55: 0.005 | AY55: 0.615 | AZ55: 4795.848286 | BA55: 8294.062357 | BY55: VT | BZ55: 42.981 | CA55: 0.039 | CB55: 0.168 | CC55: 2529.429594 | CR55: Vermont | CS55: VT | CW55: Virginia | CX55: Virginia
C56: SO2 | G56: N/A | I56: =I134 -> 7.653822161 | K56: =K134 -> 0 | M56: =M134 -> 0 | O56: =O134 -> 0 | Q56: =Q134 -> 0 | S56: =S134 -> 0 | V56: 47 | W56: VT | X56: 906.1 | Y56: 6273488.11 | Z56: 2480198.747 | AA56: 208.497 | AB56: 48.197 | AC56: 53300.219 | AD56: 0.168 | AE56: 0.039 | AF56: 42.981 | AG56: 0.066 | AH56: 0.065 | AI56: 0.015 | AJ56: 16.992 | AK56: 8.454 | AL56: 4.948 | AM56: 3308.132 | AN56: 0.416 | AO56: 0.243 | AP56: 162.59 | AQ56: 0 | AR56: 2610.639 | AS56: 1263.702 | AT56: 0 | AU56: 0 | AV56: 0.001 | AW56: 0.001 | AX56: 0 | AY56: 0.164 | AZ56: 2529.429594 | BA56: 1619240.049 | BY56: WA | BZ56: 265.119 | CA56: 0.044 | CB56: 0.181 | CC56: 1995.343637 | CR56: Washington | CS56: WA | CW56: Vermont | CX56: Vermont
I57: =I56/$G46 -> 0.9930596164 | K57: =K56/$G46 -> 0 | M57: =M56/$G46 -> 0 | O57: =O56/$G46 -> 0 | Q57: =Q56/$G46 -> 0 | S57: =S56/$G46 -> 0 | V57: 48 | W57: WA | X57: 31522.3 | Y57: 205426913.1 | Z57: 102953150.2 | AA57: 9337.514 | AB57: 2247.686 | AC57: 13647438.61 | AD57: 0.181 | AE57: 0.044 | AF57: 265.119 | AG57: 0.091 | AH57: 0.09 | AI57: 0.022 | AJ57: 132.869 | AK57: 0.665 | AL57: 0.106 | AM57: 1134.455 | AN57: 0.083 | AO57: 0.013 | AP57: 141.349 | AQ57: 4162607.265 | AR57: 23717.441 | AS57: 19407850.62 | AT57: 306925.042 | AU57: 0.04 | AV57: 0 | AW57: 0.189 | AX57: 0.003 | AY57: 0.244 | AZ57: 1995.343637 | BA57: 8594.872621 | BY57: WI | BZ57: 1156.996 | CA57: 0.144 | CB57: 0.508 | CC57: 7228.396754 | CR57: Wisconsin | CS57: WI | CW57: Washington | CX57: Washington
C58: NOX | G58: N/A | I58: =I135 -> -1.572220495 | K58: =K135 -> 0 | M58: =M135 -> 0 | O58: =O135 -> 0 | Q58: =Q135 -> 0 | S58: =S135 -> 0 | V58: 49 | W58: WI | X58: 19253.9 | Y58: 452056004.7 | Z58: 62538903.17 | AA58: 15900.211 | AB58: 4517.793 | AC58: 36178632.49 | AD58: 0.508 | AE58: 0.144 | AF58: 1156.996 | AG58: 0.07 | AH58: 0.072 | AI58: 0.02 | AJ58: 160.063 | AK58: 0.626 | AL58: 0.159 | AM58: 1539.845 | AN58: 0.067 | AO58: 0.017 | AP58: 163.751 | AQ58: 21086690.44 | AR58: 91090.97 | AS58: 25621193.98 | AT58: 95460.042 | AU58: 0.337 | AV58: 0.001 | AW58: 0.41 | AX58: 0.002 | AY58: 0.766 | AZ58: 7228.396754 | BA58: 9639.864527 | BY58: WV | BZ58: 1954.383 | CA58: 1.498 | CB58: 1.062 | CC58: 9840.397086 | CR58: West Virginia | CS58: WV | CW58: Wisconsin | CX58: Wisconsin
I59: =I58/$G52 -> -0.1629052639 | K59: =K58/$G52 -> 0 | M59: =M58/$G52 -> 0 | O59: =O58/$G52 -> 0 | Q59: =Q58/$G52 -> 0 | S59: =S58/$G52 -> 0 | V59: 50 | W59: WV | X59: 15699.4 | Y59: 514522719.5 | Z59: 52286784.27 | AA59: 27758.075 | AB59: 39162.372 | AC59: 51094198.8 | AD59: 1.062 | AE59: 1.498 | AF59: 1954.383 | AG59: 0.108 | AH59: 0.094 | AI59: 0.152 | AJ59: 198.608 | AK59: 1.141 | AL59: 1.609 | AM59: 2099.531 | AN59: 0.108 | AO59: 0.152 | AP59: 198.624 | AQ59: 44797569.29 | AR59: 162826.025 | AS59: 3679657.725 | AT59: 31967.937 | AU59: 0.857 | AV59: 0.003 | AW59: 0.07 | AX59: 0.001 | AY59: 0.931 | AZ59: 9840.397086 | BA59: 10571.2216 | BY59: WY | BZ59: 1820.318 | CA59: 1.113 | CB59: 1.202 | CC59: 8881.934788 | CR59: Wyoming | CS59: WY | CW59: West Virginia | CX59: West Virginia
C60: Equivalent CO2 Emissions | V60: 51 | W60: WY | X60: 11105 | Y60: 383489535.8 | Z60: 43176351.21 | AA60: 25944.44 | AB60: 24027.186 | AC60: 39297340.12 | AD60: 1.202 | AE60: 1.113 | AF60: 1820.318 | AG60: 0.135 | AH60: 0.13 | AI60: 0.125 | AJ60: 204.946 | AK60: 1.554 | AL60: 1.441 | AM60: 2354.401 | AN60: 0.135 | AO60: 0.125 | AP60: 204.808 | AQ60: 30844003.17 | AR60: 43711.743 | AS60: 2129478.195 | AT60: 352365.76 | AU60: 0.714 | AV60: 0.001 | AW60: 0.049 | AX60: 0.008 | AY60: 0.773 | AZ60: 8881.934788 | BA60: 11492.19675 | CR60: ASCC Alaska Grid | CS60: ASCC Alaska Grid | CW60: Wyoming | CX60: Wyoming
C61: Cars | G61: N/A | I61: =I137 -> 0.6477043316 | K61: =K137 -> 0 | M61: =M137 -> 0 | O61: =O137 -> 0 | Q61: =Q137 -> 0 | S61: =S137 -> 0 | V61: 52 | W61: ASCC Alaska Grid | X61: 2194 | Y61: 34476388.97 | Z61: 5096872.779 | AA61: 14153.801 | AB61: 789.811 | AC61: 2292658.457 | AD61: 5.554 | AE61: 0.31 | AF61: 899.633 | AG61: 0.821 | AH61: 0.914 | AI61: 0.046 | AJ61: 132.999 | AK61: 6.631 | AL61: 0.367 | AM61: 1074.068 | AN61: 0.831 | AO61: 0.046 | AP61: 134.576 | AQ61: 730681.46 | AR61: 459495.574 | AS61: 3080066.474 | AT61: 0 | AU61: 0.143 | AV61: 0.09 | AW61: 0.604 | AX61: 0 | AY61: 0.845 | AZ61: 6764.22396 | BA61: 8073.635358 | BY61: US Average_Fossil | BZ61: =AM9 -> 1270.259 | CA61: =AL9 -> 0.567 | CB61: =AK9 -> 0.71 | CC61: =BA9 -> 8665.485746 | CR61: ASCC Miscellaneous | CS61: ASCC Miscellaneous
C62: Homes | G62: N/A | I62: =I138 -> 0.6209753909 | K62: =K138 -> 0 | M62: =M138 -> 0 | O62: =O138 -> 0 | Q62: =Q138 -> 0 | S62: =S138 -> 0 | V62: 53 | W62: ASCC Miscellaneous | X62: 901.5 | Y62: 5457534.768 | Z62: 1582032.382 | AA62: 6438.18 | AB62: 560.168 | AC62: 411710.53 | AD62: 8.139 | AE62: 0.708 | AF62: 520.483 | AG62: 2.359 | AH62: 2.25 | AI62: 0.205 | AJ62: 150.878 | AK62: 25.854 | AL62: 2.255 | AM62: 1656.666 | AN62: 2.353 | AO62: 0.205 | AP62: 150.748 | AQ62: 0 | AR62: 389096.751 | AS62: 102340.629 | AT62: 0 | AU62: 0 | AV62: 0.246 | AW62: 0.065 | AX62: 0 | AY62: 0.311 | AZ62: 3449.698521 | BA62: 11105.2496 | BY62: AK_Fossil | BZ62: 1134.697 | CA62: 0.563 | CB62: 8.631 | CC62: 8386.518266 | CR62: WECC Southwest | CS62: WECC Southwest
C63: $ amount | G63: =SUM(Calc!B132:B135) -> 2059.633507 | I63: =Calc!B131 -> 1348.579626 | V63: 54 | W63: WECC Southwest | X63: 54243.2 | Y63: 885385352 | Z63: 175554659.5 | AA63: 31618.223 | AB63: 9001.44 | AC63: 61769179.17 | AD63: 0.36 | AE63: 0.103 | AF63: 703.703 | AG63: 0.071 | AH63: 0.073 | AI63: 0.02 | AJ63: 139.531 | AK63: 0.587 | AL63: 0.169 | AM63: 1173.527 | AN63: 0.07 | AO63: 0.02 | AP63: 140.494 | AQ63: 19440366.67 | AR63: 34236.082 | AS63: 85450236.46 | AT63: 0 | AU63: 0.111 | AV63: 0 | AW63: 0.487 | AX63: 0 | AY63: 0.6 | AZ63: 5043.360025 | BA63: 8438.281713 | BY63: AL_Fossil | BZ63: 1232.689 | CA63: 0.057 | CB63: 0.331 | CC63: 8546.650433 | CR63: WECC California | CS63: WECC California
V64: 55 | W64: WECC California | X64: 99264.3 | Y64: 818268630.2 | Z64: 220986983.3 | AA64: 36695.116 | AB64: 2159.791 | AC64: 47342486.55 | AD64: 0.332 | AE64: 0.02 | AF64: 428.464 | AG64: 0.09 | AH64: 0.092 | AI64: 0.005 | AJ64: 115.714 | AK64: 0.603 | AL64: 0.024 | AM64: 931.576 | AN64: 0.08 | AO64: 0.003 | AP64: 123.822 | AQ64: 4645646.376 | AR64: 84833.379 | AS64: 94784061.27 | AT64: 1483673.174 | AU64: 0.021 | AV64: 0 | AW64: 0.429 | AX64: 0.007 | AY64: 0.479 | AZ64: 3702.791078 | BA64: 8101.812855 | BY64: AR_Fossil | BZ64: 1450.016 | CA64: 1.201 | CB64: 0.685 | CC64: 8939.311413 | CR64: ERCOT All | CS64: ERCOT All
C65: Assumptions and Data Sources | V65: 56 | W65: ERCOT All | X65: 145507.7 | Y65: 2441458265 | Z65: 477137386.1 | AA65: 105681.056 | AB65: 76095.39 | AC65: 175076531.8 | AD65: 0.443 | AE65: 0.319 | AF65: 733.862 | AG65: 0.087 | AH65: 0.086 | AI65: 0.062 | AJ65: 143.42 | AK65: 0.713 | AL65: 0.512 | AM65: 1176.912 | AN65: 0.087 | AO65: 0.063 | AP65: 144.067 | AQ65: 60420147.4 | AR65: 213046.005 | AS65: 236892782.8 | AT65: 1696010.173 | AU65: 0.127 | AV65: 0 | AW65: 0.496 | AX65: 0.004 | AY65: 0.629 | AZ65: 5116.887371 | BA65: 8159.354515 | BY65: AZ_Fossil | BZ65: 1182.581 | CA65: 0.215 | CB65: 0.503 | CC65: 8386.185528 | CR65: FRCC All | CS65: FRCC All
V66: 57 | W66: FRCC All | X66: 72773.8 | Y66: 1561123660 | Z66: 250055524 | AA66: 30262.334 | AB66: 15974.794 | AC66: 97804509.09 | AD66: 0.242 | AE66: 0.128 | AF66: 782.262 | AG66: 0.039 | AH66: 0.038 | AI66: 0.02 | AJ66: 125.3 | AK66: 0.215 | AL66: 0.11 | AM66: 945.999 | AN66: 0.029 | AO66: 0.015 | AP66: 127.009 | AQ66: 11373250.6 | AR66: 1197480.045 | AS66: 188752739 | AT66: 1459608.793 | AU66: 0.045 | AV66: 0.005 | AW66: 0.755 | AX66: 0.006 | AY66: 0.822 | AZ66: 6243.108071 | BA66: 7698.49078 | BY66: CA_Fossil | BZ66: 873.41 | CA66: 0.007 | CB66: 0.523 | CC66: 8043.280755 | CR66: HICC Miscellaneous | CS66: HICC Miscellaneous
C67: Description | E67: Value | F67: Units | I67: Source | M67: Link | V67: 58 | W67: HICC Miscellaneous | X67: 1099.2 | Y67: 19260745.5 | Z67: 2611612.997 | AA67: 9878.597 | AB67: 5862.033 | AC67: 1466905.376 | AD67: 7.565 | AE67: 4.489 | AF67: 1123.371 | AG67: 1.026 | AH67: 1.015 | AI67: 0.609 | AJ67: 152.321 | AK67: 10.903 | AL67: 6.491 | AM67: 1617.308 | AN67: 1.064 | AO67: 0.633 | AP67: 157.759 | AQ67: 0 | AR67: 1721735.651 | AS67: 0 | AT67: 0 | AU67: 0 | AV67: 0.659 | AW67: 0 | AX67: 0 | AY67: 0.707 | AZ67: 7375.038155 | BA67: 11186.81924 | BY67: CO_Fossil | BZ67: 1732.334 | CA67: 0.559 | CB67: 0.86 | CC67: 10110.04411 | CR67: HICC Oahu | CS67: HICC Oahu
C68: Average gross (higher) heating value of natural gas | E68: 1020 | F68: Btu/scf | I68: U.S. Environmental Protection Agency, AP 42, Fifth Edition, Volume I. Chapter 1: External Combustion Sources, Section 4. Natural Gas Combustion, Final Section, Section 1.4.1. | M68: http://www.epa.gov/ttn/chief/ap42/ch01/final/c01s04.pdf | V68: 59 | W68: HICC Oahu | X68: 2352 | Y68: 61965314.32 | Z68: 6547004.736 | AA68: 12792.988 | AB68: 14009.869 | AC68: 4876037.845 | AD68: 3.908 | AE68: 4.28 | AF68: 1489.548 | AG68: 0.413 | AH68: 0.403 | AI68: 0.452 | AJ68: 157.38 | AK68: 4.389 | AL68: 4.971 | AM68: 1661.123 | AN68: 0.431 | AO68: 0.489 | AP68: 163.295 | AQ68: 0 | AR68: 5437720.778 | AS68: 0 | AT68: 177774.96 | AU68: 0 | AV68: 0.831 | AW68: 0 | AX68: 0.027 | AY68: 0.883 | AZ68: 9464.681457 | BA68: 11034.70062 | BY68: CT_Fossil | BZ68: 810.03 | CA68: 0.018 | CB68: 0.166 | CC68: 7424.290301 | CR68: MRO East | CS68: MRO East
C69: Natural Gas CO2 Emission Factor | E69: 120000 | F69: lb/106 scf | I69: U.S. Environmental Protection Agency, AP 42, Fifth Edition, Volume I. Chapter 1: External Combustion Sources, Section 4. Natural Gas Combustion, Final Section. Table 1.4-2 | M69: http://www.epa.gov/ttn/chief/ap42/ch01/final/c01s04.pdf | V69: 60 | W69: MRO East | X69: 9637.9 | Y69: 215861791.5 | Z69: 24520967.71 | AA69: 12037.444 | AB69: 3392.311 | AC69: 17131736.79 | AD69: 0.982 | AE69: 0.277 | AF69: 1397.313 | AG69: 0.112 | AH69: 0.11 | AI69: 0.031 | AJ69: 158.729 | AK69: 1.139 | AL69: 0.278 | AM69: 1664.682 | AN69: 0.11 | AO69: 0.027 | AP69: 160.515 | AQ69: 9677002.226 | AR69: 73857.732 | AS69: 10519939.19 | AT69: 0 | AU69: 0.395 | AV69: 0.003 | AW69: 0.429 | AX69: 0 | AY69: 0.857 | AZ69: 8803.151413 | BA69: 10648.90387 | BY69: DC_Fossil | BZ69: 758.145 | CA69: 0.021 | CB69: 2.658 | CC69: 16693.59897 | CR69: MRO West | CS69: MRO West
C70: Natural Gas SO2 Emission Factor | E70: 0.6 | F70: lb/106 scf | I70: U.S. Environmental Protection Agency, AP 42, Fifth Edition, Volume I. Chapter 1: External Combustion Sources, Section 4. Natural Gas Combustion, Final Section. Table 1.4-2 | M70: http://www.epa.gov/ttn/chief/ap42/ch01/final/c01s04.pdf | V70: 61 | W70: MRO West | X70: 77431.6 | Y70: 1175173096 | Z70: 240934538.7 | AA70: 85634.381 | AB70: 107898.244 | AC70: 110845559.8 | AD70: 0.711 | AE70: 0.896 | AF70: 920.13 | AG70: 0.146 | AH70: 0.143 | AI70: 0.184 | AJ70: 188.646 | AK70: 1.411 | AL70: 1.822 | AM70: 1891.086 | AN70: 0.143 | AO70: 0.184 | AP70: 191.064 | AQ70: 84747620.53 | AR70: 275003.197 | AS70: 31533282.09 | AT70: 373807.586 | AU70: 0.352 | AV70: 0.001 | AW70: 0.131 | AX70: 0.002 | AY70: 0.492 | AZ70: 4877.561777 | BA70: 10050.25209 | BY70: DE_Fossil | BZ70: 984.537 | CA70: 0.098 | CB70: 0.316 | CC70: 6305.114953 | CR70: NPCC New England | CS70: NPCC New England
C71: Natural Gas NOX Emission Factor | E71: =AVERAGE(CH9:CH17) -> 125.8888889 | F71: lb/106 scf | I71: U.S. Environmental Protection Agency, AP 42, Fifth Edition, Volume I. Chapter 1: External Combustion Sources, Section 4. Natural Gas Combustion, Background Document, Table 3.4-1. | M71: http://www.epa.gov/ttn/chief/ap42/ch01/bgdocs/b01s04.pdf | V71: 62 | W71: NPCC New England | X71: 39269.4 | Y71: 502359372.5 | Z71: 102716862.8 | AA71: 14961.041 | AB71: 5936.819 | AC71: 27696321.95 | AD71: 0.291 | AE71: 0.116 | AF71: 539.275 | AG71: 0.06 | AH71: 0.055 | AI71: 0.024 | AJ71: 110.265 | AK71: 0.227 | AL71: 0.026 | AM71: 852.011 | AN71: 0.032 | AO71: 0.004 | AP71: 119.106 | AQ71: 203345.326 | AR71: 389733.112 | AS71: 57465432.7 | AT71: 1594279.338 | AU71: 0.002 | AV71: 0.004 | AW71: 0.559 | AX71: 0.016 | AY71: 0.623 | AZ71: 4890.719586 | BA71: 8421.389317 | BY71: FL_Fossil | BZ71: 949.637 | CA71: 0.107 | CB71: 0.232 | CC71: 7746.26766 | CR71: WECC Northwest | CS71: WECC Northwest
C72: Propane Heat Content | E72: 91.5 | F72: MMBtu/103 gal | I72: U.S. Environmental Protection Agency, AP 42, Fifth Edition, Volume I. Chapter 1: External Combustion Sources, Section 5. Liquefied Petroleum Gas Combustion, Final Document, Table 1.5-1. | M72: http://www.epa.gov/ttn/chief/ap42/ch01/final/c01s05.pdf | V72: 63 | W72: WECC Northwest | X72: 80127.8 | Y72: 1070279320 | Z72: 269253053.4 | AA72: 76424.856 | AB72: 36116.134 | AC72: 85048260.98 | AD72: 0.568 | AE72: 0.268 | AF72: 631.735 | AG72: 0.143 | AH72: 0.139 | AI72: 0.067 | AJ72: 158.927 | AK72: 1.309 | AL72: 0.611 | AM72: 1515.272 | AN72: 0.141 | AO72: 0.066 | AP72: 162.897 | AQ72: 44073818.88 | AR72: 557911.309 | AS72: 66832940.43 | AT72: 698501.567 | AU72: 0.164 | AV72: 0.002 | AW72: 0.248 | AX72: 0.003 | AY72: 0.427 | AZ72: 3974.994178 | BA72: 9542.163429 | BY72: GA_Fossil | BZ72: 1194.446 | CA72: 0.217 | CB72: 0.395 | CC72: 8768.860815 | CR72: NPCC NYC/Westchester | CS72: NPCC NYC/Westchester
C73: Propane CO2 Emission Factor | E73: 12500 | F73: lb/103 gal | I73: U.S. Environmental Protection Agency, AP 42, Fifth Edition, Volume I. Chapter 1: External Combustion Sources, Section 5. Liquefied Petroleum Gas Combustion, Final Document, Table 1.5-1. | M73: http://www.epa.gov/ttn/chief/ap42/ch01/final/c01s05.pdf | V73: 64 | W73: NPCC NYC/Westchester | X73: 12789.9 | Y73: 252215160.6 | Z73: 34602268.1 | AA73: 4020.258 | AB73: 411.957 | AC73: 14956294.38 | AD73: 0.232 | AE73: 0.024 | AF73: 864.469 | AG73: 0.032 | AH73: 0.034 | AI73: 0.003 | AJ73: 118.599 | AK73: 0.204 | AL73: 0.006 | AM73: 862.98 | AN73: 0.028 | AO73: 0.001 | AP73: 118.731 | AQ73: 0 | AR73: 159815.32 | AS73: 33991490.67 | AT73: 248637.793 | AU73: 0 | AV73: 0.005 | AW73: 0.982 | AX73: 0.007 | AY73: 0.999 | AZ73: 7288.977701 | BA73: 7331.848044 | BY73: HI_Fossil | BZ73: 1650.194 | CA73: 5.35 | CB73: 6.014 | CC73: 11070.39638 | CR73: NPCC Long Island | CS73: NPCC Long Island
C74: Propane SO2 Emission Factor | E74: 0.1 | F74: lb/103 gal | I74: U.S. Environmental Protection Agency, AP 42, Fifth Edition, Volume I. Chapter 1: External Combustion Sources, Section 5. Liquefied Petroleum Gas Combustion, Final Document, Table 1.5-1. | M74: http://www.epa.gov/ttn/chief/ap42/ch01/final/c01s05.pdf | V74: 65 | W74: NPCC Long Island | X74: 5832.8 | Y74: 98137990.31 | Z74: 9823461.808 | AA74: 4072.726 | AB74: 1624.36 | AC74: 5799143.141 | AD74: 0.829 | AE74: 0.331 | AF74: 1180.672 | AG74: 0.083 | AH74: 0.077 | AI74: 0.033 | AJ74: 118.183 | AK74: 0.542 | AL74: 0.044 | AM74: 1117.979 | AN74: 0.058 | AO74: 0.005 | AP74: 119.788 | AQ74: 0 | AR74: 148764.205 | AS74: 8563061.805 | AT74: 474533.331 | AU74: 0 | AV74: 0.015 | AW74: 0.872 | AX74: 0.048 | AY74: 0.975 | AZ74: =Y74/Z74*1000 -> 9990.163573 | BA74: =Y74/(SUM(AQ74:AT74))*1000 -> 10683.01235 | BY74: IA_Fossil | BZ74: 1641.065 | CA74: 1.352 | CB74: 1 | CC74: 9226.626282 | CR74: NPCC Upstate NY | CS74: NPCC Upstate NY
C75: Propane NOX Emission Factor | E75: 13 | F75: lb/103 gal | I75: U.S. Environmental Protection Agency, AP 42, Fifth Edition, Volume I. Chapter 1: External Combustion Sources, Section 5. Liquefied Petroleum Gas Combustion, Final Document, Table 1.5-1. | M75: http://www.epa.gov/ttn/chief/ap42/ch01/final/c01s05.pdf | V75: 66 | W75: NPCC Upstate NY | X75: 26425.4 | Y75: 188491604.9 | Z75: 85283183.25 | AA75: 3545.102 | AB75: 1141.357 | AC75: 10323051.4 | AD75: 0.083 | AE75: 0.027 | AF75: 242.089 | AG75: 0.038 | AH75: 0.035 | AI75: 0.012 | AJ75: 109.533 | AK75: 0.219 | AL75: 0.043 | AM75: 914.088 | AN75: 0.028 | AO75: 0.006 | AP75: 115.723 | AQ75: 0 | AR75: 113096.457 | AS75: 21749608.46 | AT75: 269550.5 | AU75: 0 | AV75: 0.001 | AW75: 0.255 | AX75: 0.003 | AY75: 0.272 | AZ75: 2210.184913 | BA75: 8516.601739 | BY75: ID_Fossil | BZ75: 981.775 | CA75: 0.005 | CB75: 0.226 | CC75: 8751.764006 | CR75: RFC East | CS75: RFC East
C76: Heating Oil (No. 2) Heat Content | E76: 140 | F76: MMBtu/103 gal | I76: U.S. Environmental Protection Agency, AP 42, Fifth Edition, Volume I. Chapter 1: External Combustion Sources, Section 3. Fuel Oil Combustion, Background Document. | M76: http://www.epa.gov/ttn/chief/ap42/ch01/bgdocs/b01s03.pdf | V76: 67 | W76: RFC East | X76: 76472.9 | Y76: 1346005571 | Z76: 284874108.5 | AA76: 28833.011 | AB76: 30183.773 | AC76: 85021258.14 | AD76: 0.202 | AE76: 0.212 | AF76: 596.904 | AG76: 0.043 | AH76: 0.042 | AI76: 0.045 | AJ76: 126.331 | AK76: 0.27 | AL76: 0.298 | AM76: 981.029 | AN76: 0.035 | AO76: 0.039 | AP76: 128.12 | AQ76: 13525528.09 | AR76: 161138.852 | AS76: 154199477.8 | AT76: 2056177.511 | AU76: 0.047 | AV76: 0.001 | AW76: 0.541 | AX76: 0.007 | AY76: 0.605 | AZ76: 4724.913676 | BA76: 7920.367062 | BY76: IL_Fossil | BZ76: 1498.718 | CA76: 0.855 | CB76: 0.532 | CC76: 9057.413809 | CR76: RFC Michigan | CS76: RFC Michigan
C77: Heating Oil (No. 2) CO2 Emission Factor | E77: 22300 | F77: lb/103 gal | I77: U.S. Environmental Protection Agency, AP 42, Fifth Edition, Volume I. Chapter 1: External Combustion Sources, Section 3. Fuel Oil Combustion, Background Document. Table 6. | M77: http://www.epa.gov/ttn/chief/ap42/ch01/bgdocs/b01s03.pdf | V77: 68 | W77: RFC Michigan | X77: 28925.4 | Y77: 630197074.3 | Z77: 91629481.6 | AA77: 23798.386 | AB77: 25854.172 | AC77: 44468548.66 | AD77: 0.519 | AE77: 0.564 | AF77: 970.617 | AG77: 0.076 | AH77: 0.07 | AI77: 0.082 | AJ77: 141.126 | AK77: 0.62 | AL77: 0.704 | AM77: 1230.849 | AN77: 0.073 | AO77: 0.083 | AP77: 145.519 | AQ77: 23554195.39 | AR77: 1339754.118 | AS77: 45647800.8 | AT77: 1500003.125 | AU77: 0.257 | AV77: 0.015 | AW77: 0.498 | AX77: 0.016 | AY77: 0.801 | AZ77: 6877.667136 | BA77: 8747.664296 | BY77: IN_Fossil | BZ77: 1682.347 | CA77: 0.655 | CB77: 0.95 | CC77: 9191.931963 | CR77: RFC West | CS77: RFC West
C78: Heating Oil (No. 2) SO2 Emission Factor | E78: 142 | F78: lb/103 gal | I78: U.S. Environmental Protection Agency, AP 42, Fifth Edition, Volume I. Chapter 1: External Combustion Sources, Section 3. Fuel Oil Combustion, Final Document. Table 1.3-1 | M78: http://www.epa.gov/ttn/chief/ap42/ch01/bgdocs/b01s03.pdf | V78: 69 | W78: RFC West | X78: 141910.2 | Y78: 2944467945 | Z78: 524352082.2 | AA78: 110512.788 | AB78: 108122.615 | AC78: 238953647.8 | AD78: 0.422 | AE78: 0.412 | AF78: 911.424 | AG78: 0.075 | AH78: 0.061 | AI78: 0.073 | AJ78: 162.307 | AK78: 0.651 | AL78: 0.649 | AM78: 1426.364 | AN78: 0.074 | AO78: 0.074 | AP78: 162.577 | AQ78: 131181429.3 | AR78: 1329401.028 | AS78: 198423277.4 | AT78: 3871616.223 | AU78: 0.25 | AV78: 0.003 | AW78: 0.378 | AX78: 0.007 | AY78: 0.642 | AZ78: 5615.440551 | BA78: 8794.556769 | BY78: KS_Fossil | BZ78: 2054.463 | CA78: 0.317 | CB78: 1.398 | CC78: 10839.62041 | CR78: WECC Rockies | CS78: WECC Rockies
C79: Heating Oil (No. 2) NOX Emission Factor | E79: 24 | F79: lb/103 gal | I79: U.S. Environmental Protection Agency, AP 42, Fifth Edition, Volume I. Chapter 1: External Combustion Sources, Section 3. Fuel Oil Combustion, Background Document. Table 2. | M79: http://www.epa.gov/ttn/chief/ap42/ch01/bgdocs/b01s03.pdf | V79: 70 | W79: WECC Rockies | X79: 24805.7 | Y79: 403363462.4 | Z79: 67674810.48 | AA79: 17789.061 | AB79: 11143.956 | AC79: 35075879.99 | AD79: 0.526 | AE79: 0.329 | AF79: 1036.601 | AG79: 0.088 | AH79: 0.086 | AI79: 0.055 | AJ79: 173.917 | AK79: 0.897 | AL79: 0.566 | AM79: 1783.758 | AN79: 0.088 | AO79: 0.055 | AP79: 174.636 | AQ79: 21439207.65 | AR79: 47422.454 | AS79: 17841440.38 | AT79: 0 | AU79: 0.317 | AV79: 0.001 | AW79: 0.264 | AX79: 0 | AY79: 0.583 | AZ79: 5960.319055 | BA79: 10256.3756 | BY79: KY_Fossil | BZ79: 1870.359 | CA79: 1.189 | CB79: 1.028 | CC79: 9975.343414 | CR79: SPP North | CS79: SPP North
C80: U.S. Transmission and Distribution Electricity Losses | E80: 0.053 | F80: Percent | I80: U.S. Energy Information Administration, Frequently Asked Questions, "How much electricity is lost in transmission and distribution in the United States?" | M80: http://www.eia.gov/tools/faqs/faq.cfm?id=105&t=3 | V80: 71 | W80: SPP North | X80: 27920.2 | Y80: 348588597.3 | Z80: 73458953.05 | AA80: 16956.454 | AB80: 5045.176 | AC80: 31660769.92 | AD80: 0.462 | AE80: 0.137 | AF80: 861.999 | AG80: 0.097 | AH80: 0.095 | AI80: 0.029 | AJ80: 181.651 | AK80: 1.007 | AL80: 0.299 | AM80: 1880.77 | AN80: 0.098 | AO80: 0.029 | AP80: 182.074 | AQ80: 23239668.98 | AR80: 149995.786 | AS80: 10273827.39 | AT80: 0 | AU80: 0.316 | AV80: 0.002 | AW80: 0.14 | AX80: 0 | AY80: 0.459 | AZ80: 4745.352103 | BA80: 10355.09316 | BY80: LA_Fossil | BZ80: 916.522 | CA80: 0.19 | CB80: 0.785 | CC80: 7371.83945 | CR80: SPP South | CS80: SPP South
C81: Metric Tons of CO2e per passenger vehicle per year | E81: 4.6 | F81: tonnes | I81: U.S. Environmental Protection Agency, Greenhouse Gas Equivalencies Calculator, Calculations and References, Passenger Vehicles per Year | M81: https://www.epa.gov/energy/ghg-equivalencies-calculator-calculations-and-references | V81: 72 | W81: SPP South | X81: 58598.4 | Y81: 945309503.8 | Z81: 158074959.7 | AA81: 53225.996 | AB81: 52040.372 | AC81: 68923985.64 | AD81: 0.673 | AE81: 0.658 | AF81: 872.042 | AG81: 0.113 | AH81: 0.112 | AI81: 0.11 | AJ81: 145.823 | AK81: 1.035 | AL81: 1.005 | AM81: 1380.006 | AN81: 0.11 | AO81: 0.107 | AP81: 147.15 | AQ81: 25682670.02 | AR81: 850341.879 | AS81: 72817309.21 | AT81: 283095.52 | AU81: 0.162 | AV81: 0.005 | AW81: 0.461 | AX81: 0.002 | AY81: 0.643 | AZ81: 5980.134399 | BA81: 9487.876014 | BY81: MA_Fossil | BZ81: 861.477 | CA81: 0.016 | CB81: 0.226 | CC81: 8845.890781 | CR81: SERC Mississippi Valley | CS81: SERC Mississippi Valley
C82: Metric Tons of CO2 per home electricity usage per year | E82: 4.798 | F82: tonnes | I82: U.S. Environmental Protection Agency, Greenhouse Gas Equivalencies Calculator, Calculations and References, Home Electricity Use | M82: https://www.epa.gov/energy/ghg-equivalencies-calculator-calculations-and-references | V82: 73 | W82: SERC Mississippi Valley | X82: 48030.5 | Y82: 998065840.6 | Z82: 176359169.8 | AA82: 43011.014 | AB82: 30918.967 | AC82: 65228228.09 | AD82: 0.488 | AE82: 0.351 | AF82: 739.72 | AG82: 0.086 | AH82: 0.089 | AI82: 0.062 | AJ82: 130.709 | AK82: 0.645 | AL82: 0.452 | AM82: 1002.079 | AN82: 0.085 | AO82: 0.06 | AP82: 132.593 | AQ82: 14512733.6 | AR82: 261575.28 | AS82: 115002121.8 | AT82: 2197986.679 | AU82: 0.082 | AV82: 0.001 | AW82: 0.652 | AX82: 0.012 | AY82: 0.758 | AZ82: 5659.279535 | BA82: 7562.570536 | BY82: MD_Fossil | BZ82: 1045.885 | CA82: 0.172 | CB82: 0.284 | CC82: 8423.343165 | CR82: SERC Midwest | CS82: SERC Midwest
C83: U.S. Emissions Data (CO2, SO2, NOX) | E83: --- | F83: --- | I83: eGRID2023 (2021 data) | M83: https://www.epa.gov/energy/emissions-generation-resource-integrated-database-egrid | V83: 74 | W83: SERC Midwest | X83: 31516.4 | Y83: 688224944.1 | Z83: 105391939.3 | AA83: 41447.965 | AB83: 86208.355 | AC83: 65334512.75 | AD83: 0.787 | AE83: 1.636 | AF83: 1239.839 | AG83: 0.12 | AH83: 0.083 | AI83: 0.251 | AJ83: 189.864 | AK83: 1.149 | AL83: 2.39 | AM83: 1811.875 | AN83: 0.121 | AO83: 0.251 | AP83: 190.173 | AQ83: 53815391.51 | AR83: 62107.994 | AS83: 17851869.36 | AT83: 68113.898 | AU83: 0.511 | AV83: 0.001 | AW83: 0.169 | AX83: 0.001 | AY83: 0.683 | AZ83: 6530.147835 | BA83: 9585.641693 | BY83: ME_Fossil | BZ83: 847.144 | CA83: 0.077 | CB83: 0.146 | CC83: 10396.47496 | CR83: SERC South | CS83: SERC South
C84: Canada Emissions Data (CO2) | E84: --- | F84: --- | I84: Canada's Official Greenhouse Gas Inventory, 4/14/22 | M84: https://data.ec.gc.ca/data/substances/monitor/canada-s-official-greenhouse-gas-inventory/C-Tables-Electricity-Canada-Provinces-Territories/EN_Electricity_Can_Prov_Terr.xlsx | V84: 75 | W84: SERC South | X84: 73016.5 | Y84: 1563781149 | Z84: 256144699.5 | AA84: 44434.866 | AB84: 20764.974 | AC84: 107879089.3 | AD84: 0.347 | AE84: 0.162 | AF84: 842.329 | AG84: 0.057 | AH84: 0.052 | AI84: 0.027 | AJ84: 137.972 | AK84: 0.438 | AL84: 0.121 | AM84: 1203.389 | AN84: 0.052 | AO84: 0.015 | AP84: 144.05 | AQ84: 37243401.55 | AR84: 266599.253 | AS84: 142008879.1 | AT84: 90945.407 | AU84: 0.145 | AV84: 0.001 | AW84: 0.554 | AX84: 0 | AY84: 0.737 | AZ84: 6105.06933 | BA84: 8706.545684 | BY84: MI_Fossil | BZ84: 1181.814 | CA84: 0.636 | CB84: 0.8 | CC84: 8601.315021 | CR84: SERC Tennessee Valley | CS84: SERC Tennessee Valley
C85: Canada Emissions Data (SO2, NOX) | E85: --- | F85: --- | I85: National Pollutant Release Inventory (NPRI) Downloadable Datasets, 2011 Air Pollutant Emission Summaries and Trends. 2011 Emissions from Electric Power Generation (Utilities) | M85: http://www.ec.gc.ca/inrp-npri/default.asp?lang=en&n=0EC58C98-#Emission_Summaries | V85: 76 | W85: SERC Tennessee Valley | X85: 59035.5 | Y85: 1117324874 | Z85: 209324307.7 | AA85: 40143.699 | AB85: 44668.688 | AC85: 93994898.72 | AD85: 0.384 | AE85: 0.427 | AF85: 898.079 | AG85: 0.072 | AH85: 0.065 | AI85: 0.08 | AJ85: 168.25 | AK85: 0.645 | AL85: 0.717 | AM85: 1558.384 | AN85: 0.071 | AO85: 0.078 | AP85: 170.383 | AQ85: 58936646.2 | AR85: 150251.513 | AS85: 62365849.76 | AT85: 101969.859 | AU85: 0.282 | AV85: 0.001 | AW85: 0.298 | AX85: 0 | AY85: 0.587 | AZ85: 5337.769351 | BA85: 9191.949918 | BY85: MN_Fossil | BZ85: 1570.972 | CA85: 0.282 | CB85: 0.881 | CC85: 9747.650947 | CR85: SERC Virginia/Carolina | CS85: SERC Virginia/Carolina
V86: 77 | W86: SERC Virginia/Carolina | X86: 96953.9 | Y86: 1400412213 | Z86: 319478860.9 | AA86: 44977.083 | AB86: 24261.313 | AC86: 94792347.17 | AD86: 0.282 | AE86: 0.152 | AF86: 593.419 | AG86: 0.064 | AH86: 0.067 | AI86: 0.035 | AJ86: 135.378 | AK86: 0.51 | AL86: 0.243 | AM86: 1177.409 | AN86: 0.061 | AO86: 0.029 | AP86: 141.488 | AQ86: 33607489.83 | AR86: 306042.272 | AS86: 125405483.4 | AT86: 522985.879 | AU86: 0.105 | AV86: 0.001 | AW86: 0.393 | AX86: 0.002 | AY86: 0.521 | AZ86: 4383.426836 | BA86: 8761.227966 | BY86: MO_Fossil | BZ86: 1934.34 | CA86: 2.919 | CB86: 1.418 | CC86: 10002.80419 | CR86: Alaska Systems Coordinating Council | CS86: Alaska Systems Coordinating Council
C87: Calculations | V87: 78 | W87: Alaska | X87: 3095.5 | Y87: 39933923.74 | Z87: 6678905.161 | AA87: 20591.981 | AB87: 1349.979 | AC87: 2704368.987 | AD87: 6.166 | AE87: 0.404 | AF87: 809.824 | AG87: 1.031 | AH87: 1.107 | AI87: 0.068 | AJ87: 135.442 | AK87: 8.631 | AL87: 0.563 | AM87: 1134.697 | AN87: 1.041 | AO87: 0.068 | AP87: 136.805 | AQ87: 730681.46 | AR87: 848592.325 | AS87: 3182407.103 | AT87: 0 | AU87: 0.109 | AV87: 0.127 | AW87: 0.476 | AX87: 0 | AY87: 0.719 | AZ87: 5979.112262 | BA87: 8386.518266 | BY87: MS_Fossil | BZ87: 1020.055 | CA87: 0.095 | CB87: 0.431 | CC87: 8007.254477 | CR87: Florida Reliability Coordinating Council | CS87: Florida Reliability Coordinating Council
O88: =2650000/4.73 -> 560253.6998 | V88: 79 | W88: Hawaii | X88: 3451.2 | Y88: 81226059.82 | Z88: 9158617.733 | AA88: 22671.585 | AB88: 19871.902 | AC88: 6342943.221 | AD88: 4.951 | AE88: 4.339 | AF88: 1385.131 | AG88: 0.558 | AH88: 0.545 | AI88: 0.489 | AJ88: 156.18 | AK88: 6.014 | AL88: 5.35 | AM88: 1650.194 | AN88: 0.59 | AO88: 0.525 | AP88: 161.906 | AQ88: 0 | AR88: 7159456.429 | AS88: 0 | AT88: 177774.96 | AU88: 0 | AV88: 0.782 | AW88: 0 | AX88: 0.019 | AY88: 0.833 | AZ88: 8868.812106 | BA88: 11070.39638 | BY88: MT_Fossil | BZ88: 2175.868 | CA88: 1.666 | CB88: 1.795 | CC88: 10697.12974 | CR88: Hawaiian Islands Coordinating Council | CS88: Hawaiian Islands Coordinating Council
C89: Description | E89: Value | F89: Units | V89: 80 | W89: Midwest Reliability Organization | X89: 165769.9 | Y89: 2370771588 | Z89: 470517339.4 | AA89: 149368.346 | AB89: 151587.223 | AC89: 201590347.2 | AD89: 0.635 | AE89: 0.644 | AF89: 856.888 | AG89: 0.126 | AH89: 0.124 | AI89: 0.128 | AJ89: 170.063 | AK89: 1.206 | AL89: 1.239 | AM89: 1676.509 | AN89: 0.123 | AO89: 0.127 | AP89: 171.582 | AQ89: 127688066.3 | AR89: 502523.953 | AS89: 111308390.2 | AT89: 640889.685 | AU89: 0.271 | AV89: 0.001 | AW89: 0.237 | AX89: 0.001 | AY89: 0.516 | AZ89: 5038.648714 | BA89: 9872.461355 | BY89: NC_Fossil | BZ89: 1194.496 | CA89: 0.267 | CB89: 0.713 | CC89: 8673.840433 | CR89: Midwest Reliability Organization | CS89: Midwest Reliability Organization
C90: User Input | E90: =E24 -> US Average | V90: 81 | W90: Northeast Power Coordinating Council | X90: 82817.8 | Y90: 1001469469 | Z90: 226148074.9 | AA90: 26284.69 | AB90: 9102.769 | AC90: 56412217.17 | AD90: 0.232 | AE90: 0.081 | AF90: 498.896 | AG90: 0.052 | AH90: 0.05 | AI90: 0.018 | AJ90: 112.659 | AK90: 0.25 | AL90: 0.026 | AM90: 893.507 | AN90: 0.033 | AO90: 0.003 | AP90: 118.404 | AQ90: 203345.326 | AR90: 801636.127 | AS90: 115359502.6 | AT90: 2557653.959 | AU90: 0.001 | AV90: 0.004 | AW90: 0.51 | AX90: 0.011 | AY90: 0.552 | AZ90: 4428.379366 | BA90: 8421.219842 | BY90: ND_Fossil | BZ90: 2132.674 | CA90: 2.654 | CB90: 2.194 | CC90: 10097.9074 | CR90: No NERC region | CS90: No NERC region
C91: User Input | E91: =E22 -> eGrid Subregions Average Fossil | V91: 82 | W91: Reliability First Corporation | X91: 250781.4 | Y91: 5006388438 | Z91: 909114739.1 | AA91: 166600.583 | AB91: 166349.087 | AC91: 375109100.7 | AD91: 0.367 | AE91: 0.366 | AF91: 825.218 | AG91: 0.067 | AH91: 0.057 | AI91: 0.066 | AJ91: 149.852 | AK91: 0.538 | AL91: 0.55 | AM91: 1269.822 | AN91: 0.064 | AO91: 0.066 | AP91: 151.297 | AQ91: 171753438.8 | AR91: 2873619.122 | AS91: 405714769.9 | AT91: 7457143.862 | AU91: 0.189 | AV91: 0.003 | AW91: 0.446 | AX91: 0.008 | AY91: 0.653 | AZ91: 5506.882929 | BA91: 8517.177945 | BY91: NE_Fossil | BZ91: 2071.345 | CA91: 4.31 | CB91: 1.906 | CC91: 10318.82303 | CR91: Northeast Power Coordinating Council | CS91: Northeast Power Coordinating Council
C92: Electricity Consumption (kWh/yr) | E92: =E13/(1-$E$80) -> 13593.14617 | F92: kWh | I92: =I13/(1-$E$80) -> 0 | K92: =K13/(1-$E$80) -> 0 | M92: =M13/(1-$E$80) -> 0 | O92: =O13/(1-$E$80) -> 0 | Q92: =Q13/(1-$E$80) -> 0 | S92: =S13/(1-$E$80) -> 0 | V92: 83 | W92: SERC Reliability Corporation | X92: 385791.2 | Y92: 7482938946 | Z92: 1333721076 | AA92: 252320.021 | AB92: 229681.812 | AC92: 534347899.9 | AD92: 0.378 | AE92: 0.344 | AF92: 801.289 | AG92: 0.067 | AH92: 0.062 | AI92: 0.061 | AJ92: 142.818 | AK92: 0.527 | AL92: 0.471 | AM92: 1207.957 | AN92: 0.064 | AO92: 0.057 | AP92: 146.701 | AQ92: 209361939.6 | AR92: 3031712.1 | AS92: 668362826 | AT92: 4457623.936 | AU92: 0.157 | AV92: 0.002 | AW92: 0.501 | AX92: 0.003 | AY92: 0.681 | AZ92: 5610.572615 | BA92: 8453.253209 | BY92: NH_Fossil | BZ92: 929.248 | CA92: 0.103 | CB92: 0.253 | CC92: 10374.52392 | CR92: Reliability First Corporation | CS92: Reliability First Corporation
C93: Natural Gas Consumption (MMBtu/yr) | E93: =E15 -> 0 | F93: MMBtu | I93: =I15 -> 90.93591547 | K93: =K15 -> 0 | M93: =M15 -> 0 | O93: =O15 -> 0 | Q93: =Q15 -> 0 | S93: =S15 -> 0 | V93: 84 | W93: Texas Regional Entity | X93: 144275.6 | Y93: 2410651893 | Z93: 472122306.1 | AA93: 105048.878 | AB93: 76086.145 | AC93: 173245756.2 | AD93: 0.445 | AE93: 0.322 | AF93: 733.902 | AG93: 0.087 | AH93: 0.086 | AI93: 0.063 | AJ93: 143.734 | AK93: 0.719 | AL93: 0.519 | AM93: 1181.206 | AN93: 0.088 | AO93: 0.063 | AP93: 144.393 | AQ93: 60420147.4 | AR93: 213046.005 | AS93: 232718819.8 | AT93: 1696010.173 | AU93: 0.128 | AV93: 0 | AW93: 0.493 | AX93: 0.004 | AY93: 0.627 | AZ93: 5105.990252 | BA93: 8170.371269 | BY93: NJ_Fossil | BZ93: 837.909 | CA93: 0.006 | CB93: 0.194 | CC93: 7636.712492 | CR93: SERC Reliability Corporation | CS93: SERC Reliability Corporation
C94: Annual Propane Consumption (gal) | E94: =E17 -> 0 | F94: gal | I94: =I17 -> 0 | K94: =K17 -> 0 | M94: =M17 -> 0 | O94: =O17 -> 0 | Q94: =Q17 -> 0 | S94: =S17 -> 0 | V94: 85 | W94: Western Electricity Coordinating Council | X94: 261053.5 | Y94: 3322275086 | Z94: 746008725.7 | AA94: 170460.342 | AB94: 66157.922 | AC94: 244420920 | AD94: 0.457 | AE94: 0.177 | AF94: 655.276 | AG94: 0.103 | AH94: 0.1 | AI94: 0.04 | AJ94: 147.141 | AK94: 0.869 | AL94: 0.346 | AM94: 1323.469 | AN94: 0.099 | AO94: 0.04 | AP94: 151.431 | AQ94: 101892622.6 | AR94: 749869.965 | AS94: 264908602.7 | AT94: 2182174.741 | AU94: 0.137 | AV94: 0.001 | AW94: 0.355 | AX94: 0.003 | AY94: 0.507 | AZ94: 4453.399768 | BA94: 8985.599499 | BY94: NM_Fossil | BZ94: 1399.692 | CA94: 0.192 | CB94: 0.675 | CC94: 9194.945186 | CR94: Southwest Power Pool | CS94: Southwest Power Pool
C95: Annual Heating Oil Consumption (gal) | E95: =E19 -> 0 | F95: gal | I95: =I19 -> 0 | K95: =K19 -> 0 | M95: =M19 -> 0 | O95: =O19 -> 0 | Q95: =Q19 -> 0 | S95: =S19 -> 0 | BY95: NV_Fossil | BZ95: 1009.955 | CA95: 0.215 | CB95: 0.754 | CC95: 7866.786882 | CR95: Texas Regional Entity | CS95: Texas Regional Entity
BY96: NY_Fossil | BZ96: 933.792 | CA96: 0.026 | CB96: 0.272 | CC96: 8413.49928 | CR96: Western Electricity Coordinating Council | CS96: Western Electricity Coordinating Council
BY97: OH_Fossil | BZ97: 1261.228 | CA97: 0.725 | CB97: 0.403 | CC97: 8392.300139 | CR97: Canada Average | CS97: =CR97 -> Canada Average
C98: State Abbrev | E98: =VLOOKUP(E90,CR:CS,2,0) -> US Average | F98: --- | BY98: OK_Fossil | BZ98: 1150.225 | CA98: 0.378 | CB98: 0.829 | CC98: 8897.722724 | CR98: Alberta | CS98: Alberta
C99: U.S. State Selected? | E99: =IF(ISERROR(VLOOKUP(E98,$CS$8:$CS$59,1,0)),"No", "Yes") -> Yes | F99: Y/N | H99: *this will always be no, but the emissions are always based on eGrid subregion | BY99: OR_Fossil | BZ99: 956.364 | CA99: 0.006 | CB99: 1.594 | CC99: 8488.66791 | CR99: British Columbia | CS99: British Columbia
C100: U.S. Fossil Emissions Profile? | E100: =IF(OR(E91="eGrid Subregions Average Fossil",E91="NERC Average Fossil",E91="US Average Fossil"),"Yes","No") -> Yes | F100: Y/N | H100: *this will always be no and is likely not necessary | BY100: PA_Fossil | BZ100: 979.626 | CA100: 0.315 | CB100: 0.271 | CC100: 7800.207697 | CR100: Manitoba | CS100: Manitoba
C101: Heat Rate | E101: =IF($E$100="Yes",VLOOKUP($E$98&"_Fossil",$BY:$CC,5,0),VLOOKUP($E$98,$BY:$CC,5,0)) -> 8665.485746 | F101: Btu/kWh | BY101: RI_Fossil | BZ101: 912.802 | CA101: 0.005 | CB101: 0.405 | CC101: 7925.515449 | CR101: New Brunswick | CS101: New Brunswick
C102: Electricity CO2 Emission Rate | E102: =IF($E$100="Yes",VLOOKUP($E$98&"_Fossil",$BY:$CC,2,0),VLOOKUP($E$98,$BY:$CC,2,0))*(1-G13) -> 1270.259 | F102: lb/MWh | BY102: SC_Fossil | BZ102: 1444.126 | CA102: 0.384 | CB102: 0.563 | CC102: 9436.423144 | CR102: Newfoundland | CS102: Newfoundland
C103: Electricity SO2 Emission Rate | E103: =IF($E$100="Yes",VLOOKUP($E$98&"_Fossil",$BY:$CC,3,0),VLOOKUP($E$98,$BY:$CC,3,0)) -> 0.567 | F103: lb/MWh | BY103: SD_Fossil | BZ103: 1563.701 | CA103: 0.355 | CB103: 1.169 | CC103: 9812.099149 | CR103: Nova Scotia | CS103: Nova Scotia
C104: Electricity NOX Emission Rate | E104: =IF($E$100="Yes",VLOOKUP($E$98&"_Fossil",$BY:$CC,4,0),VLOOKUP($E$98,$BY:$CC,4,0)) -> 0.71 | F104: lb/MWh | BY104: TN_Fossil | BZ104: 1704.73 | CA104: 0.524 | CB104: 0.555 | CC104: 9819.858664 | CR104: Ontario | CS104: Ontario
C105: Natural Gas CO2 Emission Rate | E105: =(E69/$E$68)*(1-G15) -> 117.6470588 | F105: lb/MMBtu | BY105: TX_Fossil | BZ105: 1186.826 | CA105: 0.599 | CB105: 0.73 | CC105: 8255.698681 | CR105: Prince Edward Island | CS105: Prince Edward Island
C106: Natural Gas SO2 Emission Rate | E106: =E70/$E$68 -> 0.0005882352941 | F106: lb/MMBtu | BY106: UT_Fossil | BZ106: 1730.799 | CA106: 0.336 | CB106: 1.57 | CC106: 9932.805671 | CR106: Quebec | CS106: Quebec
C107: Natural Gas NOX Emission Rate | E107: =E71/$E$68 -> 0.1234204793 | F107: lb/MMBtu | BY107: VA_Fossil | BZ107: 897.954 | CA107: 0.044 | CB107: 0.214 | CC107: 8294.062357 | CR107: Saskatchewan | CS107: Saskatchewan
C108: Propane CO2 Emission Rate | E108: =E73*(1-G17) -> 12500 | F108: lb/103 gal | BY108: VT_Fossil | BZ108: 3308.132 | CA108: 4.948 | CB108: 8.454 | CC108: 1619240.049
C109: Propane SO2 Emission Rate | E109: =E74 -> 0.1 | F109: lb/103 gal | BY109: WA_Fossil | BZ109: 1134.455 | CA109: 0.106 | CB109: 0.665 | CC109: 8594.872621
C110: Propane NOX Emission Rate | E110: =E75 -> 13 | F110: lb/103 gal | BY110: WI_Fossil | BZ110: 1539.845 | CA110: 0.159 | CB110: 0.626 | CC110: 9639.864527
C111: Heating Oil CO2 Emission Rate | E111: =E77*(1-G19) -> 22300 | F111: lb/103 gal | BY111: WV_Fossil | BZ111: 2099.531 | CA111: 1.609 | CB111: 1.141 | CC111: 10571.2216
C112: Heating Oil SO2 Emission Rate | E112: =E78 -> 142 | F112: lb/103 gal | BY112: WY_Fossil | BZ112: 2354.401 | CA112: 1.441 | CB112: 1.554 | CC112: 11492.19675
C113: Heating Oil NOX Emission Rate | E113: =E79 -> 24 | F113: lb/103 gal
C114: Electricity Consumption | E114: =E92*$E$101/1000000 -> 117.7912143 | F114: MMBtu | I114: =I92*$E$101/1000000 -> 0 | K114: =K92*$E$101/1000000 -> 0 | M114: =M92*$E$101/1000000 -> 0 | O114: =O92*$E$101/1000000 -> 0 | Q114: =Q92*$E$101/1000000 -> 0 | S114: =S92*$E$101/1000000 -> 0 | BY114: ASCC Alaska Grid | BZ114: =AF61 -> 899.633 | CA114: 0.821 | CB114: 0.914 | CC114: =AZ61 -> 6764.22396
C115: Electricity CO2 Emissions | E115: =E$92/1000*$E102 -> 17266.81626 | F115: lb | I115: =I$92/1000*$E102 -> 0 | K115: =K$92/1000*$E102 -> 0 | M115: =M$92/1000*$E102 -> 0 | O115: =O$92/1000*$E102 -> 0 | Q115: =Q$92/1000*$E102 -> 0 | S115: =S$92/1000*$E102 -> 0 | BY115: ASCC Miscellaneous | BZ115: 520.483 | CA115: 2.359 | CB115: 2.25 | CC115: 3449.698521
C116: Electricity SO2 Emissions | E116: =E$92/1000*$E103 -> 7.707313876 | F116: lb | I116: =I$92/1000*$E103 -> 0 | K116: =K$92/1000*$E103 -> 0 | M116: =M$92/1000*$E103 -> 0 | O116: =O$92/1000*$E103 -> 0 | Q116: =Q$92/1000*$E103 -> 0 | S116: =S$92/1000*$E103 -> 0 | BY116: WECC Southwest | BZ116: 703.703 | CA116: 0.071 | CB116: 0.073 | CC116: 5043.360025
C117: Electricity NOX Emissions | E117: =E$92/1000*$E104 -> 9.651133778 | F117: lb | I117: =I$92/1000*$E104 -> 0 | K117: =K$92/1000*$E104 -> 0 | M117: =M$92/1000*$E104 -> 0 | O117: =O$92/1000*$E104 -> 0 | Q117: =Q$92/1000*$E104 -> 0 | S117: =S$92/1000*$E104 -> 0 | BY117: WECC California | BZ117: 428.464 | CA117: 0.09 | CB117: 0.092 | CC117: 3702.791078
C118: Annual Natural Gas Consumption (MMBtu) | E118: =E93 -> 0 | F118: MMBtu | I118: =I93 -> 90.93591547 | K118: =K93 -> 0 | M118: =M93 -> 0 | O118: =O93 -> 0 | Q118: =Q93 -> 0 | S118: =S93 -> 0 | BY118: ERCOT All | BZ118: 733.862 | CA118: 0.087 | CB118: 0.086 | CC118: 5116.887371
C119: Natural Gas CO2 Emissions | E119: =$E105*E$93 -> 0 | F119: lb | I119: =$E105*I$93 -> 10698.343 | K119: =$E105*K$93 -> 0 | M119: =$E105*M$93 -> 0 | O119: =$E105*O$93 -> 0 | Q119: =$E105*Q$93 -> 0 | S119: =$E105*S$93 -> 0 | BY119: FRCC All | BZ119: 782.262 | CA119: 0.039 | CB119: 0.038 | CC119: 6243.108071
C120: Natural Gas SO2 Emissions | E120: =$E106*E$93 -> 0 | F120: lb | I120: =$E106*I$93 -> 0.05349171498 | K120: =$E106*K$93 -> 0 | M120: =$E106*M$93 -> 0 | O120: =$E106*O$93 -> 0 | Q120: =$E106*Q$93 -> 0 | S120: =$E106*S$93 -> 0 | BY120: HICC Miscellaneous | BZ120: 1123.371 | CA120: 1.026 | CB120: 1.015 | CC120: 7375.038155
C121: Natural Gas NOX Emissions | E121: =$E107*E$93 -> 0 | F121: lb | I121: =$E107*I$93 -> 11.22335427 | K121: =$E107*K$93 -> 0 | M121: =$E107*M$93 -> 0 | O121: =$E107*O$93 -> 0 | Q121: =$E107*Q$93 -> 0 | S121: =$E107*S$93 -> 0 | BY121: HICC Oahu | BZ121: 1489.548 | CA121: 0.413 | CB121: 0.403 | CC121: 9464.681457
C122: Propane Consumption | E122: =E94/1000*$E$72 -> 0 | F122: MMBtu | I122: =I94/1000*$E$72 -> 0 | K122: =K94/1000*$E$72 -> 0 | M122: =M94/1000*$E$72 -> 0 | O122: =O94/1000*$E$72 -> 0 | Q122: =Q94/1000*$E$72 -> 0 | S122: =S94/1000*$E$72 -> 0 | BY122: MRO East | BZ122: 1397.313 | CA122: 0.112 | CB122: 0.11 | CC122: 8803.151413
C123: Propane CO2 Emissions | E123: =E$94*$E108/1000 -> 0 | F123: lb | I123: =I$94*$E108/1000 -> 0 | K123: =K$94*$E108/1000 -> 0 | M123: =M$94*$E108/1000 -> 0 | O123: =O$94*$E108/1000 -> 0 | Q123: =Q$94*$E108/1000 -> 0 | S123: =S$94*$E108/1000 -> 0 | BY123: MRO West | BZ123: 920.13 | CA123: 0.146 | CB123: 0.143 | CC123: 4877.561777
C124: Propane SO2 Emissions | E124: =E$94*$E109/1000 -> 0 | F124: lb | I124: =I$94*$E109/1000 -> 0 | K124: =K$94*$E109/1000 -> 0 | M124: =M$94*$E109/1000 -> 0 | O124: =O$94*$E109/1000 -> 0 | Q124: =Q$94*$E109/1000 -> 0 | S124: =S$94*$E109/1000 -> 0 | BY124: NPCC New England | BZ124: 539.275 | CA124: 0.06 | CB124: 0.055 | CC124: 4890.719586
C125: Propane NOX Emissions | E125: =E$94*$E110/1000 -> 0 | F125: lb | I125: =I$94*$E110/1000 -> 0 | K125: =K$94*$E110/1000 -> 0 | M125: =M$94*$E110/1000 -> 0 | O125: =O$94*$E110/1000 -> 0 | Q125: =Q$94*$E110/1000 -> 0 | S125: =S$94*$E110/1000 -> 0 | BY125: WECC Northwest | BZ125: 631.735 | CA125: 0.143 | CB125: 0.139 | CC125: 3974.994178
C126: Heating Oil Consumption | E126: =E95/1000*$E$76 -> 0 | F126: MMBtu | I126: =I95/1000*$E$76 -> 0 | K126: =K95/1000*$E$76 -> 0 | M126: =M95/1000*$E$76 -> 0 | O126: =O95/1000*$E$76 -> 0 | Q126: =Q95/1000*$E$76 -> 0 | S126: =S95/1000*$E$76 -> 0 | BY126: NPCC NYC/Westchester | BZ126: 864.469 | CA126: 0.032 | CB126: 0.034 | CC126: 7288.977701
C127: Heating Oil CO2 Emissions | E127: =E$95*$E111/1000 -> 0 | F127: lb | I127: =I$95*$E111/1000 -> 0 | K127: =K$95*$E111/1000 -> 0 | M127: =M$95*$E111/1000 -> 0 | O127: =O$95*$E111/1000 -> 0 | Q127: =Q$95*$E111/1000 -> 0 | S127: =S$95*$E111/1000 -> 0 | BW127: *NPCC Long Isalnd has no cities in the lists tab | BY127: NPCC Long Island | BZ127: 1180.672 | CA127: 0.083 | CB127: 0.077 | CC127: 9990.163573
C128: Heating Oil SO2 Emissions | E128: =E$95*$E112/1000 -> 0 | F128: lb | I128: =I$95*$E112/1000 -> 0 | K128: =K$95*$E112/1000 -> 0 | M128: =M$95*$E112/1000 -> 0 | O128: =O$95*$E112/1000 -> 0 | Q128: =Q$95*$E112/1000 -> 0 | S128: =S$95*$E112/1000 -> 0 | BY128: NPCC Upstate NY | BZ128: 242.089 | CA128: 0.038 | CB128: 0.035 | CC128: 2210.184913
C129: Heating Oil NOX Emissions | E129: =E$95*$E113/1000 -> 0 | F129: lb | I129: =I$95*$E113/1000 -> 0 | K129: =K$95*$E113/1000 -> 0 | M129: =M$95*$E113/1000 -> 0 | O129: =O$95*$E113/1000 -> 0 | Q129: =Q$95*$E113/1000 -> 0 | S129: =S$95*$E113/1000 -> 0 | BY129: RFC East | BZ129: 596.904 | CA129: 0.043 | CB129: 0.042 | CC129: 4724.913676
C130: Total CO2 Emissions | E130: =E115+E119+E123+E127 -> 17266.81626 | F130: lb | I130: =I115+I119+I123+I127 -> 10698.343 | K130: =K115+K119+K123+K127 -> 0 | M130: =M115+M119+M123+M127 -> 0 | O130: =O115+O119+O123+O127 -> 0 | Q130: =Q115+Q119+Q123+Q127 -> 0 | S130: =S115+S119+S123+S127 -> 0 | BY130: RFC Michigan | BZ130: =AF77 -> 970.617 | CA130: 0.076 | CB130: 0.07 | CC130: 6877.667136
C131: Total SO2 Emissions | E131: =E116+E120+E124+E128 -> 7.707313876 | F131: lb | I131: =I116+I120+I124+I128 -> 0.05349171498 | K131: =K116+K120+K124+K128 -> 0 | M131: =M116+M120+M124+M128 -> 0 | O131: =O116+O120+O124+O128 -> 0 | Q131: =Q116+Q120+Q124+Q128 -> 0 | S131: =S116+S120+S124+S128 -> 0 | BY131: RFC West | BZ131: 911.424 | CA131: 0.075 | CB131: 0.061 | CC131: 5615.440551
C132: Total NOX Emissions | E132: =E117+E121+E125+E129 -> 9.651133778 | F132: lb | I132: =I117+I121+I125+I129 -> 11.22335427 | K132: =K117+K121+K125+K129 -> 0 | M132: =M117+M121+M125+M129 -> 0 | O132: =O117+O121+O125+O129 -> 0 | Q132: =Q117+Q121+Q125+Q129 -> 0 | S132: =S117+S121+S125+S129 -> 0 | BY132: WECC Rockies | BZ132: 1036.601 | CA132: 0.088 | CB132: 0.086 | CC132: 5960.319055
C133: CO2 Emission Savings | E133: =-(E130-E130) -> 0 | F133: lb | I133: =-(I130-$E130) -> 6568.473259 | BY133: SPP North | BZ133: 861.999 | CA133: 0.097 | CB133: 0.095 | CC133: 4745.352103
C134: SO2 Emission Savings | E134: =-(E131-$E131) -> 0 | F134: lb | I134: =-(I131-$E131) -> 7.653822161 | BY134: SPP South | BZ134: 872.042 | CA134: 0.113 | CB134: 0.112 | CC134: 5980.134399
C135: NOX Emission Savings | E135: =-(E132-$E132) -> 0 | F135: lb | I135: =-(I132-$E132) -> -1.572220495 | BY135: SERC Mississippi Valley | BZ135: 739.72 | CA135: 0.086 | CB135: 0.089 | CC135: 5659.279535
C136: CO2 Emissions Delta | E136: =E133/2000/1.1023 -> 0 | F136: metric tons | I136: =I133/2000/1.1023 -> 2.979439925 | K136: =K133/2000/1.1023 -> 0 | M136: 0 | O136: 0 | Q136: 0 | S136: 0 | BY136: SERC Midwest | BZ136: 1239.839 | CA136: 0.12 | CB136: 0.083 | CC136: 6530.147835
C137: Cars off Highway (CO2 Equivalent) | E137: =E136/$E$81 -> 0 | F137: cars | I137: =I136/$E$81 -> 0.6477043316 | K137: =K136/$E$81 -> 0 | M137: =M136/$E$81 -> 0 | O137: =O136/$E$81 -> 0 | Q137: =Q136/$E$81 -> 0 | S137: =S136/$E$81 -> 0 | BY137: SERC South | BZ137: 842.329 | CA137: 0.057 | CB137: 0.052 | CC137: 6105.06933
C138: Home Electricity Usage (CO2 Equivalent) | E138: =E136/$E$82 -> 0 | F138: homes | I138: =I136/$E$82 -> 0.6209753909 | K138: =K136/$E$82 -> 0 | M138: =M136/$E$82 -> 0 | O138: =O136/$E$82 -> 0 | Q138: =Q136/$E$82 -> 0 | S138: =S136/$E$82 -> 0 | BY138: SERC Tennessee Valley | BZ138: 898.079 | CA138: 0.072 | CB138: 0.065 | CC138: 5337.769351
BY139: SERC Virginia/Carolina | BZ139: 593.419 | CA139: 0.064 | CB139: 0.067 | CC139: 4383.426836
BY140: Alaska Systems Coordinating Council | BZ140: 809.824 | CA140: 1.031 | CB140: 1.107 | CC140: 5979.112262
BY141: Hawaiian Islands Coordinating Council | BZ141: 1385.131 | CA141: 0.558 | CB141: 0.545 | CC141: 8868.812106
BY142: Midwest Reliability Organization | BZ142: 856.888 | CA142: 0.126 | CB142: 0.124 | CC142: 5038.648714
BY143: Northeast Power Coordinating Council | BZ143: 498.896 | CA143: 0.052 | CB143: 0.05 | CC143: 4428.379366
BY144: Reliability First Corporation | BZ144: 825.218 | CA144: 0.067 | CB144: 0.057 | CC144: 5506.882929
BY145: SERC Reliability Corporation | BZ145: 801.289 | CA145: 0.067 | CB145: 0.062 | CC145: 5610.572615
BY146: Texas Regional Entity | BZ146: =AF93 -> 733.902 | CA146: 0.087 | CB146: 0.086 | CC146: 5105.990252
BY147: Western Electricity Coordinating Council | BZ147: 655.276 | CA147: 0.103 | CB147: 0.1 | CC147: 4453.399768
BY150: ASCC Alaska Grid_Fossil | BZ150: =AM61 -> 1074.068 | CA150: =AL61 -> 0.367 | CB150: =AK61 -> 6.631 | CC150: =BA61 -> 8073.635358
BY151: ASCC Miscellaneous_Fossil | BZ151: =AM62 -> 1656.666 | CA151: =AL62 -> 2.255 | CB151: =AK62 -> 25.854 | CC151: =BA62 -> 11105.2496
BY152: WECC Southwest_Fossil | BZ152: 1173.527 | CA152: 0.169 | CB152: 0.587 | CC152: 8438.281713
BY153: WECC California_Fossil | BZ153: 931.576 | CA153: 0.024 | CB153: 0.603 | CC153: 8101.812855
BY154: ERCOT All_Fossil | BZ154: 1176.912 | CA154: 0.512 | CB154: 0.713 | CC154: 8159.354515
BY155: FRCC All_Fossil | BZ155: 945.999 | CA155: 0.11 | CB155: 0.215 | CC155: 7698.49078
BY156: HICC Miscellaneous_Fossil | BZ156: 1617.308 | CA156: 6.491 | CB156: 10.903 | CC156: 11186.81924
BY157: HICC Oahu_Fossil | BZ157: 1661.123 | CA157: 4.971 | CB157: 4.389 | CC157: 11034.70062
BY158: MRO East_Fossil | BZ158: 1664.682 | CA158: 0.278 | CB158: 1.139 | CC158: 10648.90387
BY159: MRO West_Fossil | BZ159: 1891.086 | CA159: 1.822 | CB159: 1.411 | CC159: 10050.25209
BY160: NPCC New England_Fossil | BZ160: 852.011 | CA160: 0.026 | CB160: 0.227 | CC160: 8421.389317
BY161: WECC Northwest_Fossil | BZ161: 1515.272 | CA161: 0.611 | CB161: 1.309 | CC161: 9542.163429
BY162: NPCC NYC/Westchester_Fossil | BZ162: 862.98 | CA162: 0.006 | CB162: 0.204 | CC162: 7331.848044
BY163: NPCC Long Island_Fossil | BZ163: 1117.979 | CA163: 0.044 | CB163: 0.542 | CC163: 10683.01235
BY164: NPCC Upstate NY_Fossil | BZ164: 914.088 | CA164: 0.043 | CB164: 0.219 | CC164: 8516.601739
BY165: RFC East_Fossil | BZ165: 981.029 | CA165: 0.298 | CB165: 0.27 | CC165: 7920.367062
BY166: RFC Michigan_Fossil | BZ166: 1230.849 | CA166: 0.704 | CB166: 0.62 | CC166: 8747.664296
BY167: RFC West_Fossil | BZ167: 1426.364 | CA167: 0.649 | CB167: 0.651 | CC167: 8794.556769
BY168: WECC Rockies_Fossil | BZ168: 1783.758 | CA168: 0.566 | CB168: 0.897 | CC168: 10256.3756
BY169: SPP North_Fossil | BZ169: 1880.77 | CA169: 0.299 | CB169: 1.007 | CC169: 10355.09316
BY170: SPP South_Fossil | BZ170: 1380.006 | CA170: 1.005 | CB170: 1.035 | CC170: 9487.876014
BY171: SERC Mississippi Valley_Fossil | BZ171: 1002.079 | CA171: 0.452 | CB171: 0.645 | CC171: 7562.570536
BY172: SERC Midwest_Fossil | BZ172: 1811.875 | CA172: 2.39 | CB172: 1.149 | CC172: 9585.641693
BY173: SERC South_Fossil | BZ173: 1203.389 | CA173: 0.121 | CB173: 0.438 | CC173: 8706.545684
F174: Map of NERC Regions | BY174: SERC Tennessee Valley_Fossil | BZ174: 1558.384 | CA174: 0.717 | CB174: 0.645 | CC174: 9191.949918
BY175: SERC Virginia/Carolina_Fossil | BZ175: 1177.409 | CA175: 0.243 | CB175: 0.51 | CC175: 8761.227966
BY176: Alaska Systems Coordinating Council_Fossil | BZ176: 1134.697 | CA176: 0.563 | CB176: 8.631 | CC176: 8386.518266
BY177: Hawaiian Islands Coordinating Council_Fossil | BZ177: 1650.194 | CA177: 5.35 | CB177: 6.014 | CC177: 11070.39638
BY178: Midwest Reliability Organization_Fossil | BZ178: 1676.509 | CA178: 1.239 | CB178: 1.206 | CC178: 9872.461355
BY179: Northeast Power Coordinating Council_Fossil | BZ179: 893.507 | CA179: 0.026 | CB179: 0.25 | CC179: 8421.219842
BY180: Reliability First Corporation_Fossil | BZ180: 1269.822 | CA180: 0.55 | CB180: 0.538 | CC180: 8517.177945
BY181: SERC Reliability Corporation_Fossil | BZ181: 1207.957 | CA181: 0.471 | CB181: 0.527 | CC181: 8453.253209
BY182: Texas Regional Entity_Fossil | BZ182: 1181.206 | CA182: 0.519 | CB182: 0.719 | CC182: 8170.371269
BY183: Western Electricity Coordinating Council_Fossil | BZ183: 1323.469 | CA183: 0.346 | CB183: 0.869 | CC183: 8985.599499
BY187: Canada Average | BZ187: =BT9 -> 220.462442 | CA187: =BV9 -> 1.141507861 | CB187: =BU9 -> 0.7169157845 | CC187: =BW9 -> 3634
BY188: Alberta | BZ188: 1410.56 | CA188: =BV10 -> 3.907290035 | CB188: =BU10 -> 2.867716372 | CC188: 12388
BY189: British Columbia | BZ189: =BT11 -> 30.86474188 | CA189: =BV11 -> 0.005431462971 | CB189: =BU11 -> 0.08179638949 | CC189: =BW11 -> 437
BY190: Manitoba | BZ190: =BT12 -> 2.866011746 | CA190: =BV12 -> 0.04175221108 | CB190: =BU12 -> 0.0277666352 | CC190: =BW12 -> 300
BY191: New Brunswick | BZ191: 1237 | CA191: =BV13 -> 0.9578196318 | CB191: =BU13 -> 1.378861047 | CC191: 7582
BY193: Newfoundland | BZ193: =BT14 -> 37.47861514 | CA193: =BV14 -> 0.1635082846 | CB193: =BU14 -> 0.1745250993 | CC193: =BW14 -> 365
BY194: Nova Scotia | BZ194: 1582.9 | CA194: 12.57712755 | CB194: 3.564885981 | CC194: 7980
BY195: Ontario | BZ195: 876 | CA195: 0.1747717291 | CB195: 0.2772255147 | CC195: 7582
BY196: Prince Edward Island | BZ196: =BT17 -> 4.40924884 | CA196: 0.2940837614 | CB196: 0.1202727752 | CC196: =BW17 -> 7864
BY197: Quebec | BZ197: =BT18 -> 2.645549304 | CA197: 0.02021457978 | CB197: 0.1030691904 | CC197: =BW18 -> 101
BY198: Saskatchewan | BZ198: =BT19 -> 1388.913385 | CA198: 9.742613948 | CB198: 3.900876878 | CC198: =BW19 -> 5711
BZ200: CO2 Emission Rate (lb/MWh) | CA200: SO2 Emission Rate (lb/MWh) | CB200: NOX Emission Rate (lb/MWh) | CC200: Annual Heat Rate (Btu/kWh)
BY201: **Ontario #'s replaced to include Marginal Power Mix as provided by Enbridge Gas on 8/14/16, then updated NB and NS per Enbridge on 9/13/16
BY202: Orig Ontario All source | BZ202: 216.1 | CC202: 2686
BY203: Orig New Brunswick | BZ203: 976.6 | CC203: 2720
BY204: Nova Scotia | BZ204: 1582.9 (no change) | CC204: Changed
BY205: Alberta | BZ205: 1629.2 | CC205: 10177
BY206: Orig formulas >>>> (alberta example) | BZ206: =BT85 -> 0 | CA206: =BV85 -> 0 | CB206: =BU85 -> 0 | CC206: =BW85 -> 0
BY207: …for other provinces
BY208: ** update cels F25 and E26 for notes on marginal mix

Sheet Profiles
A1: Displaced Electricity
B2: =LOOKUP('User Input'!$F$5,Lists!A21:A83,Lists!C21:C83) -> US | C2: State/Province | E2: *need to keep for HSPF and heating load

Sheet Methodology
A1: Residential Energy Cost & Emissions Tool – 2025 Methodology
